PublisherLabel,PublisherURI,"Body name","Body","Service area","Service division","Responsible unit","Expenses type","Date","Transaction","Amount","Supplier name"
"Bracknell Forest Council","http://opendatacommunities.org/id/unitary-authority/bracknell-forest","","","Management and Support Services - CYPL","Strategy, Resources and Early Interventions","Schools Contract Catering","Free Meals Subsidy",01/06/2017 00:00:00,"6637977",145444,"ISS MEDICLEAN LIMITED"
"Bracknell Forest Council","http://opendatacommunities.org/id/unitary-authority/bracknell-forest","","","Management and Support Services - CYPL","Strategy, Resources and Early Interventions","Schools Contract Catering","Subsidised Staff Services",01/06/2017 00:00:00,"6637977",2669,"ISS MEDICLEAN LIMITED"
"Bracknell Forest Council","http://opendatacommunities.org/id/unitary-authority/bracknell-forest","","","Management and Support Services - CYPL","CYPL Department Management Team","Management Team","Subscriptions",21/04/2017 00:00:00,"6635071",6250,"EAST SUSSEX COUNTY COUNCIL"
"Bracknell Forest Council","http://opendatacommunities.org/id/unitary-authority/bracknell-forest","","","Management and Support Services - CYPL","Strategy, Resources and Early Interventions","Schools Contract Catering","Free Meals Subsidy",12/05/2017 00:00:00,"6636331",104892.32,"ISS MEDICLEAN LIMITED"
"Bracknell Forest Council","http://opendatacommunities.org/id/unitary-authority/bracknell-forest","","","Management and Support Services - CYPL","Strategy, Resources and Early Interventions","Schools Contract Catering","Subsidised Staff Services",12/05/2017 00:00:00,"6636331",1869.15,"ISS MEDICLEAN LIMITED"
"Bracknell Forest Council","http://opendatacommunities.org/id/unitary-authority/bracknell-forest","","","Management and Support Services - CYPL","Strategy, Resources and Early Interventions","Schools Contract Catering","Catering - Payments to Contractors",12/05/2017 00:00:00,"6636331",51813.49,"ISS MEDICLEAN LIMITED"
"Bracknell Forest Council","http://opendatacommunities.org/id/unitary-authority/bracknell-forest","","","Management and Support Services - CYPL","Strategy, Resources and Early Interventions","SSEYCG Management & Admin","Gas",28/04/2017 00:00:00,"6636307",582.73,"BRITISH GAS BUSINESS"
"Bracknell Forest Council","http://opendatacommunities.org/id/unitary-authority/bracknell-forest","","","Commissioning & Service Delivery","Commissioning & Service Delivery","Training P&R","Training Costs",09/06/2017 00:00:00,"6638348",-5500,"EDENHOUSE SOLUTIONS LIMITED"
"Bracknell Forest Council","http://opendatacommunities.org/id/unitary-authority/bracknell-forest","","","Children Looked After","Other services for LAC","LAC- Over 11s Expenditure","Contracted Services",24/07/2015 00:00:00,"6636978",-1000.95,"PERSONAL SECURITY SERVICE LTD"
"Bracknell Forest Council","http://opendatacommunities.org/id/unitary-authority/bracknell-forest","","","Children 5-19 Public Health Programmes","Children 5-19 Public Health Programmes","Public Health Children's 5-19 Programmes (Berks)","Contracted Services",18/05/2017 00:00:00,"6636235",-18911.25,"BERKSHIRE HEALTHCARE NHS FOUNDATION TRUST"
"Bracknell Forest Council","http://opendatacommunities.org/id/unitary-authority/bracknell-forest","","","Children 5-19 Public Health Programmes","Children 5-19 Public Health Programmes","Public Health Children's 5-19 Programmes (Berks)","Contracted Services",27/04/2017 00:00:00,"6636238",-18911.25,"BERKSHIRE HEALTHCARE NHS FOUNDATION TRUST"
"Bracknell Forest Council","http://opendatacommunities.org/id/unitary-authority/bracknell-forest","","","Recreation, Sports and Leisure","Golf Courses","Leisure DSO - Downshire Golf Shop","Cost of Goods Sold",17/05/2017 00:00:00,"6638720",-506.88,"TAYLOR MADE GOLF LTD"
"Bracknell Forest Council","http://opendatacommunities.org/id/unitary-authority/bracknell-forest","","","Adults (18-64)","Long Term Support - Community:Supported Living","MH Adults 18-64 Long Term Support - Community:Supported Living","Other Support to Clients",20/04/2017 00:00:00,"6635328",-612.08,"MOVING ON CARE MANAGEMENT LTD"
"Bracknell Forest Council","http://opendatacommunities.org/id/unitary-authority/bracknell-forest","","","Adults (18-64)","Long Term Support - Community:Supported Living","MH Adults 18-64 Long Term Support - Community:Supported Living","Other Support to Clients",20/04/2017 00:00:00,"6635330",-612.08,"MOVING ON CARE MANAGEMENT LTD"
"Bracknell Forest Council","http://opendatacommunities.org/id/unitary-authority/bracknell-forest","","","Waste Disposal","Disposal of Waste","Waste Disposal","Contracted Services",28/04/2017 00:00:00,"6635463",-43008.48,"READING BOROUGH COUNCIL"
"Bracknell Forest Council","http://opendatacommunities.org/id/unitary-authority/bracknell-forest","","","Mandated 0-5 Childrens Services (Bracknell)","Mandated 0-5 Childrens Services (Bracknell)","Public Health Childrens 0-5 Services (Mandatory)","Contracted Services",28/02/2017 00:00:00,"6635316",-15993.33,"BERKSHIRE HEALTHCARE NHS FOUNDATION TRUST"
"Bracknell Forest Council","http://opendatacommunities.org/id/unitary-authority/bracknell-forest","","","Recreation, Sports and Leisure","Golf Courses","Leisure DSO - Downshire Golf Shop","Cost of Goods Sold",21/01/2017 00:00:00,"6635029",-1070.98,"COBRA-PUMA GOLF"
"Bracknell Forest Council","http://opendatacommunities.org/id/unitary-authority/bracknell-forest","","","Recreation, Sports and Leisure","Golf Courses","Leisure DSO - Downshire Golf Shop","Cost of Goods Sold",13/03/2017 00:00:00,"6635456",-723.13,"TAYLOR MADE GOLF LTD"
"Bracknell Forest Council","http://opendatacommunities.org/id/unitary-authority/bracknell-forest","","","Recreation, Sports and Leisure","Golf Courses","Leisure DSO - Downshire Golf Shop","Cost of Goods Sold",24/01/2017 00:00:00,"6634185",-629.4,"ACUSHNET EUROPE LTD"
"Bracknell Forest Council","http://opendatacommunities.org/id/unitary-authority/bracknell-forest","","","Adults (18-64)","Long Term Support - Community:Supported Living","MH Adults 18-64 Long Term Support - Community:Supported Living","Other Support to Clients",07/03/2017 00:00:00,"6634508",-1224.16,"MOVING ON CARE MANAGEMENT LTD"
"Bracknell Forest Council","http://opendatacommunities.org/id/unitary-authority/bracknell-forest","","","Adults (18-64)","Long Term Support - Community:Supported Living","MH Adults 18-64 Long Term Support - Community:Supported Living","Other Support to Clients",07/03/2017 00:00:00,"6634509",-1224.16,"MOVING ON CARE MANAGEMENT LTD"
"Bracknell Forest Council","http://opendatacommunities.org/id/unitary-authority/bracknell-forest","","","Waste Disposal","Disposal of Waste","Waste Disposal","Government Grants",23/03/2017 00:00:00,"6633936",-203793.18,"READING BOROUGH COUNCIL"
"Bracknell Forest Council","http://opendatacommunities.org/id/unitary-authority/bracknell-forest","","","Waste Disposal","Disposal of Waste","Waste Disposal","Other Income",30/05/2017 00:00:00,"6638048",-19631.3,"READING BOROUGH COUNCIL"
"Bracknell Forest Council","http://opendatacommunities.org/id/unitary-authority/bracknell-forest","","","Waste Disposal","Disposal of Waste","Waste Disposal","Contracted Services",30/05/2017 00:00:00,"6638048",-40898.11,"READING BOROUGH COUNCIL"
"Bracknell Forest Council","http://opendatacommunities.org/id/unitary-authority/bracknell-forest","","","Recreation, Sports and Leisure","Golf Courses","Leisure DSO - Downshire Golf Shop","Cost of Goods Sold",03/03/2017 00:00:00,"6636212",-678.36,"ACUSHNET EUROPE LTD"
"Bracknell Forest Council","http://opendatacommunities.org/id/unitary-authority/bracknell-forest","","","Recreation, Sports and Leisure","Indoor Sports & Recreation Facilities","Leisure DSO - Leisure Centre","Training Costs",11/04/2017 00:00:00,"6634401",-804,"RLSS DIRECT / RLSS UK ENTERPRISES LTD"
"Bracknell Forest Council","http://opendatacommunities.org/id/unitary-authority/bracknell-forest","","","Business Support","Premises Development","Easthampstead Park Conference Centre","Refuse Collection",05/04/2017 00:00:00,"6633885",-643.81,"SUEZ RECYCLING AND RECOVERY UK LTD"
"Bracknell Forest Council","http://opendatacommunities.org/id/unitary-authority/bracknell-forest","","","Children Looked After","Leaving care support services","Care Leavers Team & Client Costs","Other Support to Clients",05/05/2017 00:00:00,"6636035",-1760.69,"NEST CARE HOME LTD"
"Bracknell Forest Council","http://opendatacommunities.org/id/unitary-authority/bracknell-forest","","","Management and Support Services - CYPL","Strategy, Resources and Early Interventions","Schools Contract Catering","Sale of Goods",01/06/2017 00:00:00,"6637977",-69680.1,"ISS MEDICLEAN LIMITED"
"Bracknell Forest Council","http://opendatacommunities.org/id/unitary-authority/bracknell-forest","","","Management and Support Services - CYPL","Strategy, Resources and Early Interventions","Schools Contract Catering","Sale of Goods",01/06/2017 00:00:00,"6637977",-1638.18,"ISS MEDICLEAN LIMITED"
"Bracknell Forest Council","http://opendatacommunities.org/id/unitary-authority/bracknell-forest","","","Secondary Schools","Delegated Primary School Budgets","Wildridings - Primary","Free Meals Subsidy",01/06/2017 00:00:00,"6637977",-2441.93,"ISS MEDICLEAN LIMITED"
"Bracknell Forest Council","http://opendatacommunities.org/id/unitary-authority/bracknell-forest","","","Children Looked After","Fostering services","Independent Fostering (Non BFBC)","Contracted Services",15/05/2017 00:00:00,"6637048",-5158.5,"FCA / FOSTER CARE ASSOCIATES LTD"
"Bracknell Forest Council","http://opendatacommunities.org/id/unitary-authority/bracknell-forest","","","Children Looked After","Fostering services","Independent Fostering (Non BFBC)","Contracted Services",15/05/2017 00:00:00,"6637049",-5900.5,"FCA / FOSTER CARE ASSOCIATES LTD"
"Bracknell Forest Council","http://opendatacommunities.org/id/unitary-authority/bracknell-forest","","","Management and Support Services - CYPL","Unallocated High Needs Related Expenditure","SEN Non LEA Provision Pre 16","Voluntary Sector Service Providers",27/03/2017 00:00:00,"6635578",-3333,"MARY HARE"
"Bracknell Forest Council","http://opendatacommunities.org/id/unitary-authority/bracknell-forest","","","Management and Support Services - CYPL","Strategy, Resources and Early Interventions","Schools Contract Catering","Sale of Goods",12/05/2017 00:00:00,"6636331",-51153.9,"ISS MEDICLEAN LIMITED"
"Bracknell Forest Council","http://opendatacommunities.org/id/unitary-authority/bracknell-forest","","","Management and Support Services - CYPL","Strategy, Resources and Early Interventions","Schools Contract Catering","Sale of Goods",12/05/2017 00:00:00,"6636331",-1159.11,"ISS MEDICLEAN LIMITED"
"Bracknell Forest Council","http://opendatacommunities.org/id/unitary-authority/bracknell-forest","","","Management and Support Services - CYPL","Strategy, Resources and Early Interventions","SSEYCG Management & Admin","Gas",28/04/2017 00:00:00,"6636307",-599.54,"BRITISH GAS BUSINESS"
"Bracknell Forest Council","http://opendatacommunities.org/id/unitary-authority/bracknell-forest","","","Minor Works Programme","","","Construction - Other Direct Expenses",27/04/2017 00:00:00,"6635043",6366,"TECHNOGYM UK LTD"
"Bracknell Forest Council","http://opendatacommunities.org/id/unitary-authority/bracknell-forest","","","Minor Works Programme","","","Construction - Other Direct Expenses",03/05/2017 00:00:00,"6635619",553.74,"JORDAN FITNESS"
"Bracknell Forest Council","http://opendatacommunities.org/id/unitary-authority/bracknell-forest","","","Minor Works Programme","","","Construction - Other Direct Expenses",18/04/2017 00:00:00,"6636536",6745.66,"YESSS ELECTRICAL"
"Bracknell Forest Council","http://opendatacommunities.org/id/unitary-authority/bracknell-forest","","","Minor Works Programme","","","Construction - Other Direct Expenses",24/02/2017 00:00:00,"6635606",18748.08,"WILSON SPORTS"
"Bracknell Forest Council","http://opendatacommunities.org/id/unitary-authority/bracknell-forest","","","Minor Works Programme","","","Construction - Other Direct Expenses",12/06/2017 00:00:00,"6638478",4273.8,"EDWARD RAY LIMITED"
"Bracknell Forest Council","http://opendatacommunities.org/id/unitary-authority/bracknell-forest","","","Grass Cutting Equipment","","","Plant & Machinery",27/04/2017 00:00:00,"6637627",8921,"LISTER WILDER LTD"
"Bracknell Forest Council","http://opendatacommunities.org/id/unitary-authority/bracknell-forest","","","Grass Cutting Equipment","","","Plant & Machinery",27/04/2017 00:00:00,"6637642",26327,"LISTER WILDER LTD"
"Bracknell Forest Council","http://opendatacommunities.org/id/unitary-authority/bracknell-forest","","","Access Improvement Programme","","","Construction - Contract Payments",12/06/2017 00:00:00,"6638358",2350,"COMMERCIAL DOOR SOLUTIONS LTD"
"Bracknell Forest Council","http://opendatacommunities.org/id/unitary-authority/bracknell-forest","","","Access Improvement Programme","","","Construction - Contract Payments",17/05/2017 00:00:00,"6637647",4495.5,"MORRIS & BLUNT LTD"
"Bracknell Forest Council","http://opendatacommunities.org/id/unitary-authority/bracknell-forest","","","Server Refresh","","","IT Consultants",19/05/2017 00:00:00,"6637192",630,"DELL COMPUTER CORPORATION"
"Bracknell Forest Council","http://opendatacommunities.org/id/unitary-authority/bracknell-forest","","","EDRMS (Invest to Save)","","","Other Direct Expenses",26/06/2017 00:00:00,"6639083",5950,"NORTHGATE PUBLIC SERVICES (UK) LTD"
"Bracknell Forest Council","http://opendatacommunities.org/id/unitary-authority/bracknell-forest","","","Improvements & Capitalised Repairs (Council Wide)","","","Other Direct Expenses",27/06/2017 00:00:00,"6638953",3054,"PICKERINGS LIFTS"
"Bracknell Forest Council","http://opendatacommunities.org/id/unitary-authority/bracknell-forest","","","Improvements & Capitalised Repairs (Council Wide)","","","Consultant Fees",27/05/2017 00:00:00,"6637646",800,"KRP CONSULTING ENGINEERS LTD"
"Bracknell Forest Council","http://opendatacommunities.org/id/unitary-authority/bracknell-forest","","","Improvements & Capitalised Repairs (Council Wide)","","","Consultant Fees",07/06/2017 00:00:00,"6638205",10240,"KRP CONSULTING ENGINEERS LTD"
"Bracknell Forest Council","http://opendatacommunities.org/id/unitary-authority/bracknell-forest","","","Improvements & Capitalised Repairs (Council Wide)","","","Construction - Contract Payments",12/04/2017 00:00:00,"6634089",22186.22,"M & J GROUP (CONSTRUCTION & ROOFING) LTD"
"Bracknell Forest Council","http://opendatacommunities.org/id/unitary-authority/bracknell-forest","","","Improvements & Capitalised Repairs (Council Wide)","","","Construction - Contract Payments",15/12/2016 00:00:00,"6634854",1900,"BERKSHIRE MECHANICAL SERVICES"
"Bracknell Forest Council","http://opendatacommunities.org/id/unitary-authority/bracknell-forest","","","Improvements & Capitalised Repairs (Council Wide)","","","Construction - Contract Payments",11/05/2017 00:00:00,"6637084",2075,"LIFE ENVIRONMENTAL SERVICES LTD"
"Bracknell Forest Council","http://opendatacommunities.org/id/unitary-authority/bracknell-forest","","","Improvements & Capitalised Repairs (Council Wide)","","","Construction - Contract Payments",28/04/2017 00:00:00,"6635888",864,"THE QUOIN CONSULTANCY"
"Bracknell Forest Council","http://opendatacommunities.org/id/unitary-authority/bracknell-forest","","","Improvements & Capitalised Repairs (Council Wide)","","","Construction - Contract Payments",28/04/2017 00:00:00,"6635890",520,"THE QUOIN CONSULTANCY"
"Bracknell Forest Council","http://opendatacommunities.org/id/unitary-authority/bracknell-forest","","","Improvements & Capitalised Repairs (Council Wide)","","","Construction - Contract Payments",28/04/2017 00:00:00,"6635569",54143.95,"M & J GROUP (CONSTRUCTION & ROOFING) LTD"
"Bracknell Forest Council","http://opendatacommunities.org/id/unitary-authority/bracknell-forest","","","Improvements & Capitalised Repairs (Council Wide)","","","Construction - Contract Payments",17/05/2017 00:00:00,"6637822",8740,"PICKERINGS LIFTS"
"Bracknell Forest Council","http://opendatacommunities.org/id/unitary-authority/bracknell-forest","","","Improvements & Capitalised Repairs (Council Wide)","","","Construction - Contract Payments",17/05/2017 00:00:00,"6637824",8740,"PICKERINGS LIFTS"
"Bracknell Forest Council","http://opendatacommunities.org/id/unitary-authority/bracknell-forest","","","Improvements & Capitalised Repairs (Council Wide)","","","Construction - Contract Payments",31/05/2017 00:00:00,"6638496",770,"S R INDUSTRIAL LTD"
"Bracknell Forest Council","http://opendatacommunities.org/id/unitary-authority/bracknell-forest","","","Improvements & Capitalised Repairs (Council Wide)","","","Construction - Other Direct Expenses",26/04/2017 00:00:00,"6635399",5166.25,"BELLS ENGINEERING PRODUCTS LTD"
"Bracknell Forest Council","http://opendatacommunities.org/id/unitary-authority/bracknell-forest","","","Improvements & Capitalised Repairs (Council Wide)","","","Construction - Other Direct Expenses",05/06/2017 00:00:00,"6637837",7760,"S P E"
"Bracknell Forest Council","http://opendatacommunities.org/id/unitary-authority/bracknell-forest","","","Improvements & Capitalised Repairs (Council Wide)","","","Construction - Other Direct Expenses",23/03/2017 00:00:00,"6638110",6050,"LEISURETEQ"
"Bracknell Forest Council","http://opendatacommunities.org/id/unitary-authority/bracknell-forest","","","CITRIX Licensing","","","IT Hardware",27/02/2017 00:00:00,"6636787",2850,"ULTIMA BUSINESS SOLUTIONS"
"Bracknell Forest Council","http://opendatacommunities.org/id/unitary-authority/bracknell-forest","","","CITRIX Licensing","","","IT Hardware",28/04/2017 00:00:00,"6636098",3294.14,"ULTIMA BUSINESS SOLUTIONS"
"Bracknell Forest Council","http://opendatacommunities.org/id/unitary-authority/bracknell-forest","","","CITRIX Licensing","","","IT Hardware",31/05/2017 00:00:00,"6637310",950,"ULTIMA BUSINESS SOLUTIONS"
"Bracknell Forest Council","http://opendatacommunities.org/id/unitary-authority/bracknell-forest","","","Central Support Services - COF","Construction and Property","Time Square Office","Refuse Collection",31/05/2017 00:00:00,"6638431",740.5,"SUEZ RECYCLING AND RECOVERY UK LTD"
"Bracknell Forest Council","http://opendatacommunities.org/id/unitary-authority/bracknell-forest","","","Central Support Services - COF","Personnel","Personnel Services","Licences",24/05/2017 00:00:00,"6638178",1276.5,"MHR / MIDLAND SOFTWARE"
"Bracknell Forest Council","http://opendatacommunities.org/id/unitary-authority/bracknell-forest","","","Central Support Services - COF","Personnel","Personnel Services - Occupational Health","Other Fees for Bought-in Services",30/04/2017 00:00:00,"6638298",1944,"HARMONY COUNSELLING SERVICE"
"Bracknell Forest Council","http://opendatacommunities.org/id/unitary-authority/bracknell-forest","","","Holding Accounts in Budget Book COF","Corporate Services - Office Services","Shredding","Refuse Collection",31/05/2017 00:00:00,"6638244",1659.79,"SHRED-IT"
"Bracknell Forest Council","http://opendatacommunities.org/id/unitary-authority/bracknell-forest","","","Central Support Services - COF","Personnel","Personnel Services","Licences",24/05/2017 00:00:00,"6638179",3663,"MHR / MIDLAND SOFTWARE"
"Bracknell Forest Council","http://opendatacommunities.org/id/unitary-authority/bracknell-forest","","","Holding Accounts not in Budget Book - COF","General Holding Accounts","KGB Cleaning","Contract Cleaning",31/05/2017 00:00:00,"6638003",116026.79,"KGB CLEANING SOUTH WEST LIMITED"
"Bracknell Forest Council","http://opendatacommunities.org/id/unitary-authority/bracknell-forest","","","Waste Disposal","Disposal of Waste","London Road Tip","Contracted Services",28/04/2017 00:00:00,"6635881",5527.8,"ENITIAL"
"Bracknell Forest Council","http://opendatacommunities.org/id/unitary-authority/bracknell-forest","","","Waste Disposal","Disposal of Waste","London Road Tip","Consultants Fees",28/04/2017 00:00:00,"6635881",2901.59,"ENITIAL"
"Bracknell Forest Council","http://opendatacommunities.org/id/unitary-authority/bracknell-forest","","","Children Looked After","Other services for LAC","LAC - Semi Independent Living","Contracted Services",20/04/2017 00:00:00,"6635374",2448,"MOVING ON CARE MANAGEMENT LTD"
"Bracknell Forest Council","http://opendatacommunities.org/id/unitary-authority/bracknell-forest","","","Children Looked After","Residential care","C&F Learning Disability Placements","Contracted Services",25/04/2017 00:00:00,"6635377",31160,"QUALITY CARE HOMES (UK) LTD"
"Bracknell Forest Council","http://opendatacommunities.org/id/unitary-authority/bracknell-forest","","","Management and Support Services - CSC","CSC SMSS Direct allocations","CSC LEGAL Service","Reading BC",26/04/2017 00:00:00,"6635376",12065.98,"READING BOROUGH COUNCIL"
"Bracknell Forest Council","http://opendatacommunities.org/id/unitary-authority/bracknell-forest","","","Sexual Health Services","STI testing and treatment","Sexual Health - STI Testing & Treatment (Berks)","Contracted Services",21/03/2017 00:00:00,"6633944",1209,"THE HILLINGDON HOSPITALS NHS"
"Bracknell Forest Council","http://opendatacommunities.org/id/unitary-authority/bracknell-forest","","","Sexual Health Services","STI testing and treatment","Sexual Health - STI Testing & Treatment (Berks)","Contracted Services",23/03/2017 00:00:00,"6633948",1209,"IMPERIAL COLLEGE HEALTHCARE NHS"
"Bracknell Forest Council","http://opendatacommunities.org/id/unitary-authority/bracknell-forest","","","Sexual Health Services","STI testing and treatment","Sexual Health - STI Testing & Treatment (Berks)","Contracted Services",23/03/2017 00:00:00,"6633950",1517,"IMPERIAL COLLEGE HEALTHCARE NHS"
"Bracknell Forest Council","http://opendatacommunities.org/id/unitary-authority/bracknell-forest","","","Alert H&S System","","","Consultant Fees",28/04/2017 00:00:00,"6635903",800,"SOL-TEC"
"Bracknell Forest Council","http://opendatacommunities.org/id/unitary-authority/bracknell-forest","","","ICT Capital Schemes","","","IT Consultants",31/05/2017 00:00:00,"6637371",5000,"IDOX SOFTWARE LTD"
"Bracknell Forest Council","http://opendatacommunities.org/id/unitary-authority/bracknell-forest","","","ICT Capital Schemes","","","IT Consultants",30/05/2017 00:00:00,"6637313",5000,"IDOX SOFTWARE LTD"
"Bracknell Forest Council","http://opendatacommunities.org/id/unitary-authority/bracknell-forest","","","Civic Accomodation","","","Consultant Fees",28/04/2017 00:00:00,"6635588",52057.45,"ATKINS LTD"
"Bracknell Forest Council","http://opendatacommunities.org/id/unitary-authority/bracknell-forest","","","Civic Accomodation","","","Consultant Fees",31/05/2017 00:00:00,"6637490",33753.52,"ATKINS LTD"
"Bracknell Forest Council","http://opendatacommunities.org/id/unitary-authority/bracknell-forest","","","Mobility Schemes","","","Construction - Other Direct Expenses",04/05/2017 00:00:00,"6635632",1100,"TWICKENHAM SURVEYS"
"Bracknell Forest Council","http://opendatacommunities.org/id/unitary-authority/bracknell-forest","","","Local Safety Schemes","","","Construction - Other Direct Expenses",19/06/2017 00:00:00,"6639098",710,"WARNER LAND SURVEYS LTD"
"Bracknell Forest Council","http://opendatacommunities.org/id/unitary-authority/bracknell-forest","","","Structural Maintenance of Bridges","","","Construction - Other Direct Expenses",05/05/2017 00:00:00,"6635756",2206.91,"SLOUGH BOROUGH COUNCIL"
"Bracknell Forest Council","http://opendatacommunities.org/id/unitary-authority/bracknell-forest","","","Structural Maintenance of Bridges","","","Construction - Other Direct Expenses",28/04/2017 00:00:00,"6635913",3425,"EKSPAN LIMITED"
"Bracknell Forest Council","http://opendatacommunities.org/id/unitary-authority/bracknell-forest","","","Traffic Management Schemes","","","Construction - Other Direct Expenses",24/04/2017 00:00:00,"6635048",3870,"WARNER LAND SURVEYS LTD"
"Bracknell Forest Council","http://opendatacommunities.org/id/unitary-authority/bracknell-forest","","","Traffic Management Schemes","","","Construction - Other Direct Expenses",31/05/2017 00:00:00,"6637745",696.2,"AAI - ALEXANDER ADVERTISING(INT)LTD"
"Bracknell Forest Council","http://opendatacommunities.org/id/unitary-authority/bracknell-forest","","","Maintenance of Car Parks","","","Other Direct Expenses",28/04/2017 00:00:00,"6635561",19661.75,"KNIGHT HARWOOD LTD"
"Bracknell Forest Council","http://opendatacommunities.org/id/unitary-authority/bracknell-forest","","","Maintenance of Car Parks","","","Other Direct Expenses",28/04/2017 00:00:00,"6635562",700,"KNIGHT HARWOOD LTD"
"Bracknell Forest Council","http://opendatacommunities.org/id/unitary-authority/bracknell-forest","","","Maintenance of Car Parks","","","Construction - Contract Payments",28/02/2017 00:00:00,"6637648",1218.7,"PICKERINGS LIFTS"
"Bracknell Forest Council","http://opendatacommunities.org/id/unitary-authority/bracknell-forest","","","SANGS Facilitation","","","Construction - Other Direct Expenses",10/04/2017 00:00:00,"6635139",680,"GROUND SURVEYS LIMITED"
"Bracknell Forest Council","http://opendatacommunities.org/id/unitary-authority/bracknell-forest","","","SANGS Facilitation","","","Construction - Other Direct Expenses",09/03/2017 00:00:00,"6633159",3600,"SMALLWOOD"
"Bracknell Forest Council","http://opendatacommunities.org/id/unitary-authority/bracknell-forest","","","SANGS Facilitation","","","Construction - Other Direct Expenses",09/03/2017 00:00:00,"6633159",4385,"SMALLWOOD"
"Bracknell Forest Council","http://opendatacommunities.org/id/unitary-authority/bracknell-forest","","","SANGS Facilitation","","","Construction - Other Direct Expenses",12/04/2017 00:00:00,"6634143",639,"CLEARVIEW INTELLIGENCE LTD"
"Bracknell Forest Council","http://opendatacommunities.org/id/unitary-authority/bracknell-forest","","","SANGS Facilitation","","","Construction - Other Direct Expenses",21/04/2017 00:00:00,"6635629",850,"TLC TREE & LAND CARE"
"Bracknell Forest Council","http://opendatacommunities.org/id/unitary-authority/bracknell-forest","","","Town Centre Highway Works","","","Construction - Other Direct Expenses",19/05/2017 00:00:00,"6637168",1559.03,"AAI - ALEXANDER ADVERTISING(INT)LTD"
"Bracknell Forest Council","http://opendatacommunities.org/id/unitary-authority/bracknell-forest","","","Town Centre Highway Works","","","Construction - Other Direct Expenses",31/03/2017 00:00:00,"6636205",12641.4,"21ST CENTURY PASSENGER SSYSTEMS LIMITED"
"Bracknell Forest Council","http://opendatacommunities.org/id/unitary-authority/bracknell-forest","","","Upgrade Leisure Management System","","","IT Consultants",31/01/2017 00:00:00,"6633916",3500,"SMARTCITIZEN LIMITED"
"Bracknell Forest Council","http://opendatacommunities.org/id/unitary-authority/bracknell-forest","","","S106 Parks & Open Spaces Improvements Programme","","","Construction - Other Direct Expenses",03/04/2017 00:00:00,"6633207",2327.08,"GREENSPACE DESIGNS LTD"
"Bracknell Forest Council","http://opendatacommunities.org/id/unitary-authority/bracknell-forest","","","Urban Traffic Management & Control","","","Construction - Other Direct Expenses",04/05/2017 00:00:00,"6635609",3875,"CHD CONSULTING"
"Bracknell Forest Council","http://opendatacommunities.org/id/unitary-authority/bracknell-forest","","","Coral Reef Roof Replacement","","","Consultant Fees",28/04/2017 00:00:00,"6635586",13711.16,"ATKINS LIMITED"
"Bracknell Forest Council","http://opendatacommunities.org/id/unitary-authority/bracknell-forest","","","Coral Reef Roof Replacement","","","Consultant Fees",31/05/2017 00:00:00,"6637491",13711.16,"ATKINS LIMITED"
"Bracknell Forest Council","http://opendatacommunities.org/id/unitary-authority/bracknell-forest","","","Coral Reef Roof Replacement","","","Construction - Contract Payments",08/05/2017 00:00:00,"6635587",956147.51,"BRYMOR CONSTRUCTION LTD"
"Bracknell Forest Council","http://opendatacommunities.org/id/unitary-authority/bracknell-forest","","","Coral Reef Roof Replacement","","","Construction - Contract Payments",09/06/2017 00:00:00,"6638038",779758.52,"BRYMOR CONSTRUCTION LTD"
"Bracknell Forest Council","http://opendatacommunities.org/id/unitary-authority/bracknell-forest","","","Coppid Beech - Local Pinch Point Programme","","","Construction - Other Direct Expenses",05/05/2017 00:00:00,"6635758",9029.28,"JSM CONSTRUCTION LTD"
"Bracknell Forest Council","http://opendatacommunities.org/id/unitary-authority/bracknell-forest","","","Coppid Beech - Local Pinch Point Programme","","","Construction - Other Direct Expenses",19/06/2017 00:00:00,"6639021",4875,"ALPINE TREE SURGEONS LTD"
"Bracknell Forest Council","http://opendatacommunities.org/id/unitary-authority/bracknell-forest","","","Bill Hill Improvement Works","","","Construction - Other Direct Expenses",09/06/2017 00:00:00,"6638944",15050,"BERKSHIRE TREE CARE"
"Bracknell Forest Council","http://opendatacommunities.org/id/unitary-authority/bracknell-forest","","","Bill Hill Improvement Works","","","Construction - Other Direct Expenses",09/06/2017 00:00:00,"6638944",1500,"BERKSHIRE TREE CARE"
"Bracknell Forest Council","http://opendatacommunities.org/id/unitary-authority/bracknell-forest","","","ITS M3 to IDOX","","","IT Software",31/05/2017 00:00:00,"6637372",950,"IDOX SOFTWARE LTD"
"Bracknell Forest Council","http://opendatacommunities.org/id/unitary-authority/bracknell-forest","","","ITS M3 to IDOX","","","IT Software",27/04/2017 00:00:00,"6635389",950,"IDOX SOFTWARE LTD"
"Bracknell Forest Council","http://opendatacommunities.org/id/unitary-authority/bracknell-forest","","","Replacement Ledfor Street Lights","","","Construction - Other Direct Expenses",20/04/2017 00:00:00,"6635041",2924,"JOHN WENMAN ECOLOGICAL CONSULTANCY"
"Bracknell Forest Council","http://opendatacommunities.org/id/unitary-authority/bracknell-forest","","","Chapel at Cem & Crem (Invest to Save)","","","Construction - Contract Payments",23/05/2017 00:00:00,"6637489",27501.77,"LENGARD LTD"
"Bracknell Forest Council","http://opendatacommunities.org/id/unitary-authority/bracknell-forest","","","Chapel at Cem & Crem (Invest to Save)","","","Construction - Contract Payments",12/06/2017 00:00:00,"6638349",42094.75,"LENGARD LTD"
"Bracknell Forest Council","http://opendatacommunities.org/id/unitary-authority/bracknell-forest","","","BLC Main Sports Hall Refurbishment","","","Construction - Other Direct Expenses",10/05/2017 00:00:00,"6636006",7400,"FAST TRACK SERVICES (SOUTHERN)  LTD"
"Bracknell Forest Council","http://opendatacommunities.org/id/unitary-authority/bracknell-forest","","","GIS Replacement (Invest To Save)","","","IT Software",06/04/2017 00:00:00,"6637694",17500,"BRAMBLE HUB LTD"
"Bracknell Forest Council","http://opendatacommunities.org/id/unitary-authority/bracknell-forest","","","Bluebell Hill (s106)","","","Construction - Other Direct Expenses",03/04/2017 00:00:00,"6633322",4355,"SMALLWOOD"
"Bracknell Forest Council","http://opendatacommunities.org/id/unitary-authority/bracknell-forest","","","Bluebell Hill (s106)","","","Construction - Other Direct Expenses",03/04/2017 00:00:00,"6633322",2640,"SMALLWOOD"
"Bracknell Forest Council","http://opendatacommunities.org/id/unitary-authority/bracknell-forest","","","Coral Reef Refurbishment - outside contract","","","Construction - Other Direct Expenses",12/06/2017 00:00:00,"6638352",13636.95,"CONTROL MATTERS LTD"
"Bracknell Forest Council","http://opendatacommunities.org/id/unitary-authority/bracknell-forest","","","Coral Reef Refurbishment - outside contract","","","Construction - Other Direct Expenses",25/05/2017 00:00:00,"6637480",13000,"SANDBACH SPA CONSULTANCY LIMITED T/A OCIO LONDON-KLAFS PARTNER"
"Bracknell Forest Council","http://opendatacommunities.org/id/unitary-authority/bracknell-forest","","","Ascot Heath Junior-MTC","","","Construction - Contract Payments",21/04/2017 00:00:00,"6635583",19350,"BERKSHIRE MECHANICAL SERVICES"
"Bracknell Forest Council","http://opendatacommunities.org/id/unitary-authority/bracknell-forest","","","Holly Spring Infants - MTC","","","Construction - Contract Payments",11/04/2017 00:00:00,"6634421",13135.17,"RINGWAY INFRASTRUCTURE SERVICES LTD"
"Bracknell Forest Council","http://opendatacommunities.org/id/unitary-authority/bracknell-forest","","","Holly Spring Junior-MTC","","","Consultant Fees",19/04/2017 00:00:00,"6635045",807,"SHAW COLEGATE LTD"
"Bracknell Forest Council","http://opendatacommunities.org/id/unitary-authority/bracknell-forest","","","Holly Spring Junior-MTC","","","Construction - Other Direct Expenses",13/04/2017 00:00:00,"6634892",1520,"METRO ROD"
"Bracknell Forest Council","http://opendatacommunities.org/id/unitary-authority/bracknell-forest","","","Holly Spring Junior-MTC","","","Construction - Other Direct Expenses",18/04/2017 00:00:00,"6636664",1325,"LIFE ENVIRONMENTAL SERVICES LTD"
"Bracknell Forest Council","http://opendatacommunities.org/id/unitary-authority/bracknell-forest","","","Holly Spring Junior-MTC","","","Construction - Other Direct Expenses",25/05/2017 00:00:00,"6637650",4255,"BERKSHIRE MECHANICAL SERVICES"
"Bracknell Forest Council","http://opendatacommunities.org/id/unitary-authority/bracknell-forest","","","Holly Spring Junior-MTC","","","Construction - Other Direct Expenses",25/05/2017 00:00:00,"6637650",3000,"BERKSHIRE MECHANICAL SERVICES"
"Bracknell Forest Council","http://opendatacommunities.org/id/unitary-authority/bracknell-forest","","","Harmans Water Primary-MTC","","","Construction - Contract Payments",02/05/2017 00:00:00,"6638489",1846.13,"TAYLOR MACLAINE LTD"
"Bracknell Forest Council","http://opendatacommunities.org/id/unitary-authority/bracknell-forest","","","Wooden Hill Primary-MTC","","","Construction - Other Direct Expenses",20/04/2017 00:00:00,"6634860",4489.82,"KESTREL (CONTRACTORS) LTD"
"Bracknell Forest Council","http://opendatacommunities.org/id/unitary-authority/bracknell-forest","","","Secondary AP - Access for Disabled","","","Construction - Contract Payments",12/06/2017 00:00:00,"6638361",1332.28,"COMMERCIAL DOOR SOLUTIONS LTD"
"Bracknell Forest Council","http://opendatacommunities.org/id/unitary-authority/bracknell-forest","","","Edgbarrow Secondary-MTC","","","Other Direct Expenses",14/05/2017 00:00:00,"6636705",1241,"CONTROL MATTERS LTD"
"Bracknell Forest Council","http://opendatacommunities.org/id/unitary-authority/bracknell-forest","","","Kennel Lane School - MTC","","","Construction - Other Direct Expenses",07/04/2017 00:00:00,"6633911",738,"OSBORNE & COLLINS LIMITED"
"Bracknell Forest Council","http://opendatacommunities.org/id/unitary-authority/bracknell-forest","","","Kennel Lane School - MTC","","","Construction - Other Direct Expenses",15/05/2017 00:00:00,"6636514",1750,"LIFE ENVIRONMENTAL SERVICES LTD"
"Bracknell Forest Council","http://opendatacommunities.org/id/unitary-authority/bracknell-forest","","","Kennel Lane School - MTC","","","Construction - Other Direct Expenses",20/06/2017 00:00:00,"6639220",17888,"FOREST ENVIRONMENTAL LIMITED"
"Bracknell Forest Council","http://opendatacommunities.org/id/unitary-authority/bracknell-forest","","","Warfield Primary - MTC","","","Construction - Other Direct Expenses",30/03/2017 00:00:00,"6635205",9671.02,"KIER FACILITIES SERVICES LIMITED"
"Bracknell Forest Council","http://opendatacommunities.org/id/unitary-authority/bracknell-forest","","","CP-IS Project","","","Consultant Fees",10/05/2017 00:00:00,"6636498",7500,"ZUNA-BD LTD"
"Bracknell Forest Council","http://opendatacommunities.org/id/unitary-authority/bracknell-forest","","","CP-IS Project","","","Consultant Fees",24/05/2017 00:00:00,"6637070",2250,"GTECHNO LTD"
"Bracknell Forest Council","http://opendatacommunities.org/id/unitary-authority/bracknell-forest","","","CP-IS Project","","","IT Hardware",05/05/2017 00:00:00,"6635626",511.48,"MISCO"
"Bracknell Forest Council","http://opendatacommunities.org/id/unitary-authority/bracknell-forest","","","CP-IS Project","","","IT Hardware",19/05/2017 00:00:00,"6636864",4627.56,"MISCO"
"Bracknell Forest Council","http://opendatacommunities.org/id/unitary-authority/bracknell-forest","","","Owlsmoor Suitability","","","Other Direct Expenses",23/02/2017 00:00:00,"6635096",4085,"S AND S CARPENTRY AND BUILDING LIMITED"
"Bracknell Forest Council","http://opendatacommunities.org/id/unitary-authority/bracknell-forest","","","Sandhurst Redevelopment","","","Construction - Other Direct Expenses",20/04/2017 00:00:00,"6635046",2450,"LIFE ENVIRONMENTAL SERVICES LTD"
"Bracknell Forest Council","http://opendatacommunities.org/id/unitary-authority/bracknell-forest","","","Sandhurst Redevelopment","","","Construction - Other Direct Expenses",03/05/2017 00:00:00,"6635750",9993.7,"METRO ROD"
"Bracknell Forest Council","http://opendatacommunities.org/id/unitary-authority/bracknell-forest","","","Pines Primary MTC","","","Other Direct Expenses",15/05/2017 00:00:00,"6637161",2560,"CONTROL MATTERS LTD"
"Bracknell Forest Council","http://opendatacommunities.org/id/unitary-authority/bracknell-forest","","","Easthampstead Park Refurbishment","","","Construction - Other Direct Expenses",20/04/2017 00:00:00,"6635047",2405,"METRO ROD"
"Bracknell Forest Council","http://opendatacommunities.org/id/unitary-authority/bracknell-forest","","","Easthampstead Park Refurbishment","","","Construction - Other Direct Expenses",13/04/2017 00:00:00,"6635078",2998.8,"METRO ROD"
"Bracknell Forest Council","http://opendatacommunities.org/id/unitary-authority/bracknell-forest","","","Priestwood GC","","","Construction - Contract Payments",30/01/2016 00:00:00,"6634855",1600,"BERKSHIRE MECHANICAL SERVICES"
"Bracknell Forest Council","http://opendatacommunities.org/id/unitary-authority/bracknell-forest","","","Priestwood GC","","","Construction - Contract Payments",12/05/2017 00:00:00,"6637479",625,"SUNSHADE SERVICES LTD"
"Bracknell Forest Council","http://opendatacommunities.org/id/unitary-authority/bracknell-forest","","","","","","Subsistence",,"",2217.8,"Subsistence"
"Bracknell Forest Council","http://opendatacommunities.org/id/unitary-authority/bracknell-forest","","","","","","Staff Public Transport Fares",,"",10230.41,"Staff Public Transport Fares"
"Bracknell Forest Council","http://opendatacommunities.org/id/unitary-authority/bracknell-forest","","","","","","Lump Sum Allowance",,"",88406.59,"Lump Sum Allowance"
"Bracknell Forest Council","http://opendatacommunities.org/id/unitary-authority/bracknell-forest","","","","","","Mileage Allowance - Claims",,"",68319.22,"Mileage Allowance - Claims"
"Bracknell Forest Council","http://opendatacommunities.org/id/unitary-authority/bracknell-forest","","","Recreation, Sports and Leisure","Indoor Sports & Recreation Facilities","Leisure Centre - Catering General","Cost of Goods Sold",11/04/2017 00:00:00,"30312733",30.1,"WATTS FARMS (SALES) LTD"
"Bracknell Forest Council","http://opendatacommunities.org/id/unitary-authority/bracknell-forest","","","Culture and Heritage","Heritage Museums & Galleries","The Look Out Catering","Cost of Goods Sold",08/04/2017 00:00:00,"30312733",148.32,"WATTS FARMS (SALES) LTD"
"Bracknell Forest Council","http://opendatacommunities.org/id/unitary-authority/bracknell-forest","","","Business Support","Premises Development","Easthampstead Park Centre - Catering","Cost of Goods Sold",10/04/2017 00:00:00,"30312733",119.2,"WATTS FARMS (SALES) LTD"
"Bracknell Forest Council","http://opendatacommunities.org/id/unitary-authority/bracknell-forest","","","Business Support","Premises Development","Easthampstead Park Centre - Catering","Cost of Goods Sold",11/04/2017 00:00:00,"30312733",161.34,"WATTS FARMS (SALES) LTD"
"Bracknell Forest Council","http://opendatacommunities.org/id/unitary-authority/bracknell-forest","","","Business Support","Premises Development","Easthampstead Park Centre - Catering","Cost of Goods Sold",07/02/2017 00:00:00,"30312733",326.07,"BFS GROUP LTD T/A BIDFOOD"
"Bracknell Forest Council","http://opendatacommunities.org/id/unitary-authority/bracknell-forest","","","Business Support","Premises Development","Easthampstead Park Centre - Catering","Cost of Goods Sold",07/02/2017 00:00:00,"30312733",20.94,"BFS GROUP LTD T/A BIDFOOD"
"Bracknell Forest Council","http://opendatacommunities.org/id/unitary-authority/bracknell-forest","","","Recreation, Sports and Leisure","Golf Courses","Leisure DSO - Downshire Catering","Cost of Goods Sold",07/04/2017 00:00:00,"30312733",24,"J & S MEATS  (ASCOT)"
"Bracknell Forest Council","http://opendatacommunities.org/id/unitary-authority/bracknell-forest","","","Recreation, Sports and Leisure","Golf Courses","Leisure DSO - Downshire Catering","Cost of Goods Sold",04/04/2017 00:00:00,"30312733",347.91,"BFS GROUP LTD T/A BIDFOOD"
"Bracknell Forest Council","http://opendatacommunities.org/id/unitary-authority/bracknell-forest","","","Recreation, Sports and Leisure","Golf Courses","Leisure DSO - Downshire Catering","Cost of Goods Sold",04/04/2017 00:00:00,"30312733",129.01,"BFS GROUP LTD T/A BIDFOOD"
"Bracknell Forest Council","http://opendatacommunities.org/id/unitary-authority/bracknell-forest","","","Recreation, Sports and Leisure","Golf Courses","Leisure DSO - Downshire Catering","Cost of Goods Sold",07/04/2017 00:00:00,"30312733",344.11,"J & S MEATS  (ASCOT)"
"Bracknell Forest Council","http://opendatacommunities.org/id/unitary-authority/bracknell-forest","","","Recreation, Sports and Leisure","Golf Courses","Leisure DSO - Downshire Catering","Cost of Goods Sold",08/04/2017 00:00:00,"30312733",70.32,"J & S MEATS  (ASCOT)"
"Bracknell Forest Council","http://opendatacommunities.org/id/unitary-authority/bracknell-forest","","","Recreation, Sports and Leisure","Golf Courses","Leisure DSO - Downshire Catering","Cost of Goods Sold",10/04/2017 00:00:00,"30312733",21.25,"J & S MEATS  (ASCOT)"
"Bracknell Forest Council","http://opendatacommunities.org/id/unitary-authority/bracknell-forest","","","Recreation, Sports and Leisure","Golf Courses","Leisure DSO - Downshire Catering","Cost of Goods Sold",04/04/2017 00:00:00,"30312733",44.27,"BFS GROUP LTD T/A BIDFOOD"
"Bracknell Forest Council","http://opendatacommunities.org/id/unitary-authority/bracknell-forest","","","Recreation, Sports and Leisure","Golf Courses","Leisure DSO - Downshire Catering","Cost of Goods Sold",04/04/2017 00:00:00,"30312733",7.27,"BFS GROUP LTD T/A BIDFOOD"
"Bracknell Forest Council","http://opendatacommunities.org/id/unitary-authority/bracknell-forest","","","Network Refresh","","","IT Hardware",08/05/2017 00:00:00,"6635776",5247.78,"CDW LTD"
"Bracknell Forest Council","http://opendatacommunities.org/id/unitary-authority/bracknell-forest","","","Network Refresh","","","IT Hardware",05/05/2017 00:00:00,"6635625",1250.4,"CDW LTD"
"Bracknell Forest Council","http://opendatacommunities.org/id/unitary-authority/bracknell-forest","","","Network Refresh","","","IT Hardware",03/05/2017 00:00:00,"6635650",14500,"RAMMACOM LTD"
"Bracknell Forest Council","http://opendatacommunities.org/id/unitary-authority/bracknell-forest","","","Network Refresh","","","IT Hardware",31/05/2017 00:00:00,"6637309",4125,"TENEO LTD"
"Bracknell Forest Council","http://opendatacommunities.org/id/unitary-authority/bracknell-forest","","","Network Refresh","","","IT Hardware",12/06/2017 00:00:00,"6638459",2639,"TENEO LTD"
"Bracknell Forest Council","http://opendatacommunities.org/id/unitary-authority/bracknell-forest","","","Network Refresh","","","IT Hardware",12/06/2017 00:00:00,"6638459",5625,"TENEO LTD"
"Bracknell Forest Council","http://opendatacommunities.org/id/unitary-authority/bracknell-forest","","","Oracle 11 Upgrade","","","IT Software",14/03/2017 00:00:00,"6634564",5990,"DELL COMPUTER CORPORATION"
"Bracknell Forest Council","http://opendatacommunities.org/id/unitary-authority/bracknell-forest","","","PS Older People 65+ Long Term Support - Community:Supported Living","","","Other Direct Expenses",26/01/2017 00:00:00,"6634481",670.87,"DELL COMPUTER CORPORATION"
"Bracknell Forest Council","http://opendatacommunities.org/id/unitary-authority/bracknell-forest","","","PS Older People 65+ Long Term Support - Community:Supported Living","","","Other Direct Expenses",22/05/2017 00:00:00,"6637301",958,"DELL COMPUTER CORPORATION"
"Bracknell Forest Council","http://opendatacommunities.org/id/unitary-authority/bracknell-forest","","","PS Older People 65+ Long Term Support - Community:Supported Living","","","Other Direct Expenses",21/05/2017 00:00:00,"6637303",23460,"DELL COMPUTER CORPORATION"
"Bracknell Forest Council","http://opendatacommunities.org/id/unitary-authority/bracknell-forest","","","PS Older People 65+ Long Term Support - Community:Supported Living","","","Other Direct Expenses",11/05/2017 00:00:00,"6636758",1300,"DELL COMPUTER CORPORATION"
"Bracknell Forest Council","http://opendatacommunities.org/id/unitary-authority/bracknell-forest","","","PS Older People 65+ Long Term Support - Community:Supported Living","","","IT Hardware",11/04/2017 00:00:00,"6634462",746.38,"DELL COMPUTER CORPORATION"
"Bracknell Forest Council","http://opendatacommunities.org/id/unitary-authority/bracknell-forest","","","PS Older People 65+ Long Term Support - Community:Supported Living","","","IT Hardware",13/04/2017 00:00:00,"6635828",1544,"DELL COMPUTER CORPORATION"
"Bracknell Forest Council","http://opendatacommunities.org/id/unitary-authority/bracknell-forest","","","PS Older People 65+ Long Term Support - Community:Supported Living","","","IT Hardware",13/04/2017 00:00:00,"6635831",1324,"DELL COMPUTER CORPORATION"
"Bracknell Forest Council","http://opendatacommunities.org/id/unitary-authority/bracknell-forest","","","PS Older People 65+ Long Term Support - Community:Supported Living","","","IT Hardware",13/04/2017 00:00:00,"6635833",3082.8,"DELL COMPUTER CORPORATION"
"Bracknell Forest Council","http://opendatacommunities.org/id/unitary-authority/bracknell-forest","","","PS Older People 65+ Long Term Support - Community:Supported Living","","","IT Hardware",19/04/2017 00:00:00,"6635795",2604.95,"DELL COMPUTER CORPORATION"
"Bracknell Forest Council","http://opendatacommunities.org/id/unitary-authority/bracknell-forest","","","PS Older People 65+ Long Term Support - Community:Supported Living","","","IT Hardware",04/05/2017 00:00:00,"6635901",2390,"DELL COMPUTER CORPORATION"
"Bracknell Forest Council","http://opendatacommunities.org/id/unitary-authority/bracknell-forest","","","PS Older People 65+ Long Term Support - Community:Supported Living","","","IT Hardware",10/06/2017 00:00:00,"6638483",15815.6,"DELL COMPUTER CORPORATION"
"Bracknell Forest Council","http://opendatacommunities.org/id/unitary-authority/bracknell-forest","","","PS Older People 65+ Long Term Support - Community:Supported Living","","","IT Hardware",15/06/2017 00:00:00,"6639103",1437,"DELL COMPUTER CORPORATION"
"Bracknell Forest Council","http://opendatacommunities.org/id/unitary-authority/bracknell-forest","","","Waterside Park","","","Purchase of Land",31/05/2017 00:00:00,"6637380",750,"M & J GROUP (CONSTRUCTION & ROOFING) LTD"
"Bracknell Forest Council","http://opendatacommunities.org/id/unitary-authority/bracknell-forest","","","Management and Support Services - CYPL","Unallocated High Needs Related Expenditure","Mainstream - Element 3 top up non BFC pre 16","Other Local Authorities",31/05/2017 00:00:00,"6639378",12333.34,"NAS ACADEMIES TRUST"
"Bracknell Forest Council","http://opendatacommunities.org/id/unitary-authority/bracknell-forest","","","Management and Support Services - CYPL","Unallocated High Needs Related Expenditure","Mainstream - Element 3 top up non BFC pre 16","RB of Windsor & Maidenhead",10/03/2017 00:00:00,"6639376",35854,"MANOR GREEN SCHOOL"
"Bracknell Forest Council","http://opendatacommunities.org/id/unitary-authority/bracknell-forest","","","Services for Young People","Targeted services for young people","NEET Reduction Funding","Consultants Fees",15/06/2017 00:00:00,"6638909",4775,"XLCS LTD T/A XL EDUCATION Solutions"
"Bracknell Forest Council","http://opendatacommunities.org/id/unitary-authority/bracknell-forest","","","Safeguarding Children and Young People's Services","Social Work","Family Placement","Sessional",29/05/2017 00:00:00,"6638929",781.8,"JENNY COLLINS"
"Bracknell Forest Council","http://opendatacommunities.org/id/unitary-authority/bracknell-forest","","","Safeguarding Children and Young People's Services","Social Work","Family Placement","Sessional",29/05/2017 00:00:00,"6638930",1407.82,"JENNY COLLINS"
"Bracknell Forest Council","http://opendatacommunities.org/id/unitary-authority/bracknell-forest","","","Management and Support Services - CYPL","Schools Block Centrally Managed","Educational Attainment for Looked After Children","Consultants Fees",24/05/2017 00:00:00,"6638921",626.85,"TEACHING PERSONNEL LTD"
"Bracknell Forest Council","http://opendatacommunities.org/id/unitary-authority/bracknell-forest","","","Management and Support Services - CYPL","Schools Block Centrally Managed","Educational Attainment for Looked After Children","Consultants Fees",31/05/2017 00:00:00,"6638922",626.85,"TEACHING PERSONNEL LTD"
"Bracknell Forest Council","http://opendatacommunities.org/id/unitary-authority/bracknell-forest","","","Services for Young People","Targeted services for young people","NEET Reduction Funding","Consultants Fees",31/05/2017 00:00:00,"6638071",4850,"XLCS LTD T/A XL EDUCATION Solutions"
"Bracknell Forest Council","http://opendatacommunities.org/id/unitary-authority/bracknell-forest","","","Central Support Services - COF","Finance","Internal Audit","Contracted Services",17/05/2017 00:00:00,"6636921",1383.75,"CROYDON COUNCIL"
"Bracknell Forest Council","http://opendatacommunities.org/id/unitary-authority/bracknell-forest","","","Central Support Services - COF","Finance","Internal Audit","Contracted Services",27/04/2017 00:00:00,"6636922",6611.25,"CROYDON COUNCIL"
"Bracknell Forest Council","http://opendatacommunities.org/id/unitary-authority/bracknell-forest","","","Business Support","Premises Development","Easthampstead Shops","R&M - Reactive",10/05/2017 00:00:00,"6636149",4800,"BERKSHIRE MECHANICAL SERVICES"
"Bracknell Forest Council","http://opendatacommunities.org/id/unitary-authority/bracknell-forest","","","Business Support","Premises Development","Easthampstead Shops","R&M - Reactive",10/05/2017 00:00:00,"6636149",3000,"BERKSHIRE MECHANICAL SERVICES"
"Bracknell Forest Council","http://opendatacommunities.org/id/unitary-authority/bracknell-forest","","","Business Support","Premises Development","CPIS Schemes Not Proceeding","Consultants Fees",04/05/2017 00:00:00,"6636139",3000,"WILKS HEAD & EVE"
"Bracknell Forest Council","http://opendatacommunities.org/id/unitary-authority/bracknell-forest","","","Central Support Services - COF","Legal","Legal Services","Licences",01/04/2017 00:00:00,"6635675",800,"IKEN BUSINESS LTD"
"Bracknell Forest Council","http://opendatacommunities.org/id/unitary-authority/bracknell-forest","","","Public Transport","Support To Operators","Public Transport Subsidy","Contracted Services",30/04/2017 00:00:00,"6635759",7083.33,"KEEP MOBILE"
"Bracknell Forest Council","http://opendatacommunities.org/id/unitary-authority/bracknell-forest","","","Open Spaces","Countryside Recreation & Management","Countryside Sites - Maintenance","R&M - Planned",28/04/2017 00:00:00,"6635751",2169,"CAMPS HIGHWAYS LIMITED"
"Bracknell Forest Council","http://opendatacommunities.org/id/unitary-authority/bracknell-forest","","","Social Care Activities","Social Care Activities","Community Team for OP & People with a LTC","Contracted Services",29/03/2017 00:00:00,"6636352",1674.75,"BERKS HEALTHCARE NHS FOUNDATION TRUST"
"Bracknell Forest Council","http://opendatacommunities.org/id/unitary-authority/bracknell-forest","","","Social Care Activities","Social Care Activities","Community Team for OP & People with a LTC","Equipment - Purchase",28/04/2017 00:00:00,"6636605",531,"R & A HAINES BUILDING CONTRACTORS LTD"
"Bracknell Forest Council","http://opendatacommunities.org/id/unitary-authority/bracknell-forest","","","Business Support","Premises Development","CPIS Schemes Not Proceeding","Consultants Fees",02/05/2017 00:00:00,"6636138",6085,"FIELD SEYMOUR PARKES SOLICITORS"
"Bracknell Forest Council","http://opendatacommunities.org/id/unitary-authority/bracknell-forest","","","NHS Health Check Programme","NHS Health Check Programme","GP Health Checks","Contracted Services",12/04/2017 00:00:00,"6634242",5777,"BALMORE PARK SURGERY"
"Bracknell Forest Council","http://opendatacommunities.org/id/unitary-authority/bracknell-forest","","","NHS Health Check Programme","NHS Health Check Programme","GP Health Checks","Contracted Services",10/04/2017 00:00:00,"6634244",11227.5,"LANGLEY HEALTH CENTRE"
"Bracknell Forest Council","http://opendatacommunities.org/id/unitary-authority/bracknell-forest","","","NHS Health Check Programme","NHS Health Check Programme","GP Health Checks","Contracted Services",05/04/2017 00:00:00,"6634235",6056,"THATCHAM MEDICAL PRACTICE"
"Bracknell Forest Council","http://opendatacommunities.org/id/unitary-authority/bracknell-forest","","","Management and Support Services - CYPL","Schools Block Centrally Managed","Educational Attainment for Looked After Children","Consultants Fees",05/04/2017 00:00:00,"6634460",1776.39,"TEACHING PERSONNEL LTD"
"Bracknell Forest Council","http://opendatacommunities.org/id/unitary-authority/bracknell-forest","","","Management and Support Services - CYPL","De-Delegated Expenditure","Home to School Transport","Coach Fares - Home/School Transport",13/04/2017 00:00:00,"6634471",52000,"WHITE BUS SERVICES"
"Bracknell Forest Council","http://opendatacommunities.org/id/unitary-authority/bracknell-forest","","","Miscellaneous Public Health Services","Accident Prevention","Prevention and Self Care BCF","Contracted Services",28/04/2017 00:00:00,"6636436",6250,"SOLUTIONS 4 HEALTH LTD"
"Bracknell Forest Council","http://opendatacommunities.org/id/unitary-authority/bracknell-forest","","","Business Support","Premises Development","Waterside Park - Building C","Electricity",06/04/2017 00:00:00,"6634111",1898.68,"SOUTHERN ELECTRIC PLC"
"Bracknell Forest Council","http://opendatacommunities.org/id/unitary-authority/bracknell-forest","","","NHS Health Check Programme","NHS Health Check Programme","GP Health Checks","Contracted Services",12/04/2017 00:00:00,"6634113",1500,"FARNHAM ROAD PRACTICE"
"Bracknell Forest Council","http://opendatacommunities.org/id/unitary-authority/bracknell-forest","","","NHS Health Check Programme","NHS Health Check Programme","GP Health Checks","Contracted Services",05/04/2017 00:00:00,"6634279",5369.5,"LINDEN MEDICAL CENTRE"
"Bracknell Forest Council","http://opendatacommunities.org/id/unitary-authority/bracknell-forest","","","NHS Health Check Programme","NHS Health Check Programme","GP Health Checks","Contracted Services",05/04/2017 00:00:00,"6634280",6622.5,"WESTERN ELMS SURGERY"
"Bracknell Forest Council","http://opendatacommunities.org/id/unitary-authority/bracknell-forest","","","Central Support Services - COF","Finance","Internal Audit","Wokingham DC",25/04/2017 00:00:00,"6635375",2541,"WOKINGHAM BOROUGH COUNCIL"
"Bracknell Forest Council","http://opendatacommunities.org/id/unitary-authority/bracknell-forest","","","Central Support Services - COF","Finance","Insurance Management","Consultants Fees",27/04/2017 00:00:00,"6635440",8804.2,"RUSHTON INTERNATIONAL"
"Bracknell Forest Council","http://opendatacommunities.org/id/unitary-authority/bracknell-forest","","","Management and Support Services - CYPL","De-Delegated Expenditure","HTS Interim","Taxi Fares - Home/School Transport",30/04/2017 00:00:00,"6635871",3691,"JJM TAXIS & ZULU CARS LTD"
"Bracknell Forest Council","http://opendatacommunities.org/id/unitary-authority/bracknell-forest","","","Management and Support Services - CYPL","De-Delegated Expenditure","HTS Interim","Taxi Fares - Home/School Transport",30/04/2017 00:00:00,"6635871",2558,"JJM TAXIS & ZULU CARS LTD"
"Bracknell Forest Council","http://opendatacommunities.org/id/unitary-authority/bracknell-forest","","","Recreation, Sports and Leisure","Golf Courses","Leisure DSO - Downshire Golf Shop","Cost of Goods Sold",05/04/2017 00:00:00,"6636181",560,"MOTOCADDY LTD"
"Bracknell Forest Council","http://opendatacommunities.org/id/unitary-authority/bracknell-forest","","","Recreation, Sports and Leisure","Golf Courses","Leisure DSO - Downshire Golf Shop","Cost of Goods Sold",13/02/2017 00:00:00,"6636185",2021.21,"ACUSHNET EUROPE LTD"
"Bracknell Forest Council","http://opendatacommunities.org/id/unitary-authority/bracknell-forest","","","Recreation, Sports and Leisure","Golf Courses","Leisure DSO - Downshire Catering","Cost of Goods - Bar",27/04/2017 00:00:00,"6636194",1181.4,"MATTHEW CLARK WHOLESALE"
"Bracknell Forest Council","http://opendatacommunities.org/id/unitary-authority/bracknell-forest","","","Recreation, Sports and Leisure","Golf Courses","Leisure DSO - Downshire Catering","Cost of Goods - Bar",11/04/2017 00:00:00,"6636196",1230.79,"MATTHEW CLARK WHOLESALE"
"Bracknell Forest Council","http://opendatacommunities.org/id/unitary-authority/bracknell-forest","","","Recreation, Sports and Leisure","Golf Courses","Leisure DSO - Downshire Catering","Cost of Goods - Bar",06/04/2017 00:00:00,"6636197",710.57,"MATTHEW CLARK WHOLESALE"
"Bracknell Forest Council","http://opendatacommunities.org/id/unitary-authority/bracknell-forest","","","Recreation, Sports and Leisure","Golf Courses","Leisure DSO - Downshire Catering","Equipment - R&M",12/04/2017 00:00:00,"6636199",1095,"CLEANA KITCHENS"
"Bracknell Forest Council","http://opendatacommunities.org/id/unitary-authority/bracknell-forest","","","Management and Support Services - CYPL","De-Delegated Expenditure","HTS Interim","Taxi Fares - Home/School Transport",30/04/2017 00:00:00,"6635871",3975.25,"JJM TAXIS & ZULU CARS LTD"
"Bracknell Forest Council","http://opendatacommunities.org/id/unitary-authority/bracknell-forest","","","Management and Support Services - CYPL","De-Delegated Expenditure","HTS Interim","Taxi Fares - Home/School Transport",30/04/2017 00:00:00,"6635871",5040,"JJM TAXIS & ZULU CARS LTD"
"Bracknell Forest Council","http://opendatacommunities.org/id/unitary-authority/bracknell-forest","","","Management and Support Services - CYPL","De-Delegated Expenditure","HTS Interim","Taxi Fares - Home/School Transport",01/05/2017 00:00:00,"6635817",6495,"BERKSHIRE EDUCATION TRAVEL"
"Bracknell Forest Council","http://opendatacommunities.org/id/unitary-authority/bracknell-forest","","","Management and Support Services - CYPL","De-Delegated Expenditure","HTS Interim","Taxi Fares - Home/School Transport",01/05/2017 00:00:00,"6635816",6195,"BERKSHIRE EDUCATION TRAVEL"
"Bracknell Forest Council","http://opendatacommunities.org/id/unitary-authority/bracknell-forest","","","Management and Support Services - CYPL","De-Delegated Expenditure","HTS Interim","Taxi Fares - Home/School Transport",01/05/2017 00:00:00,"6635813",5760,"BERKSHIRE EDUCATION TRAVEL"
"Bracknell Forest Council","http://opendatacommunities.org/id/unitary-authority/bracknell-forest","","","Management and Support Services - CYPL","De-Delegated Expenditure","HTS Interim","Taxi Fares - Home/School Transport",01/05/2017 00:00:00,"6635810",4435,"BERKSHIRE EDUCATION TRAVEL"
"Bracknell Forest Council","http://opendatacommunities.org/id/unitary-authority/bracknell-forest","","","Sure Start Children's Centres","Centrally managed expenditure - children's centres","Children's Centre Co-ordination","Other Fees for Bought-in Services",20/04/2017 00:00:00,"6635358",4450,"CITIZENS ADVICE BUREAU"
"Bracknell Forest Council","http://opendatacommunities.org/id/unitary-authority/bracknell-forest","","","Management and Support Services - CYPL","Unallocated High Needs Related Expenditure","Mainstream - Element 3 top up non BFC pre 16","Other Local Authorities",06/04/2017 00:00:00,"6634407",11333.33,"FOREST BRIDGE SCHOOL"
"Bracknell Forest Council","http://opendatacommunities.org/id/unitary-authority/bracknell-forest","","","Environment, Safety & Routine Maintenance","Routine Repairs (Other Roads)","Patching & Minor Repairs - Other Roads","Contracted Services",28/04/2017 00:00:00,"6636148",594501.36,"RINGWAY INFRASTRUCTURE SERVICES LTD"
"Bracknell Forest Council","http://opendatacommunities.org/id/unitary-authority/bracknell-forest","","","Management and Support Services - CYPL","De-Delegated Expenditure","HTS Interim","Taxi Fares - Home/School Transport",30/04/2017 00:00:00,"6635871",3859,"JJM TAXIS & ZULU CARS LTD"
"Bracknell Forest Council","http://opendatacommunities.org/id/unitary-authority/bracknell-forest","","","Recreation, Sports and Leisure","Indoor Sports & Recreation Facilities","Leisure Sites General","Consultants Fees",30/05/2017 00:00:00,"6637311",1800,"RIGHT DIRECTIONS"
"Bracknell Forest Council","http://opendatacommunities.org/id/unitary-authority/bracknell-forest","","","Other Education and Community Budget","Service strategy and other education functions","Information Technology - Section","Computer Software",21/03/2017 00:00:00,"6634809",10637.1,"SOFTCAT LTD"
"Bracknell Forest Council","http://opendatacommunities.org/id/unitary-authority/bracknell-forest","","","NHS Health Check Programme","NHS Health Check Programme","GP Health Checks","Contracted Services",06/04/2017 00:00:00,"6634237",4530,"SOUTH MEADOW & DEDWORTH SURGERIES"
"Bracknell Forest Council","http://opendatacommunities.org/id/unitary-authority/bracknell-forest","","","Flood Defence & Land Drainage","Flood Defence & Land Drainage","Sustainable Urban Drainage Systems","Computer Software",30/03/2017 00:00:00,"6634133",8695,"XP SOLUTIONS SOFTWARE LIMITED"
"Bracknell Forest Council","http://opendatacommunities.org/id/unitary-authority/bracknell-forest","","","NHS Health Check Programme","NHS Health Check Programme","GP Health Checks","Contracted Services",26/06/2017 00:00:00,"6639256",4043,"THE DOWNLAND PRACTICE"
"Bracknell Forest Council","http://opendatacommunities.org/id/unitary-authority/bracknell-forest","","","NHS Health Check Programme","NHS Health Check Programme","GP Health Checks","Contracted Services",26/06/2017 00:00:00,"6639257",4202.5,"THE DOWNLAND PRACTICE"
"Bracknell Forest Council","http://opendatacommunities.org/id/unitary-authority/bracknell-forest","","","NHS Health Check Programme","NHS Health Check Programme","GP Health Checks","Contracted Services",07/02/2017 00:00:00,"6639265",2507.5,"THE RINGMEAD MEDICAL PRACTICE"
"Bracknell Forest Council","http://opendatacommunities.org/id/unitary-authority/bracknell-forest","","","Open Spaces","Countryside Recreation & Management","Countryside Sites - Maintenance","Contracted Services",05/04/2017 00:00:00,"6634136",1240,"K SMITH FIELD SERVICES"
"Bracknell Forest Council","http://opendatacommunities.org/id/unitary-authority/bracknell-forest","","","Cemeteries, Crematoria & Mortuary Services","Cemeteries & Crematorium","Easthampstead Park Cemetery & Crematorium","R&M - Reactive",04/05/2017 00:00:00,"6636209",600,"P A TREE CARE LTD"
"Bracknell Forest Council","http://opendatacommunities.org/id/unitary-authority/bracknell-forest","","","Services for Young People","Universal services for young people","Youth Training and Curriculm Development","Training Costs",15/05/2017 00:00:00,"6636741",860,"DRUGS TRAINING .COM"
"Bracknell Forest Council","http://opendatacommunities.org/id/unitary-authority/bracknell-forest","","","Management and Support Services - CYPL","Schools Block Centrally Managed","Educational Attainment for Looked After Children","Consultants Fees",03/05/2017 00:00:00,"6636724",626.85,"TEACHING PERSONNEL LTD"
"Bracknell Forest Council","http://opendatacommunities.org/id/unitary-authority/bracknell-forest","","","Management and Support Services - CYPL","Schools Block Centrally Managed","Educational Attainment for Looked After Children","Consultants Fees",10/05/2017 00:00:00,"6636726",1795.45,"TEACHING PERSONNEL LTD"
"Bracknell Forest Council","http://opendatacommunities.org/id/unitary-authority/bracknell-forest","","","Recreation, Sports and Leisure","Golf Courses","Leisure DSO - Downshire Golf Shop","Cost of Goods Sold",05/01/2017 00:00:00,"6636221",832.9,"ACUSHNET EUROPE LTD"
"Bracknell Forest Council","http://opendatacommunities.org/id/unitary-authority/bracknell-forest","","","Open Spaces","Countryside Recreation & Management","Countryside Sites General","Other Fees for Bought-in Services",23/04/2017 00:00:00,"6634688",3750,"GRC BAILIFFS"
"Bracknell Forest Council","http://opendatacommunities.org/id/unitary-authority/bracknell-forest","","","Recreation, Sports and Leisure","Golf Courses","Leisure DSO - Downshire Golf Shop","Cost of Goods Sold",13/02/2017 00:00:00,"6636230",1096.33,"ACUSHNET EUROPE LTD"
"Bracknell Forest Council","http://opendatacommunities.org/id/unitary-authority/bracknell-forest","","","Recreation, Sports and Leisure","Golf Courses","Leisure DSO - Downshire Golf Shop","Cost of Goods Sold",14/02/2017 00:00:00,"6636231",567.57,"ACUSHNET EUROPE LTD"
"Bracknell Forest Council","http://opendatacommunities.org/id/unitary-authority/bracknell-forest","","","Recreation, Sports and Leisure","Golf Courses","Leisure DSO - Downshire Golf Shop","Cost of Goods Sold",05/01/2017 00:00:00,"6636234",952.55,"ACUSHNET EUROPE LTD"
"Bracknell Forest Council","http://opendatacommunities.org/id/unitary-authority/bracknell-forest","","","Transport Planning, Policy & Strategy","Transport Policy, Planning & Strategy","Transportation Planning","Other Fees for Bought-in Services",16/05/2017 00:00:00,"6636750",675,"TRACSIS TRAFFIC DATA LIMITED"
"Bracknell Forest Council","http://opendatacommunities.org/id/unitary-authority/bracknell-forest","","","Services for Young People","Targeted services for young people","NEET Reduction Funding","Consultants Fees",01/05/2017 00:00:00,"6636723",4775,"BLUE HORIZONS LTD"
"Bracknell Forest Council","http://opendatacommunities.org/id/unitary-authority/bracknell-forest","","","Central Support Services - COF","Finance","Insurance Premiums Holding Account","Insurance Premiums",21/06/2017 00:00:00,"6639505",85714.2,"ARTHUR J GALLAGHER (UK) LIMITED"
"Bracknell Forest Council","http://opendatacommunities.org/id/unitary-authority/bracknell-forest","","","Central Support Services - COF","Finance","Insurance Premiums Holding Account","Insurance Premiums",21/06/2017 00:00:00,"6639506",50000.5,"ARTHUR J GALLAGHER (UK) LIMITED"
"Bracknell Forest Council","http://opendatacommunities.org/id/unitary-authority/bracknell-forest","","","Central Support Services - COF","Finance","Insurance Premiums Holding Account","Insurance Premiums",21/06/2017 00:00:00,"6639507",7195.1,"ARTHUR J GALLAGHER (UK) LIMITED"
"Bracknell Forest Council","http://opendatacommunities.org/id/unitary-authority/bracknell-forest","","","Central Support Services - COF","Finance","Insurance Premiums Holding Account","Insurance Premiums",21/06/2017 00:00:00,"6639508",27870.7,"ARTHUR J GALLAGHER (UK) LIMITED"
"Bracknell Forest Council","http://opendatacommunities.org/id/unitary-authority/bracknell-forest","","","Development Control","Applications - Development Control","Development Control","Consultants Fees",12/04/2017 00:00:00,"6635044",726.42,"KIRKHAM LANDSCAPE PLANNING CONSULTANTS"
"Bracknell Forest Council","http://opendatacommunities.org/id/unitary-authority/bracknell-forest","","","Social Care Activities","Social Care Activities","Community Team for OP & People with a LTC","Other Fees for Bought-in Services",31/03/2017 00:00:00,"6634952",4500,"THE OT PRACTICE LTD"
"Bracknell Forest Council","http://opendatacommunities.org/id/unitary-authority/bracknell-forest","","","Social Care Activities","Social Care Activities","Community Team for OP & People with a LTC","Consultants Fees",28/02/2017 00:00:00,"6634951",5850,"THE OT PRACTICE LTD"
"Bracknell Forest Council","http://opendatacommunities.org/id/unitary-authority/bracknell-forest","","","Social Care Activities","Social Care Activities","Community Team for OP & People with a LTC","Other Support to Clients",25/04/2017 00:00:00,"6634789",637.4,"Redact Personal Info"
"Bracknell Forest Council","http://opendatacommunities.org/id/unitary-authority/bracknell-forest","","","Registration of Electors","Registration of Electors","Electoral Registration","Equipment - Purchase",15/03/2017 00:00:00,"6634144",3398,"TWOFOLD LIMITED"
"Bracknell Forest Council","http://opendatacommunities.org/id/unitary-authority/bracknell-forest","","","Other Education and Community Budget","Service strategy and other education functions","Information Technology - Section","Subscriptions",23/05/2017 00:00:00,"6639115",4920,"REDSTOR LTD"
"Bracknell Forest Council","http://opendatacommunities.org/id/unitary-authority/bracknell-forest","","","Recreation, Sports and Leisure","Golf Courses","Leisure DSO - Downshire Golf Shop","Cost of Goods Sold",02/02/2017 00:00:00,"6639132",663.2,"SRIXON"
"Bracknell Forest Council","http://opendatacommunities.org/id/unitary-authority/bracknell-forest","","","NHS Health Check Programme","NHS Health Check Programme","GP Health Checks","Contracted Services",19/05/2017 00:00:00,"6637060",2462,"SOUTH READING SURGERY"
"Bracknell Forest Council","http://opendatacommunities.org/id/unitary-authority/bracknell-forest","","","Youth Justice","Youth Justice - Direct","YJB Core Funding","Training Costs",18/05/2017 00:00:00,"6636802",900,"HODGSONS CONSULTING SERVICES T/A SILVER BULLET"
"Bracknell Forest Council","http://opendatacommunities.org/id/unitary-authority/bracknell-forest","","","NHS Health Check Programme","NHS Health Check Programme","GP Health Checks","Contracted Services",27/04/2017 00:00:00,"6636801",1909.5,"UNIVERSITY OF READING MEDICAL PRACTICE"
"Bracknell Forest Council","http://opendatacommunities.org/id/unitary-authority/bracknell-forest","","","NHS Health Check Programme","NHS Health Check Programme","GP Health Checks","Contracted Services",04/05/2017 00:00:00,"6636079",9719,"STRAWBERRY HILL MEDICAL CENTRE"
"Bracknell Forest Council","http://opendatacommunities.org/id/unitary-authority/bracknell-forest","","","NHS Health Check Programme","NHS Health Check Programme","GP Health Checks","Contracted Services",11/04/2017 00:00:00,"6634844",3903,"WOODLEY CENTRE SURGERY"
"Bracknell Forest Council","http://opendatacommunities.org/id/unitary-authority/bracknell-forest","","","NHS Health Check Programme","NHS Health Check Programme","GP Health Checks","Contracted Services",21/04/2017 00:00:00,"6634825",2761,"THE LODDON VALE PRACTICE"
"Bracknell Forest Council","http://opendatacommunities.org/id/unitary-authority/bracknell-forest","","","NHS Health Check Programme","NHS Health Check Programme","GP Health Checks","Contracted Services",13/04/2017 00:00:00,"6634826",868,"Redact Personal Info"
"Bracknell Forest Council","http://opendatacommunities.org/id/unitary-authority/bracknell-forest","","","Obesity","Child obesity","Weight Management - Childrens (Berks)","Contracted Services",24/04/2017 00:00:00,"6634830",4000,"SOLUTIONS 4 HEALTH LTD"
"Bracknell Forest Council","http://opendatacommunities.org/id/unitary-authority/bracknell-forest","","","Business Support","Premises Development","Waterside Park - Building B","Other Fees for Bought-in Services",28/04/2017 00:00:00,"6635184",985,"BENVILLE AND MARSH LTD"
"Bracknell Forest Council","http://opendatacommunities.org/id/unitary-authority/bracknell-forest","","","Recreation, Sports and Leisure","Indoor Sports & Recreation Facilities","Leisure Sites General","R&M - Reactive",18/04/2017 00:00:00,"6634888",5836.75,"NORTEK GLOBAL HVAC (UK) LIMITED"
"Bracknell Forest Council","http://opendatacommunities.org/id/unitary-authority/bracknell-forest","","","Social Care Activities","Social Care Activities","Community Team for OP & People with a LTC","Contracted Services",18/04/2017 00:00:00,"6639122",690,"VOYAGE LIMITED"
"Bracknell Forest Council","http://opendatacommunities.org/id/unitary-authority/bracknell-forest","","","Social Care Activities","Social Care Activities","Community Team for OP & People with a LTC","Contracted Services",15/05/2017 00:00:00,"6639123",690,"VOYAGE LIMITED"
"Bracknell Forest Council","http://opendatacommunities.org/id/unitary-authority/bracknell-forest","","","Recreation, Sports and Leisure","Golf Courses","Leisure DSO - Downshire Golf Shop","Cost of Goods Sold",25/01/2017 00:00:00,"6635511",2667.02,"TAYLOR MADE GOLF LTD"
"Bracknell Forest Council","http://opendatacommunities.org/id/unitary-authority/bracknell-forest","","","Recreation, Sports and Leisure","Golf Courses","Leisure DSO - Downshire Golf Shop","Cost of Goods Sold",31/08/2016 00:00:00,"6635520",2841.21,"TAYLOR MADE GOLF LTD"
"Bracknell Forest Council","http://opendatacommunities.org/id/unitary-authority/bracknell-forest","","","Central Support Services - COF","Legal","Legal Services","Recruitment Expenses",04/05/2017 00:00:00,"6635512",1194,"AMBLEGLOW LTD"
"Bracknell Forest Council","http://opendatacommunities.org/id/unitary-authority/bracknell-forest","","","Recreation, Sports and Leisure","Golf Courses","Leisure DSO - Downshire Golf Shop","Cost of Goods Sold",02/03/2017 00:00:00,"6635529",828.63,"CALLAWAY GOLF EUROPE LTD"
"Bracknell Forest Council","http://opendatacommunities.org/id/unitary-authority/bracknell-forest","","","Precepts & Levies","Levies","Environment Agency (Flood Defence)","External Agency Services",01/05/2017 00:00:00,"6635036",25283.5,"ENVIRONMENT AGENCY"
"Bracknell Forest Council","http://opendatacommunities.org/id/unitary-authority/bracknell-forest","","","Homelessness","Directly with a Private Sector Landlord","Yorktown Road","Equipment - Purchase",16/04/2017 00:00:00,"6638111",629.83,"ARGOS BUSINESS"
"Bracknell Forest Council","http://opendatacommunities.org/id/unitary-authority/bracknell-forest","","","Recreation, Sports and Leisure","Golf Courses","Leisure DSO - Downshire Golf Shop","Cost of Goods Sold",28/04/2017 00:00:00,"6637325",600.6,"BRAND FUSION INTERNATIONAL LTD"
"Bracknell Forest Council","http://opendatacommunities.org/id/unitary-authority/bracknell-forest","","","Interest & Investment Income","Interest & Investment Income","Other Interest","Interest Paid",15/06/2017 00:00:00,"6638544",5923.29,"GREATER LONDON AUTHORITY"
"Bracknell Forest Council","http://opendatacommunities.org/id/unitary-authority/bracknell-forest","","","Commissioning & Service Delivery","Commissioning & Service Delivery","Property Maintenance","Consultants Fees",14/06/2017 00:00:00,"6638524",2550,"LIFE ENVIRONMENTAL SERVICES LTD"
"Bracknell Forest Council","http://opendatacommunities.org/id/unitary-authority/bracknell-forest","","","Recreation, Sports and Leisure","Golf Courses","Leisure DSO - Downshire Golf Shop","Cost of Goods Sold",03/02/2017 00:00:00,"6635510",886.9,"THE MASTERS GOLF COMPANY"
"Bracknell Forest Council","http://opendatacommunities.org/id/unitary-authority/bracknell-forest","","","Culture and Heritage","Heritage Museums & Galleries","The Look Out Catering","R&M - Service Contracts",26/04/2017 00:00:00,"6637331",1755,"HILTON CROFT LTD"
"Bracknell Forest Council","http://opendatacommunities.org/id/unitary-authority/bracknell-forest","","","Management and Support Services - CYPL","Unallocated High Needs Related Expenditure","Mainstream - Element 3 top up non BFC pre 16","Other Local Authorities",06/04/2017 00:00:00,"6634408",7833.33,"FOREST BRIDGE SCHOOL"
"Bracknell Forest Council","http://opendatacommunities.org/id/unitary-authority/bracknell-forest","","","Management and Support Services - CYPL","Unallocated High Needs Related Expenditure","Mainstream - Element 3 top up non BFC pre 16","Other Local Authorities",06/04/2017 00:00:00,"6634409",11333.33,"FOREST BRIDGE SCHOOL"
"Bracknell Forest Council","http://opendatacommunities.org/id/unitary-authority/bracknell-forest","","","Management and Support Services - CYPL","Unallocated High Needs Related Expenditure","Mainstream - Element 3 top up non BFC pre 16","Wokingham DC",03/04/2017 00:00:00,"6634414",524,"ST CRISPIN'S SCHOOL"
"Bracknell Forest Council","http://opendatacommunities.org/id/unitary-authority/bracknell-forest","","","Homelessness","Accommodation within own Stock","Council Own Properties","R&M - Reactive",21/11/2016 00:00:00,"6635086",820,"BERKSHIRE MECHANICAL SERVICES"
"Bracknell Forest Council","http://opendatacommunities.org/id/unitary-authority/bracknell-forest","","","Recreation, Sports and Leisure","Golf Courses","Leisure DSO - Downshire Golf Shop","Cost of Goods Sold",19/05/2017 00:00:00,"6637357",526,"SKECHERS USA LTD"
"Bracknell Forest Council","http://opendatacommunities.org/id/unitary-authority/bracknell-forest","","","Commissioning & Service Delivery","Commissioning & Service Delivery","BCF - Programme Support","Consultants Fees",30/06/2017 00:00:00,"6639249",3825,"BADGERS INC LTD"
"Bracknell Forest Council","http://opendatacommunities.org/id/unitary-authority/bracknell-forest","","","Recreation, Sports and Leisure","Golf Courses","Golf Course Management & Administration","R&M - Reactive",01/07/2017 00:00:00,"6639248",597.87,"HSL"
"Bracknell Forest Council","http://opendatacommunities.org/id/unitary-authority/bracknell-forest","","","Homelessness","Accommodation within own Stock","Council Own Properties","R&M - Reactive",21/11/2016 00:00:00,"6634966",2190,"BERKSHIRE MECHANICAL SERVICES"
"Bracknell Forest Council","http://opendatacommunities.org/id/unitary-authority/bracknell-forest","","","Management and Support Services - CYPL","Schools Block Centrally Managed","Educational Attainment for Looked After Children","Consultants Fees",31/03/2017 00:00:00,"6634597",2697,"WEST BERKSHIRE COUNCIL"
"Bracknell Forest Council","http://opendatacommunities.org/id/unitary-authority/bracknell-forest","","","Management and Support Services - CYPL","Schools Block Centrally Managed","Educational Attainment for Looked After Children","Consultants Fees",24/02/2017 00:00:00,"6634598",2325,"WEST BERKSHIRE COUNCIL"
"Bracknell Forest Council","http://opendatacommunities.org/id/unitary-authority/bracknell-forest","","","Recreation, Sports and Leisure","Golf Courses","Leisure DSO - Downshire Golf Shop","Cost of Goods Sold",03/04/2017 00:00:00,"6634613",2168.5,"SKECHERS USA LTD"
"Bracknell Forest Council","http://opendatacommunities.org/id/unitary-authority/bracknell-forest","","","Recreation, Sports and Leisure","Golf Courses","Leisure DSO - Downshire Golf Shop","Cost of Goods Sold",01/02/2017 00:00:00,"6634614",2166.69,"PING EUROPE LTD"
"Bracknell Forest Council","http://opendatacommunities.org/id/unitary-authority/bracknell-forest","","","Recreation, Sports and Leisure","Golf Courses","Leisure DSO - Downshire Golf Shop","Cost of Goods Sold",07/04/2017 00:00:00,"6634615",818.64,"PERRY ELLIS EUROPE LIMITED"
"Bracknell Forest Council","http://opendatacommunities.org/id/unitary-authority/bracknell-forest","","","Recreation, Sports and Leisure","Golf Courses","Leisure DSO - Downshire Golf Shop","Cost of Goods Sold",03/04/2017 00:00:00,"6634616",2269.6,"UNDER ARMOUR EUROPE"
"Bracknell Forest Council","http://opendatacommunities.org/id/unitary-authority/bracknell-forest","","","Recreation, Sports and Leisure","Golf Courses","Leisure DSO - Downshire Golf Shop","Cost of Goods Sold",03/04/2017 00:00:00,"6634599",589.5,"SKECHERS USA LTD"
"Bracknell Forest Council","http://opendatacommunities.org/id/unitary-authority/bracknell-forest","","","Recreation, Sports and Leisure","Golf Courses","Leisure DSO - Downshire Golf Shop","Cost of Goods Sold",15/02/2017 00:00:00,"6634602",1433.58,"PING EUROPE LTD"
"Bracknell Forest Council","http://opendatacommunities.org/id/unitary-authority/bracknell-forest","","","Recreation, Sports and Leisure","Golf Courses","Leisure DSO - Downshire Golf Shop","Cost of Goods Sold",15/02/2017 00:00:00,"6634603",612.41,"PING EUROPE LTD"
"Bracknell Forest Council","http://opendatacommunities.org/id/unitary-authority/bracknell-forest","","","Recreation, Sports and Leisure","Golf Courses","Leisure DSO - Downshire Golf Shop","Cost of Goods Sold",13/02/2017 00:00:00,"6634606",663.06,"CALLAWAY GOLF EUROPE LTD"
"Bracknell Forest Council","http://opendatacommunities.org/id/unitary-authority/bracknell-forest","","","Social Care Activities","Social Care Activities","Community Team for OP & People with a LTC","Other Fees for Bought-in Services",31/05/2017 00:00:00,"6639310",9900,"THE OT PRACTICE LTD"
"Bracknell Forest Council","http://opendatacommunities.org/id/unitary-authority/bracknell-forest","","","Social Care Activities","Social Care Activities","Community Team for OP & People with a LTC","Other Fees for Bought-in Services",31/05/2017 00:00:00,"6639311",1350,"THE OT PRACTICE LTD"
"Bracknell Forest Council","http://opendatacommunities.org/id/unitary-authority/bracknell-forest","","","Open Spaces","Countryside Recreation & Management","Rights of Way Maintenance","R&M - Planned",12/06/2017 00:00:00,"6638493",2426.06,"HEATHLAND MANAGEMENT SERVICES"
"Bracknell Forest Council","http://opendatacommunities.org/id/unitary-authority/bracknell-forest","","","Management and Support Services - CYPL","De-Delegated Expenditure","Home to School Transport","Taxi Fares - Home/School Transport",01/05/2017 00:00:00,"6637587",625,"BERKSHIRE EDUCATION TRAVEL"
"Bracknell Forest Council","http://opendatacommunities.org/id/unitary-authority/bracknell-forest","","","Management and Support Services - CYPL","De-Delegated Expenditure","HTS Interim","Taxi Fares - Home/School Transport",29/05/2017 00:00:00,"6637589",6650,"BERKSHIRE EDUCATION TRAVEL"
"Bracknell Forest Council","http://opendatacommunities.org/id/unitary-authority/bracknell-forest","","","Management and Support Services - CYPL","De-Delegated Expenditure","HTS Interim","Taxi Fares - Home/School Transport",29/05/2017 00:00:00,"6637589",1860,""
"Bracknell Forest Council","http://opendatacommunities.org/id/unitary-authority/bracknell-forest","","","Management and Support Services - CYPL","De-Delegated Expenditure","HTS Interim","Taxi Fares - Home/School Transport",29/05/2017 00:00:00,"6637593",13655,"BERKSHIRE EDUCATION TRAVEL"
"Bracknell Forest Council","http://opendatacommunities.org/id/unitary-authority/bracknell-forest","","","Management and Support Services - CYPL","De-Delegated Expenditure","HTS Interim","Taxi Fares - Home/School Transport",29/05/2017 00:00:00,"6637594",12445,"BERKSHIRE EDUCATION TRAVEL"
"Bracknell Forest Council","http://opendatacommunities.org/id/unitary-authority/bracknell-forest","","","Management and Support Services - CYPL","De-Delegated Expenditure","HTS Interim","Taxi Fares - Home/School Transport",29/05/2017 00:00:00,"6637594",950,""
"Bracknell Forest Council","http://opendatacommunities.org/id/unitary-authority/bracknell-forest","","","Management and Support Services - CYPL","De-Delegated Expenditure","HTS Interim","Taxi Fares - Home/School Transport",31/05/2017 00:00:00,"6637601",8099,"JJM TAXIS & ZULU CARS LTD"
"Bracknell Forest Council","http://opendatacommunities.org/id/unitary-authority/bracknell-forest","","","Management and Support Services - CYPL","De-Delegated Expenditure","HTS Interim","Taxi Fares - Home/School Transport",31/05/2017 00:00:00,"6637601",7550.9,"JJM TAXIS & ZULU CARS LTD"
"Bracknell Forest Council","http://opendatacommunities.org/id/unitary-authority/bracknell-forest","","","Management and Support Services - CYPL","De-Delegated Expenditure","HTS Interim","Taxi Fares - Home/School Transport",31/05/2017 00:00:00,"6637601",5985,"JJM TAXIS & ZULU CARS LTD"
"Bracknell Forest Council","http://opendatacommunities.org/id/unitary-authority/bracknell-forest","","","Management and Support Services - CYPL","De-Delegated Expenditure","HTS Interim","Taxi Fares - Home/School Transport",31/05/2017 00:00:00,"6637601",7934,"JJM TAXIS & ZULU CARS LTD"
"Bracknell Forest Council","http://opendatacommunities.org/id/unitary-authority/bracknell-forest","","","Management and Support Services - CYPL","De-Delegated Expenditure","HTS Interim","Taxi Fares - Home/School Transport",31/05/2017 00:00:00,"6637601",10080,"JJM TAXIS & ZULU CARS LTD"
"Bracknell Forest Council","http://opendatacommunities.org/id/unitary-authority/bracknell-forest","","","Homelessness","Accommodation within own Stock","Council Own Properties","R&M - Reactive",13/04/2017 00:00:00,"6637611",2495,"PREMIER DECORATING"
"Bracknell Forest Council","http://opendatacommunities.org/id/unitary-authority/bracknell-forest","","","Cemeteries, Crematoria & Mortuary Services","Cemeteries & Crematorium","Easthampstead Park Cemetery & Crematorium","Cost of Goods Sold",12/04/2017 00:00:00,"6637378",654,"TELESHORE UK LTD"
"Bracknell Forest Council","http://opendatacommunities.org/id/unitary-authority/bracknell-forest","","","Central Support Services - COF","Construction and Property","Easthampstead House","R&M - Reactive",31/05/2017 00:00:00,"6637373",900,"KRP CONSULTING ENGINEERS LTD"
"Bracknell Forest Council","http://opendatacommunities.org/id/unitary-authority/bracknell-forest","","","Mandated 0-5 Childrens Services (Bracknell)","Mandated 0-5 Childrens Services (Bracknell)","Public Health Childrens 0-5 Services (Mandatory)","Contracted Services",12/05/2017 00:00:00,"6637055",103348.33,"BERKS HEALTHCARE NHS FOUNDATION TRUST"
"Bracknell Forest Council","http://opendatacommunities.org/id/unitary-authority/bracknell-forest","","","Commissioning & Service Delivery","Commissioning & Service Delivery","Adult Social Care Transformation Programme","Consultants Fees",31/05/2017 00:00:00,"6637030",8800,"SUE KERLEY CONSULTING LTD"
"Bracknell Forest Council","http://opendatacommunities.org/id/unitary-authority/bracknell-forest","","","Management and Support Services - CYPL","Schools Block Centrally Managed","Educational Attainment for Looked After Children","Consultants Fees",17/05/2017 00:00:00,"6637054",1700.5,"TEACHING PERSONNEL LTD"
"Bracknell Forest Council","http://opendatacommunities.org/id/unitary-authority/bracknell-forest","","","Economic Development","Economic Development","Economic Development","Subscriptions",09/05/2017 00:00:00,"6636708",10000,"THAMES VALLEY BERKSHIRE LOCAL ENTERPRISE"
"Bracknell Forest Council","http://opendatacommunities.org/id/unitary-authority/bracknell-forest","","","Culture and Heritage","Heritage Museums & Galleries","The Look Out Catering","Cost of Goods Sold",19/04/2017 00:00:00,"6635882",991.8,"P & H DIRECT VAN SALES LTD"
"Bracknell Forest Council","http://opendatacommunities.org/id/unitary-authority/bracknell-forest","","","Commissioning & Service Delivery","Commissioning & Service Delivery","Healthwatch","Contracted Services",30/04/2017 00:00:00,"6635518",5541,"THE ARK TRUST LTD"
"Bracknell Forest Council","http://opendatacommunities.org/id/unitary-authority/bracknell-forest","","","Central Support Services - COF","Finance","Insurance Premiums Holding Account","Insurance Premiums",31/03/2017 00:00:00,"6634618",11425.92,"ALLIANZ INSURANCE PLC"
"Bracknell Forest Council","http://opendatacommunities.org/id/unitary-authority/bracknell-forest","","","Central Support Services - COF","Finance","Insurance Premiums Holding Account","Insurance Premiums",31/03/2017 00:00:00,"6634618",2511.32,"ALLIANZ INSURANCE PLC"
"Bracknell Forest Council","http://opendatacommunities.org/id/unitary-authority/bracknell-forest","","","Management and Support Services - CYPL","De-Delegated Expenditure","Home to School Transport","Personal Transport Budgets",25/05/2017 00:00:00,"6634518",884.36,"Redact Personal Info"
"Bracknell Forest Council","http://opendatacommunities.org/id/unitary-authority/bracknell-forest","","","Management and Support Services - CYPL","De-Delegated Expenditure","Home to School Transport","Personal Transport Budgets",25/05/2017 00:00:00,"6634519",585.2,"Redact Personal Info"
"Bracknell Forest Council","http://opendatacommunities.org/id/unitary-authority/bracknell-forest","","","Recreation, Sports and Leisure","Golf Courses","Leisure DSO - Downshire Golf Shop","Cost of Goods Sold",17/02/2017 00:00:00,"6634171",678.36,"ACUSHNET EUROPE LTD"
"Bracknell Forest Council","http://opendatacommunities.org/id/unitary-authority/bracknell-forest","","","Recreation, Sports and Leisure","Golf Courses","Leisure DSO - Downshire Golf Shop","Cost of Goods Sold",25/01/2017 00:00:00,"6634160",2587.2,"ACUSHNET EUROPE LTD"
"Bracknell Forest Council","http://opendatacommunities.org/id/unitary-authority/bracknell-forest","","","Business Support","Premises Development","Longshot Lane  - Service Charges","R&M - Reactive",10/02/2017 00:00:00,"6634188",3250,"C F PLUMBING SERVICES LTD"
"Bracknell Forest Council","http://opendatacommunities.org/id/unitary-authority/bracknell-forest","","","Safeguarding Children and Young People's Services","Social Work","Administration Running Costs","Equipment - Purchase",18/04/2017 00:00:00,"6635158",736.4,"TWOFOLD LIMITED"
"Bracknell Forest Council","http://opendatacommunities.org/id/unitary-authority/bracknell-forest","","","Central Support Services - COF","Construction and Property","Easthampstead House","Security Systems",11/04/2017 00:00:00,"6635169",501,"ADT FIRE AND SECURITY"
"Bracknell Forest Council","http://opendatacommunities.org/id/unitary-authority/bracknell-forest","","","Adults (18-64)","Long Term Support - Community:Supported Living","MH Adults 18-64 Long Term Support - Community:Supported Living","Other Support to Clients",28/02/2017 00:00:00,"6634515",2344.84,"MOVING ON CARE MANAGEMENT LTD"
"Bracknell Forest Council","http://opendatacommunities.org/id/unitary-authority/bracknell-forest","","","Adults (18-64)","Long Term Support - Community:Supported Living","MH Adults 18-64 Long Term Support - Community:Supported Living","Other Support to Clients",28/02/2017 00:00:00,"6634516",2529.6,"MOVING ON CARE MANAGEMENT LTD"
"Bracknell Forest Council","http://opendatacommunities.org/id/unitary-authority/bracknell-forest","","","Business Support","Premises Development","Longshot Lane Industrial Estate","R&M - Reactive",28/04/2017 00:00:00,"6635173",1695,"BENVILLE AND MARSH LTD"
"Bracknell Forest Council","http://opendatacommunities.org/id/unitary-authority/bracknell-forest","","","Central Support Services - COF","Finance","Insurance Premiums Holding Account","Insurance Premiums",23/03/2017 00:00:00,"6635254",2728.26,"ZURICH MUNICIPAL"
"Bracknell Forest Council","http://opendatacommunities.org/id/unitary-authority/bracknell-forest","","","Management and Support Services - CYPL","De-Delegated Expenditure","Home to School Transport","Personal Transport Budgets",29/06/2017 00:00:00,"6635248",585.2,"Redact Personal Info"
"Bracknell Forest Council","http://opendatacommunities.org/id/unitary-authority/bracknell-forest","","","Management and Support Services - CYPL","De-Delegated Expenditure","Home to School Transport","Personal Transport Budgets",29/06/2017 00:00:00,"6635250",884.36,"Redact Personal Info"
"Bracknell Forest Council","http://opendatacommunities.org/id/unitary-authority/bracknell-forest","","","Central Support Services - COF","Finance","Internal Audit","TIAA  ICT Audit",31/03/2017 00:00:00,"6635214",5200,"TIAA LTD"
"Bracknell Forest Council","http://opendatacommunities.org/id/unitary-authority/bracknell-forest","","","Transport Planning, Policy & Strategy","Transport Policy, Planning & Strategy","Transportation Planning","Contracted Services",21/04/2017 00:00:00,"6635397",2000,"TRANSEPT CONSULTING LTD"
"Bracknell Forest Council","http://opendatacommunities.org/id/unitary-authority/bracknell-forest","","","Management and Support Services - CYPL","Schools Block Centrally Managed","Educational Attainment for Looked After Children","Consultants Fees",19/04/2017 00:00:00,"6635356",641.26,"TEACHING PERSONNEL LTD"
"Bracknell Forest Council","http://opendatacommunities.org/id/unitary-authority/bracknell-forest","","","Development Control","Applications - Development Control","Development Control","Consultants Fees",30/05/2017 00:00:00,"6637393",525,"KIRKHAM LANDSCAPE PLANNING CONSULTANTS"
"Bracknell Forest Council","http://opendatacommunities.org/id/unitary-authority/bracknell-forest","","","Commissioning & Service Delivery","Commissioning & Service Delivery","Adult Social Care Transformation Programme","Consultants Fees",21/05/2017 00:00:00,"6637262",15000,"BLUE MODE CONSULTING LTD"
"Bracknell Forest Council","http://opendatacommunities.org/id/unitary-authority/bracknell-forest","","","Development Control","Applications - Development Control","Development Control","Consultants Fees",26/05/2017 00:00:00,"6637397",750,"MOTION CONSULTANTS LIMITED T/A MOTION"
"Bracknell Forest Council","http://opendatacommunities.org/id/unitary-authority/bracknell-forest","","","Recreation, Sports and Leisure","Golf Courses","Leisure DSO - Downshire Catering","Catering Consumables",18/05/2017 00:00:00,"6637395",544.79,"NISBETS"
"Bracknell Forest Council","http://opendatacommunities.org/id/unitary-authority/bracknell-forest","","","Cemeteries, Crematoria & Mortuary Services","Cemeteries & Crematorium","Easthampstead Park Cemetery & Crematorium","Contract Cleaning",24/05/2017 00:00:00,"6637404",1325.89,"CLEAN UPS"
"Bracknell Forest Council","http://opendatacommunities.org/id/unitary-authority/bracknell-forest","","","Social Care Activities","Social Care Activities","Sensory Support Operational Costs","Other Fees for Bought-in Services",04/05/2017 00:00:00,"6637246",3000,"PRIORITEYES LTD"
"Bracknell Forest Council","http://opendatacommunities.org/id/unitary-authority/bracknell-forest","","","Social Care Activities","Social Care Activities","Community Team for OP & People with a LTC","Other Support to Clients",13/06/2017 00:00:00,"6637342",637.4,"Redact Personal Info"
"Bracknell Forest Council","http://opendatacommunities.org/id/unitary-authority/bracknell-forest","","","Central Support Services - COF","Personnel","LSCB - n=money","Training Costs",25/05/2017 00:00:00,"6637212",600,"PUBLIC SERVICES TRAINING PROFESSIONAL / RICHARD WOODLEY"
"Bracknell Forest Council","http://opendatacommunities.org/id/unitary-authority/bracknell-forest","","","Recreation, Sports and Leisure","Indoor Sports & Recreation Facilities","Leisure Centre - Catering General","Cost of Goods Sold",25/05/2017 00:00:00,"6637428",519.24,"P & H DIRECT VAN SALES LTD"
"Bracknell Forest Council","http://opendatacommunities.org/id/unitary-authority/bracknell-forest","","","Substance Misuse","Drug misuse in adults","SM Pharmacy/GP Payments","Contracted Services",31/05/2017 00:00:00,"6637457",3840,"FARNHAM ROAD PRACTICE"
"Bracknell Forest Council","http://opendatacommunities.org/id/unitary-authority/bracknell-forest","","","Management and Support Services - CYPL","Unallocated High Needs Related Expenditure","Occupational Therapy","Voluntary Sector Service Providers",12/05/2017 00:00:00,"6636953",3083.34,"BERKS HEALTHCARE NHS FOUNDATION TRUST"
"Bracknell Forest Council","http://opendatacommunities.org/id/unitary-authority/bracknell-forest","","","NHS Health Check Programme","NHS Health Check Programme","GP Health Checks","Contracted Services",10/04/2017 00:00:00,"6634228",3730.5,"ROSEMEAD SURGERY"
"Bracknell Forest Council","http://opendatacommunities.org/id/unitary-authority/bracknell-forest","","","NHS Health Check Programme","NHS Health Check Programme","GP Health Checks","Contracted Services",07/04/2017 00:00:00,"6634231",1197,"WARGRAVE SURGERY"
"Bracknell Forest Council","http://opendatacommunities.org/id/unitary-authority/bracknell-forest","","","NHS Health Check Programme","NHS Health Check Programme","GP Health Checks","Contracted Services",04/04/2017 00:00:00,"6634232",546,"MANOR PARK MEDICAL CENTRE"
"Bracknell Forest Council","http://opendatacommunities.org/id/unitary-authority/bracknell-forest","","","NHS Health Check Programme","NHS Health Check Programme","GP Health Checks","Contracted Services",07/04/2017 00:00:00,"6634234",3037,"Redact Personal Info"
"Bracknell Forest Council","http://opendatacommunities.org/id/unitary-authority/bracknell-forest","","","NHS Health Check Programme","NHS Health Check Programme","GP Health Checks","Contracted Services",06/04/2017 00:00:00,"6634236",847.5,"Redact Personal Info"
"Bracknell Forest Council","http://opendatacommunities.org/id/unitary-authority/bracknell-forest","","","NHS Health Check Programme","NHS Health Check Programme","GP Health Checks","Contracted Services",10/04/2017 00:00:00,"6634239",3421.5,"THE CEDARS SURGERY"
"Bracknell Forest Council","http://opendatacommunities.org/id/unitary-authority/bracknell-forest","","","NHS Health Check Programme","NHS Health Check Programme","GP Health Checks","Contracted Services",07/04/2017 00:00:00,"6634240",3371,"THE HUNGERFORD SURGERY"
"Bracknell Forest Council","http://opendatacommunities.org/id/unitary-authority/bracknell-forest","","","NHS Health Check Programme","NHS Health Check Programme","GP Health Checks","Contracted Services",11/04/2017 00:00:00,"6634243",871.5,"Redact Personal Info"
"Bracknell Forest Council","http://opendatacommunities.org/id/unitary-authority/bracknell-forest","","","Adults (18-64)","Long Term Support - Community:Supported Living","MH Adults 18-64 Long Term Support - Community:Supported Living","Other Support to Clients",28/02/2017 00:00:00,"6633941",2529.6,"MOVING ON CARE MANAGEMENT LTD"
"Bracknell Forest Council","http://opendatacommunities.org/id/unitary-authority/bracknell-forest","","","NHS Health Check Programme","NHS Health Check Programme","GP Health Checks","Contracted Services",13/04/2017 00:00:00,"6634281",1717.5,"THE BUCKLEBURY PRACTICE"
"Bracknell Forest Council","http://opendatacommunities.org/id/unitary-authority/bracknell-forest","","","Other Education and Community Budget","Service strategy and other education functions","Information Technology - Section","Consultants Fees",13/04/2017 00:00:00,"6634303",2500,"ZUNA-BD LTD"
"Bracknell Forest Council","http://opendatacommunities.org/id/unitary-authority/bracknell-forest","","","Structural Maintenance","Bridges","Bridges","Consultants Fees",10/04/2017 00:00:00,"6634304",1050.83,"NETWORK RAIL SOUTHERN"
"Bracknell Forest Council","http://opendatacommunities.org/id/unitary-authority/bracknell-forest","","","Structural Maintenance","Bridges","Bridges","Consultants Fees",10/04/2017 00:00:00,"6634305",1024.83,"NETWORK RAIL SOUTHERN"
"Bracknell Forest Council","http://opendatacommunities.org/id/unitary-authority/bracknell-forest","","","Central Support Services - COF","Construction and Property","Depot Facilities","R&M - Reactive",25/05/2017 00:00:00,"6637478",605,"KIER FACILITIES SERVICES LIMITED"
"Bracknell Forest Council","http://opendatacommunities.org/id/unitary-authority/bracknell-forest","","","Development Control","Applications - Development Control","Development Control","Consultants Fees",25/05/2017 00:00:00,"6637299",9844.8,"JACOBS"
"Bracknell Forest Council","http://opendatacommunities.org/id/unitary-authority/bracknell-forest","","","Management and Support Services - CYPL","De-Delegated Expenditure","Home to School Transport","Personal Transport Budgets",01/04/2017 00:00:00,"6634021",884.36,"Redact Personal Info"
"Bracknell Forest Council","http://opendatacommunities.org/id/unitary-authority/bracknell-forest","","","Management and Support Services - CYPL","De-Delegated Expenditure","Home to School Transport","Personal Transport Budgets",01/04/2017 00:00:00,"6634022",585.2,"Redact Personal Info"
"Bracknell Forest Council","http://opendatacommunities.org/id/unitary-authority/bracknell-forest","","","Central Support Services - COF","Finance","Insurance Premiums Holding Account","Insurance Premiums",01/03/2017 00:00:00,"6634012",880,"THISTLE INSURANCE SERVICES LTD"
"Bracknell Forest Council","http://opendatacommunities.org/id/unitary-authority/bracknell-forest","","","Central Support Services - COF","Finance","Insurance Premiums Holding Account","Insurance Premiums",01/03/2017 00:00:00,"6634013",1695.1,"THISTLE INSURANCE SERVICES LTD"
"Bracknell Forest Council","http://opendatacommunities.org/id/unitary-authority/bracknell-forest","","","Central Support Services - COF","Finance","Insurance Premiums Holding Account","Insurance Premiums",08/02/2017 00:00:00,"6634015",550,"MOTOR ACCIDENT PROTECTION SERVICES LTD"
"Bracknell Forest Council","http://opendatacommunities.org/id/unitary-authority/bracknell-forest","","","Central Support Services - COF","Finance","Insurance Premiums Holding Account","Insurance Premiums",01/03/2017 00:00:00,"6634016",1195.22,"THISTLE INSURANCE SERVICES LTD"
"Bracknell Forest Council","http://opendatacommunities.org/id/unitary-authority/bracknell-forest","","","Management and Support Services - CYPL","De-Delegated Expenditure","Home to School Transport","Personal Transport Budgets",01/04/2017 00:00:00,"6634000",585.2,"Redact Personal Info"
"Bracknell Forest Council","http://opendatacommunities.org/id/unitary-authority/bracknell-forest","","","Other Education and Community Budget","Service strategy and other education functions","Governor Services","Consultants Fees",06/04/2017 00:00:00,"6637520",600,"FIONA EDWARDS"
"Bracknell Forest Council","http://opendatacommunities.org/id/unitary-authority/bracknell-forest","","","Other Education and Community Budget","Service strategy and other education functions","S.A.C.R.E.","Approved Conference Fees & Expenses",18/05/2017 00:00:00,"6637406",1700,"WOKINGHAM BOROUGH COUNCIL"
"Bracknell Forest Council","http://opendatacommunities.org/id/unitary-authority/bracknell-forest","","","Older People (65+)","Long term Support - Community:Direct Payments","MC Older People 65+ Long Term Support - Community:Direct Payments","Direct Payments to Clients",31/05/2017 00:00:00,"6636972",1183.71,"Redact Personal Info"
"Bracknell Forest Council","http://opendatacommunities.org/id/unitary-authority/bracknell-forest","","","Public Transport","Support To Operators","Public Transport Subsidy","Contracted Services",28/04/2017 00:00:00,"6637534",52882.07,"COURTNEY COACHES LTD"
"Bracknell Forest Council","http://opendatacommunities.org/id/unitary-authority/bracknell-forest","","","NHS Health Check Programme","NHS Health Check Programme","GP Health Checks","Contracted Services",10/03/2017 00:00:00,"6637529",3608.5,"THE RINGMEAD PRACTICE"
"Bracknell Forest Council","http://opendatacommunities.org/id/unitary-authority/bracknell-forest","","","Commissioning & Service Delivery","Commissioning & Service Delivery","Healthwatch","Contracted Services",06/06/2017 00:00:00,"6637492",5541,"THE ARK TRUST LTD"
"Bracknell Forest Council","http://opendatacommunities.org/id/unitary-authority/bracknell-forest","","","Management and Support Services - CYPL","Schools Block Centrally Managed","Educational Attainment for Looked After Children","Consultants Fees",11/04/2017 00:00:00,"6634542",920.39,"TEACHING PERSONNEL LTD"
"Bracknell Forest Council","http://opendatacommunities.org/id/unitary-authority/bracknell-forest","","","Recreation, Sports and Leisure","Indoor Sports & Recreation Facilities","Leisure Management System","Computer Software Maintenance",16/03/2017 00:00:00,"6634390",4080,"HAVEN SYSTEMS LIMITED"
"Bracknell Forest Council","http://opendatacommunities.org/id/unitary-authority/bracknell-forest","","","Sure Start Children's Centres","Centrally managed expenditure - children's centres","Children's Centre Co-ordination","Computer Software Maintenance",02/04/2017 00:00:00,"6633901",4889.23,"CAPITA BUSINESS SERVICES LTD"
"Bracknell Forest Council","http://opendatacommunities.org/id/unitary-authority/bracknell-forest","","","Public Health Advice","Public Health Advice","Public Health Advice (Bracknell)","Computer Software",01/04/2017 00:00:00,"6633673",961.36,"EDENHOUSE SOLUTIONS LIMITED"
"Bracknell Forest Council","http://opendatacommunities.org/id/unitary-authority/bracknell-forest","","","Homelessness","Accommodation within own Stock","Council Own Properties","R&M - Reactive",26/04/2017 00:00:00,"6637675",1195.2,"CARP-A-TEX (READING) LTD"
"Bracknell Forest Council","http://opendatacommunities.org/id/unitary-authority/bracknell-forest","","","Recreation, Sports and Leisure","Golf Courses","Leisure DSO - Downshire Golf Shop","Cost of Goods Sold",17/02/2017 00:00:00,"6637676",500.22,"COBRA-PUMA GOLF"
"Bracknell Forest Council","http://opendatacommunities.org/id/unitary-authority/bracknell-forest","","","Management and Support Services - CYPL","Schools Block Centrally Managed","Educational Attainment for Looked After Children","Contracted Services",25/05/2017 00:00:00,"6637687",500,"BIRCH HILL PRIMARY SCHOOL"
"Bracknell Forest Council","http://opendatacommunities.org/id/unitary-authority/bracknell-forest","","","Management and Support Services - CYPL","Schools Block Centrally Managed","Educational Attainment for Looked After Children","Contracted Services",25/05/2017 00:00:00,"6637688",500,"BIRCH HILL PRIMARY SCHOOL"
"Bracknell Forest Council","http://opendatacommunities.org/id/unitary-authority/bracknell-forest","","","Management and Support Services - CYPL","De-Delegated Expenditure","Home to School Transport","Taxi Fares - Home/School Transport",31/05/2017 00:00:00,"6637689",600,"STATION TAXIS"
"Bracknell Forest Council","http://opendatacommunities.org/id/unitary-authority/bracknell-forest","","","Management and Support Services - CYPL","De-Delegated Expenditure","HTS Interim","Taxi Fares - Home/School Transport",30/05/2017 00:00:00,"6637692",10134,"CROWN WHEELCHAIR TRAVEL"
"Bracknell Forest Council","http://opendatacommunities.org/id/unitary-authority/bracknell-forest","","","Management and Support Services - CYPL","De-Delegated Expenditure","HTS Interim","Taxi Fares - Home/School Transport",30/05/2017 00:00:00,"6637693",17341,"CROWN WHEELCHAIR TRAVEL"
"Bracknell Forest Council","http://opendatacommunities.org/id/unitary-authority/bracknell-forest","","","Management and Support Services - CYPL","De-Delegated Expenditure","Home to School Transport","Printing and Design",02/06/2017 00:00:00,"6637775",2813.4,"ASHLEY FORMS LIMITED"
"Bracknell Forest Council","http://opendatacommunities.org/id/unitary-authority/bracknell-forest","","","Management and Support Services - CYPL","Schools Block Centrally Managed","Educational Attainment for Looked After Children","Contracted Services",24/05/2017 00:00:00,"6637696",500,"PAYMENT WITHOUT INVOICES"
"Bracknell Forest Council","http://opendatacommunities.org/id/unitary-authority/bracknell-forest","","","Management and Support Services - CYPL","Schools Block Centrally Managed","Educational Attainment for Looked After Children","Contracted Services",25/05/2017 00:00:00,"6637698",1000,"PAYMENT WITHOUT INVOICES"
"Bracknell Forest Council","http://opendatacommunities.org/id/unitary-authority/bracknell-forest","","","Management and Support Services - CYPL","Schools Block Centrally Managed","Educational Attainment for Looked After Children","Contracted Services",24/05/2017 00:00:00,"6637703",600,"THE AVENUE SCHOOL"
"Bracknell Forest Council","http://opendatacommunities.org/id/unitary-authority/bracknell-forest","","","Management and Support Services - CYPL","Schools Block Centrally Managed","Educational Attainment for Looked After Children","Contracted Services",25/05/2017 00:00:00,"6637706",1450,"HIGH CLOSE SCHOOL"
"Bracknell Forest Council","http://opendatacommunities.org/id/unitary-authority/bracknell-forest","","","Management and Support Services - CYPL","Schools Block Centrally Managed","Educational Attainment for Looked After Children","Contracted Services",25/05/2017 00:00:00,"6637715",500,"PAYMENT WITHOUT INVOICES"
"Bracknell Forest Council","http://opendatacommunities.org/id/unitary-authority/bracknell-forest","","","Management and Support Services - CYPL","Schools Block Centrally Managed","Educational Attainment for Looked After Children","Contracted Services",25/05/2017 00:00:00,"6637717",1500,"HIGH CLOSE SCHOOL"
"Bracknell Forest Council","http://opendatacommunities.org/id/unitary-authority/bracknell-forest","","","Management and Support Services - CYPL","Schools Block Centrally Managed","Educational Attainment for Looked After Children","Contracted Services",25/05/2017 00:00:00,"6637782",500,"KENNEL LANE SCHOOL"
"Bracknell Forest Council","http://opendatacommunities.org/id/unitary-authority/bracknell-forest","","","Management and Support Services - CYPL","Schools Block Centrally Managed","Educational Attainment for Looked After Children","Contracted Services",25/05/2017 00:00:00,"6637793",505.37,"EASTHAMPSTEAD PARK COMMUNITY SCHOOL"
"Bracknell Forest Council","http://opendatacommunities.org/id/unitary-authority/bracknell-forest","","","Management and Support Services - CYPL","Schools Block Centrally Managed","Educational Attainment for Looked After Children","Contracted Services",25/05/2017 00:00:00,"6637795",540,"EASTHAMPSTEAD PARK COMMUNITY SCHOOL"
"Bracknell Forest Council","http://opendatacommunities.org/id/unitary-authority/bracknell-forest","","","Management and Support Services - CYPL","Schools Block Centrally Managed","Educational Attainment for Looked After Children","Contracted Services",25/05/2017 00:00:00,"6637796",1500,"JENNETTS PARK ACADEMY"
"Bracknell Forest Council","http://opendatacommunities.org/id/unitary-authority/bracknell-forest","","","Management and Support Services - CYPL","Schools Block Centrally Managed","Educational Attainment for Looked After Children","Contracted Services",25/05/2017 00:00:00,"6637790",991.56,"EASTHAMPSTEAD PARK COMMUNITY SCHOOL"
"Bracknell Forest Council","http://opendatacommunities.org/id/unitary-authority/bracknell-forest","","","Management and Support Services - CYPL","Schools Block Centrally Managed","Educational Attainment for Looked After Children","Contracted Services",25/05/2017 00:00:00,"6637791",1259.34,"EASTHAMPSTEAD PARK COMMUNITY SCHOOL"
"Bracknell Forest Council","http://opendatacommunities.org/id/unitary-authority/bracknell-forest","","","Management and Support Services - CYPL","Schools Block Centrally Managed","Educational Attainment for Looked After Children","Contracted Services",25/05/2017 00:00:00,"6637797",521.79,"JENNETTS PARK ACADEMY"
"Bracknell Forest Council","http://opendatacommunities.org/id/unitary-authority/bracknell-forest","","","Management and Support Services - CYPL","Schools Block Centrally Managed","Educational Attainment for Looked After Children","Contracted Services",25/05/2017 00:00:00,"6637798",1000,"JENNETTS PARK ACADEMY"
"Bracknell Forest Council","http://opendatacommunities.org/id/unitary-authority/bracknell-forest","","","Culture and Heritage","Heritage Museums & Galleries","The Look Out Catering","Cost of Goods Sold",05/05/2017 00:00:00,"6637102",623,"CONSORT FROZEN FOODS LTD"
"Bracknell Forest Council","http://opendatacommunities.org/id/unitary-authority/bracknell-forest","","","Management and Support Services - CYPL","De-Delegated Expenditure","Home to School Transport","Taxi Fares - Home/School Transport",31/05/2017 00:00:00,"6637699",840,"JJM TAXIS & ZULU CARS LTD"
"Bracknell Forest Council","http://opendatacommunities.org/id/unitary-authority/bracknell-forest","","","Management and Support Services - CYPL","De-Delegated Expenditure","Home to School Transport","Taxi Fares - Home/School Transport",31/05/2017 00:00:00,"6637699",1160,"JJM TAXIS & ZULU CARS LTD"
"Bracknell Forest Council","http://opendatacommunities.org/id/unitary-authority/bracknell-forest","","","Recreation, Sports and Leisure","Golf Courses","Leisure DSO - Downshire Golf Shop","Cost of Goods Sold",28/04/2017 00:00:00,"6637878",513.43,"NIKE EUROPEAN OPERATIONS NETHERLANDS B.V."
"Bracknell Forest Council","http://opendatacommunities.org/id/unitary-authority/bracknell-forest","","","Recreation, Sports and Leisure","Golf Courses","Leisure DSO - Downshire Golf Shop","Cost of Goods Sold",10/04/2017 00:00:00,"6637861",826.44,"CALLAWAY GOLF EUROPE LTD"
"Bracknell Forest Council","http://opendatacommunities.org/id/unitary-authority/bracknell-forest","","","Management and Support Services - CYPL","De-Delegated Expenditure","Home to School Transport","Taxi Fares - Home/School Transport",01/06/2017 00:00:00,"6637799",1312.5,"BERKSHIRE EDUCATION TRAVEL"
"Bracknell Forest Council","http://opendatacommunities.org/id/unitary-authority/bracknell-forest","","","Registration of Electors","Registration of Electors","Electoral Registration","Equipment - Purchase",01/04/2017 00:00:00,"6633906",10619.57,"XPRESS SOFTWARE SOLUTIONS LTD"
"Bracknell Forest Council","http://opendatacommunities.org/id/unitary-authority/bracknell-forest","","","Development Control","Applications - Development Control","Development Control","Consultants Fees",30/03/2017 00:00:00,"6633603",1706.56,"JACOBS"
"Bracknell Forest Council","http://opendatacommunities.org/id/unitary-authority/bracknell-forest","","","Development Control","Applications - Development Control","Development Control","Consultants Fees",30/03/2017 00:00:00,"6633604",5071.83,"JACOBS"
"Bracknell Forest Council","http://opendatacommunities.org/id/unitary-authority/bracknell-forest","","","Other Trading Surpluses & Deficits","Smartcard","e+Card","Other Fees for Bought-in Services",31/01/2017 00:00:00,"6633916",3500,"SMARTCITIZEN LIMITED"
"Bracknell Forest Council","http://opendatacommunities.org/id/unitary-authority/bracknell-forest","","","Waste Disposal","Disposal of Waste","Waste Disposal","Contracted Services",23/03/2017 00:00:00,"6633936",404367.36,"READING BOROUGH COUNCIL"
"Bracknell Forest Council","http://opendatacommunities.org/id/unitary-authority/bracknell-forest","","","Safeguarding Children and Young People's Services","Social Work","Family Placement","Sessional",31/01/2017 00:00:00,"6633919",789.53,"HL FAMILY PLACEMENT SERVICES LTD"
"Bracknell Forest Council","http://opendatacommunities.org/id/unitary-authority/bracknell-forest","","","NHS Health Check Programme","NHS Health Check Programme","GP Health Checks","Contracted Services",04/04/2017 00:00:00,"6633920",2332,"THE FINCHAMPSTEAD SURGERY"
"Bracknell Forest Council","http://opendatacommunities.org/id/unitary-authority/bracknell-forest","","","Recreation, Sports and Leisure","Golf Courses","Leisure DSO - Downshire Catering","Cost of Goods - Bar",02/06/2017 00:00:00,"6638651",619.7,"MATTHEW CLARK WHOLESALE"
"Bracknell Forest Council","http://opendatacommunities.org/id/unitary-authority/bracknell-forest","","","Recreation, Sports and Leisure","Golf Courses","Leisure DSO - Downshire Catering","Cost of Goods - Bar",26/05/2017 00:00:00,"6638652",785.98,"MATTHEW CLARK WHOLESALE"
"Bracknell Forest Council","http://opendatacommunities.org/id/unitary-authority/bracknell-forest","","","Public Health Advice","Public Health Advice","Public Health Advice (Bracknell)","Computer Software",22/05/2017 00:00:00,"6636843",850,"EDENHOUSE SOLUTIONS LIMITED"
"Bracknell Forest Council","http://opendatacommunities.org/id/unitary-authority/bracknell-forest","","","Recreation, Sports and Leisure","Golf Courses","Golf Course Management & Administration","Compensation Payments",31/05/2017 00:00:00,"6638698",6795,"ESD WASTE 2 WATER EUROPE LTD"
"Bracknell Forest Council","http://opendatacommunities.org/id/unitary-authority/bracknell-forest","","","Recreation, Sports and Leisure","Indoor Sports & Recreation Facilities","Recreation Staff Accommodation","Grounds Maintenance Costs",08/06/2017 00:00:00,"6638697",910,"MORRISEN TREE SURGERY & FENCING CONTRACTORS LTD"
"Bracknell Forest Council","http://opendatacommunities.org/id/unitary-authority/bracknell-forest","","","Waste Disposal","Disposal of Waste","Waste Disposal","Contracted Services",30/05/2017 00:00:00,"6638048",572134.61,"READING BOROUGH COUNCIL"
"Bracknell Forest Council","http://opendatacommunities.org/id/unitary-authority/bracknell-forest","","","Waste Disposal","Disposal of Waste","Waste Disposal","Contracted Services",30/05/2017 00:00:00,"6638048",23906.13,"READING BOROUGH COUNCIL"
"Bracknell Forest Council","http://opendatacommunities.org/id/unitary-authority/bracknell-forest","","","Waste Disposal","Disposal of Waste","Waste Disposal","Contracted Services",30/05/2017 00:00:00,"6638048",89410,"READING BOROUGH COUNCIL"
"Bracknell Forest Council","http://opendatacommunities.org/id/unitary-authority/bracknell-forest","","","Recycling","Collection","Brown Bin Collection Service","Contracted Services",07/06/2017 00:00:00,"6638324",1450,"SUEZ RECYCLING AND RECOVERY UK LTD"
"Bracknell Forest Council","http://opendatacommunities.org/id/unitary-authority/bracknell-forest","","","Recycling","Collection","Brown Bin Collection Service","Contracted Services",07/06/2017 00:00:00,"6638324",39257.51,"SUEZ RECYCLING AND RECOVERY UK LTD"
"Bracknell Forest Council","http://opendatacommunities.org/id/unitary-authority/bracknell-forest","","","Management and Support Services - CYPL","Schools Block Centrally Managed","Educational Attainment for Looked After Children","Consultants Fees",02/06/2017 00:00:00,"6638686",3900,"XLCS LTD T/A XL EDUCATION Solutions"
"Bracknell Forest Council","http://opendatacommunities.org/id/unitary-authority/bracknell-forest","","","NHS Health Check Programme","NHS Health Check Programme","GP Health Checks","Contracted Services",21/11/2016 00:00:00,"6634660",3092.5,"THE PANGBOURNE MEDICAL PRACTICE"
"Bracknell Forest Council","http://opendatacommunities.org/id/unitary-authority/bracknell-forest","","","NHS Health Check Programme","NHS Health Check Programme","GP Health Checks","Contracted Services",31/01/2017 00:00:00,"6634675",1245,"EMMER GREEN SURGERY"
"Bracknell Forest Council","http://opendatacommunities.org/id/unitary-authority/bracknell-forest","","","NHS Health Check Programme","NHS Health Check Programme","GP Health Checks","Contracted Services",18/04/2017 00:00:00,"6634751",1324,"KUMAR MEDICAL CENTRE"
"Bracknell Forest Council","http://opendatacommunities.org/id/unitary-authority/bracknell-forest","","","Information & Early Intervention","Information & Early Intervention","BCF - Independent Mental Health Advocacy","Contracted Services",23/03/2017 00:00:00,"6635689",1916.8,"SEAP"
"Bracknell Forest Council","http://opendatacommunities.org/id/unitary-authority/bracknell-forest","","","Central Support Services - COF","Finance","Internal Audit","Contracted Services",22/03/2017 00:00:00,"6635341",8610,"CROYDON COUNCIL"
"Bracknell Forest Council","http://opendatacommunities.org/id/unitary-authority/bracknell-forest","","","Commissioning & Service Delivery","Commissioning & Service Delivery","Healthwatch","Contracted Services",23/03/2017 00:00:00,"6635689",2848.93,"SEAP"
"Bracknell Forest Council","http://opendatacommunities.org/id/unitary-authority/bracknell-forest","","","Commissioning & Service Delivery","Commissioning & Service Delivery","Healthwatch","Contracted Services",11/04/2017 00:00:00,"6635690",795.63,"SEAP"
"Bracknell Forest Council","http://opendatacommunities.org/id/unitary-authority/bracknell-forest","","","Central Support Services - COF","Construction and Property","Easthampstead House","Equipment - Rental",30/04/2017 00:00:00,"6636052",1315,"WATER COOLERS LTD / MAESTRO INTERNATIONAL LTD"
"Bracknell Forest Council","http://opendatacommunities.org/id/unitary-authority/bracknell-forest","","","Open Spaces","Countryside Recreation & Management","Rights of Way Maintenance","Grounds Maintenance Costs",25/01/2017 00:00:00,"6636263",750,"M3 ASBESTOS LTD"
"Bracknell Forest Council","http://opendatacommunities.org/id/unitary-authority/bracknell-forest","","","Central Support Services - COF","Finance","Internal Audit","Contracted Services",26/04/2017 00:00:00,"6636289",6150,"CROYDON COUNCIL"
"Bracknell Forest Council","http://opendatacommunities.org/id/unitary-authority/bracknell-forest","","","Management and Support Services - CYPL","Unallocated High Needs Related Expenditure","Mainstream - Element 3 top up non BFC pre 16","Other Local Authorities",10/05/2017 00:00:00,"6636332",1460.87,"FROGMORE COMMUNITY COLLEGE"
"Bracknell Forest Council","http://opendatacommunities.org/id/unitary-authority/bracknell-forest","","","Other Education and Community Budget","Service strategy and other education functions","Information Technology - Section","Computer Software",10/03/2017 00:00:00,"6636300",28991.57,"SERVELEC CORELOGIC LIMITED"
"Bracknell Forest Council","http://opendatacommunities.org/id/unitary-authority/bracknell-forest","","","Management and Support Services - CYPL","Unallocated High Needs Related Expenditure","Mainstream - Element 3 top up non BFC pre 16","Other Local Authorities",11/05/2017 00:00:00,"6636334",1303.66,"ST ANTHONYS SCHOOL"
"Bracknell Forest Council","http://opendatacommunities.org/id/unitary-authority/bracknell-forest","","","Social Care Activities","Social Care Activities","Community Team for OP & People with a LTC","Other Expenses",25/04/2017 00:00:00,"6635124",550,"BLITZABLE SOUTHERN LIMITED"
"Bracknell Forest Council","http://opendatacommunities.org/id/unitary-authority/bracknell-forest","","","Social Care Activities","Social Care Activities","Community Team for OP & People with a LTC","Contracted Services",13/02/2017 00:00:00,"6635219",690,"VOYAGE LIMITED"
"Bracknell Forest Council","http://opendatacommunities.org/id/unitary-authority/bracknell-forest","","","Open Spaces","Countryside Recreation & Management","Rights of Way Maintenance","R&M - Planned",08/06/2017 00:00:00,"6637989",1800,"SMALLWOOD"
"Bracknell Forest Council","http://opendatacommunities.org/id/unitary-authority/bracknell-forest","","","Central Support Services - COF","Finance","Insurance Premiums Holding Account","Insurance Premiums",31/05/2017 00:00:00,"6638113",2079.55,"JLT SPECIALITY LIMITED"
"Bracknell Forest Council","http://opendatacommunities.org/id/unitary-authority/bracknell-forest","","","Economic Development","Economic Development","Economic Development","Consultants Fees",27/06/2017 00:00:00,"6639091",1574,"QA RESEARCH"
"Bracknell Forest Council","http://opendatacommunities.org/id/unitary-authority/bracknell-forest","","","Management and Support Services - CYPL","Schools Block Centrally Managed","Educational Attainment for Looked After Children","Consultants Fees",21/06/2017 00:00:00,"6638988",1448.99,"TEACHING PERSONNEL LTD"
"Bracknell Forest Council","http://opendatacommunities.org/id/unitary-authority/bracknell-forest","","","Business Support","Premises Development","Waterside Park - Building B","R&M - Reactive",20/06/2017 00:00:00,"6638964",10840,"BENVILLE AND MARSH LTD"
"Bracknell Forest Council","http://opendatacommunities.org/id/unitary-authority/bracknell-forest","","","Business Support","Premises Development","Longshot Lane Industrial Estate","R&M - Reactive",20/06/2017 00:00:00,"6638968",1025,"BENVILLE AND MARSH LTD"
"Bracknell Forest Council","http://opendatacommunities.org/id/unitary-authority/bracknell-forest","","","Cemeteries, Crematoria & Mortuary Services","Cemeteries & Crematorium","Easthampstead Park Cemetery & Crematorium","Contract Cleaning",24/06/2017 00:00:00,"6638982",1325.88,"CLEAN UPS"
"Bracknell Forest Council","http://opendatacommunities.org/id/unitary-authority/bracknell-forest","","","Cemeteries, Crematoria & Mortuary Services","Cemeteries & Crematorium","Easthampstead Park Cemetery & Crematorium","Cost of Goods Sold",02/06/2017 00:00:00,"6638983",1535.77,"F G MARSHALL LTD"
"Bracknell Forest Council","http://opendatacommunities.org/id/unitary-authority/bracknell-forest","","","Safeguarding Children and Young People's Services","Social Work","Family Placement","Sessional",23/06/2017 00:00:00,"6639051",822.7,"HOLLY BLUE ISW LTD"
"Bracknell Forest Council","http://opendatacommunities.org/id/unitary-authority/bracknell-forest","","","Libraries","Branch Libraries","Libraries General Running Expenses","Publicity & Marketing",29/05/2017 00:00:00,"6637900",760,"THE HISTORY WARDROBE"
"Bracknell Forest Council","http://opendatacommunities.org/id/unitary-authority/bracknell-forest","","","Other Trading Surpluses & Deficits","Smartcard","e+Card","Materials",31/05/2017 00:00:00,"6638217",1326.7,"SMARTCITIZEN LIMITED"
"Bracknell Forest Council","http://opendatacommunities.org/id/unitary-authority/bracknell-forest","","","Other Trading Surpluses & Deficits","Smartcard","e+Card","Contracted Services",31/05/2017 00:00:00,"6638217",5113.5,"SMARTCITIZEN LIMITED"
"Bracknell Forest Council","http://opendatacommunities.org/id/unitary-authority/bracknell-forest","","","Culture and Heritage","Heritage Museums & Galleries","The Look Out Catering","Equipment - Purchase",17/03/2017 00:00:00,"6638215",4165,"THE BIG UMBRELLA COMPANY LTD"
"Bracknell Forest Council","http://opendatacommunities.org/id/unitary-authority/bracknell-forest","","","Libraries","Branch Libraries","Libraries General Running Expenses","Publicity & Marketing",15/05/2017 00:00:00,"6638181",500,"MCGRATH MEDIA"
"Bracknell Forest Council","http://opendatacommunities.org/id/unitary-authority/bracknell-forest","","","Libraries","Branch Libraries","Libraries General Running Expenses","R&M - Service Contracts",01/02/2017 00:00:00,"6638180",1038.5,"IQ SECURITY LTD"
"Bracknell Forest Council","http://opendatacommunities.org/id/unitary-authority/bracknell-forest","","","Asylum Seekers","Asylum Seekers LAC","Asylum Seekers (UASC)","Contracted Services",31/05/2017 00:00:00,"6638203",3210.71,"Redact Personal Info"
"Bracknell Forest Council","http://opendatacommunities.org/id/unitary-authority/bracknell-forest","","","Commissioning & Service Delivery","Commissioning & Service Delivery","Adult Social Care Transformation Programme","Consultants Fees",02/06/2017 00:00:00,"6637934",6000,"BLUE MODE CONSULTING LTD"
"Bracknell Forest Council","http://opendatacommunities.org/id/unitary-authority/bracknell-forest","","","Local Tax Collection","Council Tax Collection","Bankruptcy","Other Fees for Bought-in Services",01/04/2017 00:00:00,"6634642",775,"WILKIN CHAPMAN LLP"
"Bracknell Forest Council","http://opendatacommunities.org/id/unitary-authority/bracknell-forest","","","Primary Schools","Centrally managed Expenditure - Early Years","Early Years and Childcare","Voluntary Sector Service Providers",28/04/2017 00:00:00,"6634687",1770,"BIRCH HILL PRE-SCHOOL"
"Bracknell Forest Council","http://opendatacommunities.org/id/unitary-authority/bracknell-forest","","","Primary Schools","Centrally managed Expenditure - Early Years","Early Years and Childcare","Voluntary Sector Service Providers",28/04/2017 00:00:00,"6634692",1170,"LITTLE BLOSSOMS HARMANSWATER"
"Bracknell Forest Council","http://opendatacommunities.org/id/unitary-authority/bracknell-forest","","","Social Care Activities","Social Care Activities","Community Team for OP & People with a LTC","Other Support to Clients",18/05/2017 00:00:00,"6635472",637.4,"Redact Personal Info"
"Bracknell Forest Council","http://opendatacommunities.org/id/unitary-authority/bracknell-forest","","","Social Care Activities","Social Care Activities","Community Team for OP & People with a LTC","Other Fees for Bought-in Services",28/04/2017 00:00:00,"6635442",3750,"THE OT PRACTICE LTD"
"Bracknell Forest Council","http://opendatacommunities.org/id/unitary-authority/bracknell-forest","","","Recreation, Sports and Leisure","Golf Courses","Leisure DSO - Downshire Catering","Cost of Goods - Bar",02/05/2017 00:00:00,"6637144",586.06,"MATTHEW CLARK WHOLESALE"
"Bracknell Forest Council","http://opendatacommunities.org/id/unitary-authority/bracknell-forest","","","Recreation, Sports and Leisure","Golf Courses","Leisure DSO - Downshire Catering","Cost of Goods - Bar",12/05/2017 00:00:00,"6637146",777.49,"MATTHEW CLARK WHOLESALE"
"Bracknell Forest Council","http://opendatacommunities.org/id/unitary-authority/bracknell-forest","","","Children Looked After","Leaving care support services","Staying Put","Other Support to Clients",15/05/2017 00:00:00,"6637066",2063.67,"PATHWAY CARE (BRISTOL) LTD"
"Bracknell Forest Council","http://opendatacommunities.org/id/unitary-authority/bracknell-forest","","","Recreation, Sports and Leisure","Golf Courses","Leisure DSO - Downshire Catering","Cost of Goods - Bar",16/05/2017 00:00:00,"6637147",1126.46,"MATTHEW CLARK WHOLESALE"
"Bracknell Forest Council","http://opendatacommunities.org/id/unitary-authority/bracknell-forest","","","NHS Health Check Programme","NHS Health Check Programme","GP Health Checks","Contracted Services",19/05/2017 00:00:00,"6637093",1648,"SHINFIELD MEDICAL PRACTICE"
"Bracknell Forest Council","http://opendatacommunities.org/id/unitary-authority/bracknell-forest","","","Management and Support Services - CYPL","Unallocated High Needs Related Expenditure","Mainstream - Element 3 top up non BFC pre 16","Other Local Authorities",16/05/2017 00:00:00,"6637104",3935,"LONDON BOROUGH OF HOUNSLOW"
"Bracknell Forest Council","http://opendatacommunities.org/id/unitary-authority/bracknell-forest","","","Recreation, Sports and Leisure","Golf Courses","Golf Course Management & Administration","R&M - Service Contracts",18/05/2017 00:00:00,"6637154",600,"FORESIGHT SPORTS UK"
"Bracknell Forest Council","http://opendatacommunities.org/id/unitary-authority/bracknell-forest","","","Recycling","Collection","Brown Bin Collection Service","Contracted Services",16/05/2017 00:00:00,"6637137",1450,"SUEZ RECYCLING AND RECOVERY UK LTD"
"Bracknell Forest Council","http://opendatacommunities.org/id/unitary-authority/bracknell-forest","","","Recycling","Collection","Brown Bin Collection Service","Contracted Services",16/05/2017 00:00:00,"6637137",39433.76,"SUEZ RECYCLING AND RECOVERY UK LTD"
"Bracknell Forest Council","http://opendatacommunities.org/id/unitary-authority/bracknell-forest","","","Recreation, Sports and Leisure","Indoor Sports & Recreation Facilities","Recreation Staff Accommodation","Gas",15/05/2017 00:00:00,"6637121",682.26,"CALOR GAS LTD"
"Bracknell Forest Council","http://opendatacommunities.org/id/unitary-authority/bracknell-forest","","","Recreation, Sports and Leisure","Golf Courses","Leisure DSO - Downshire Golf Shop","Cost of Goods Sold",18/05/2017 00:00:00,"6637154",3215,"FORESIGHT SPORTS UK"
"Bracknell Forest Council","http://opendatacommunities.org/id/unitary-authority/bracknell-forest","","","Other Education and Community Budget","Service strategy and other education functions","Governor Services","Consultants Fees",15/05/2017 00:00:00,"6637166",900,"FIONA EDWARDS"
"Bracknell Forest Council","http://opendatacommunities.org/id/unitary-authority/bracknell-forest","","","Management and Support Services - CYPL","Schools Block Centrally Managed","Educational Attainment for Looked After Children","Learning Resources - Purchase",22/05/2017 00:00:00,"6637187",617,"INCLUSIVE TECHNOLOGY LTD"
"Bracknell Forest Council","http://opendatacommunities.org/id/unitary-authority/bracknell-forest","","","Management and Support Services - CYPL","Schools Block Centrally Managed","Educational Attainment for Looked After Children","Learning Resources - Purchase",22/05/2017 00:00:00,"6637185",500,"CRICK SOFTWARE LTD"
"Bracknell Forest Council","http://opendatacommunities.org/id/unitary-authority/bracknell-forest","","","Development Control","Applications - Development Control","Development Control","Consultants Fees",10/05/2017 00:00:00,"6637292",3000,"VALUATION OFFICE AGENCY"
"Bracknell Forest Council","http://opendatacommunities.org/id/unitary-authority/bracknell-forest","","","Development Control","Applications - Development Control","Development Control","Consultants Fees",26/05/2017 00:00:00,"6637294",500,"BRUTON KNOWLES"
"Bracknell Forest Council","http://opendatacommunities.org/id/unitary-authority/bracknell-forest","","","Holding Accounts not in Budget Book - COF","General Holding Accounts","Certificated Contract Payments","R&M - Service Contracts",15/03/2017 00:00:00,"6634088",7480,"SCS SECURITY CONTROL SYSTEMS"
"Bracknell Forest Council","http://opendatacommunities.org/id/unitary-authority/bracknell-forest","","","Safeguarding Children and Young People's Services","Social Work","Children & Family Duty Team","Agency",18/04/2017 00:00:00,"6634762",1443,"NONSTOP RECRUITMENT"
"Bracknell Forest Council","http://opendatacommunities.org/id/unitary-authority/bracknell-forest","","","Safeguarding Children and Young People's Services","Social Work","Children & Family Duty Team","Agency",18/04/2017 00:00:00,"6634763",1170,"NONSTOP RECRUITMENT"
"Bracknell Forest Council","http://opendatacommunities.org/id/unitary-authority/bracknell-forest","","","Holding Accounts not in Budget Book - COF","General Holding Accounts","Certificated Contract Payments","R&M - Service Contracts",01/06/2017 00:00:00,"6638611",835.37,"CHURCHES FIRE SECURITY LTD"
"Bracknell Forest Council","http://opendatacommunities.org/id/unitary-authority/bracknell-forest","","","Assistive Equipment & Technology","Assistive Equipment & Technology","Assistive Equipment & Technology","Contracted Services",22/05/2017 00:00:00,"6636783",72575,"WEST BERKSHIRE COUNCIL"
"Bracknell Forest Council","http://opendatacommunities.org/id/unitary-authority/bracknell-forest","","","Family Support Services","Targeted Family Support","Assistance Cash in Kind/Care Needs","Contracted Services",30/03/2017 00:00:00,"6635706",505.5,"COUNTY CARE BERKSHIRE"
"Bracknell Forest Council","http://opendatacommunities.org/id/unitary-authority/bracknell-forest","","","Management and Support Services - CYPL","Holding Codes - net nil","SSCO Partnership Fund","Reference Books & Publications",24/03/2017 00:00:00,"6635256",910,"VAL SABIN PUBLICATIONS"
"Bracknell Forest Council","http://opendatacommunities.org/id/unitary-authority/bracknell-forest","","","Management and Support Services - CYPL","Holding Codes - net nil","SSCO Partnership Fund","Consultants Fees",24/03/2017 00:00:00,"6635255",1046.4,"VAL SABIN PUBLICATIONS"
"Bracknell Forest Council","http://opendatacommunities.org/id/unitary-authority/bracknell-forest","","","Public Transport","Concessionary Fares","Concessionary Fares","Contracted Services",19/04/2017 00:00:00,"6635220",2824.96,"COURTNEY COACHES LTD"
"Bracknell Forest Council","http://opendatacommunities.org/id/unitary-authority/bracknell-forest","","","Children Looked After","Fostering services","BFBC Fostering Allowances","Subscriptions",01/04/2017 00:00:00,"6635215",656.14,"THE FOSTERING NETWORK"
"Bracknell Forest Council","http://opendatacommunities.org/id/unitary-authority/bracknell-forest","","","Special Schools & Alternative Provision","Youth Services","Alternative Provision for the Primary Aged pupils without a statement","Voluntary Sector Service Providers",04/04/2017 00:00:00,"6633932",5000,"HEROES ANIMAL FARM"
"Bracknell Forest Council","http://opendatacommunities.org/id/unitary-authority/bracknell-forest","","","Central Support Services - COF","Finance","Finance Departmental Administration","Consultants Fees",28/03/2017 00:00:00,"6634092",1895,"LG FUTURES / LOCAL GOVERNMENT FUTURES LTD"
"Bracknell Forest Council","http://opendatacommunities.org/id/unitary-authority/bracknell-forest","","","Post 16 Provision","High needs budget fpr post-16 provision","Mainstream - Element 3 top up non BFC post 16","Other Local Authorities",27/03/2017 00:00:00,"6632683",3276,"CHARTERS SCHOOL"
"Bracknell Forest Council","http://opendatacommunities.org/id/unitary-authority/bracknell-forest","","","Central Support Services - COF","Policy Unit","Transformation Board","Consultants Fees",23/04/2017 00:00:00,"6635427",1900,"MHR / MIDLAND SOFTWARE"
"Bracknell Forest Council","http://opendatacommunities.org/id/unitary-authority/bracknell-forest","","","Management and Support Services - CYPL","Strategy, Resources and Early Interventions","School Catering","Catering Equipment - Purchase",10/05/2017 00:00:00,"6636497",559,"SCOTFORD & TEASDALE"
"Bracknell Forest Council","http://opendatacommunities.org/id/unitary-authority/bracknell-forest","","","Recreation, Sports and Leisure","Golf Courses","Leisure DSO - Downshire Golf Course","Vehicle Repairs",30/04/2017 00:00:00,"6636476",668,"LISTER WILDER LTD"
"Bracknell Forest Council","http://opendatacommunities.org/id/unitary-authority/bracknell-forest","","","Family Support Services","Targeted Family Support","Assistance Cash in Kind/Care Needs","Contracted Services",28/04/2017 00:00:00,"6636271",527.06,"COUNTY CARE BERKSHIRE"
"Bracknell Forest Council","http://opendatacommunities.org/id/unitary-authority/bracknell-forest","","","Family Support Services","Targeted Family Support","Assistance Cash in Kind/Care Needs","Contracted Services",21/04/2017 00:00:00,"6636277",527.06,"COUNTY CARE BERKSHIRE"
"Bracknell Forest Council","http://opendatacommunities.org/id/unitary-authority/bracknell-forest","","","Other Education and Community Budget","Service strategy and other education functions","Learning & Achievement","Consultants Fees",20/04/2017 00:00:00,"6634785",3174.42,"NCER CIC"
"Bracknell Forest Council","http://opendatacommunities.org/id/unitary-authority/bracknell-forest","","","Culture and Heritage","Heritage Museums & Galleries","The Look Out","Other Fees for Bought-in Services",11/04/2017 00:00:00,"6634190",1016.6,"EPOS NOW LTD"
"Bracknell Forest Council","http://opendatacommunities.org/id/unitary-authority/bracknell-forest","","","Children Looked After","Other services for LAC","LAC - Under 11s Expenditure","Rent of Property",31/05/2017 00:00:00,"6637816",1550,"Redact Personal Info"
"Bracknell Forest Council","http://opendatacommunities.org/id/unitary-authority/bracknell-forest","","","Children Looked After","Other services for LAC","LAC - Under 11s Expenditure","Rent of Property",28/04/2017 00:00:00,"6637535",1820,"PINEHILL ROOMS BRACKNELL"
"Bracknell Forest Council","http://opendatacommunities.org/id/unitary-authority/bracknell-forest","","","Services for Young People","Targeted services for young people","Youth Line","Grants and Donations",08/06/2017 00:00:00,"6637987",5625,"YOUTH LINE LTD"
"Bracknell Forest Council","http://opendatacommunities.org/id/unitary-authority/bracknell-forest","","","Cemeteries, Crematoria & Mortuary Services","Cemeteries & Crematorium","Cemetery & Crematorium Landscaping","Materials",12/06/2017 00:00:00,"6639280",2962.95,"AMETHYST HORTICULTURE LIMITED"
"Bracknell Forest Council","http://opendatacommunities.org/id/unitary-authority/bracknell-forest","","","Other Education and Community Budget","Service strategy and other education functions","Learning & Achievement","Subscriptions",04/05/2017 00:00:00,"6635811",8976,"FFT EDUCATION LTD A/C SOUTH WALES"
"Bracknell Forest Council","http://opendatacommunities.org/id/unitary-authority/bracknell-forest","","","Other Education and Community Budget","Service strategy and other education functions","Learning & Achievement","Consultants Fees",29/04/2017 00:00:00,"6635798",680,"PERMANENT FUTURES LTD"
"Bracknell Forest Council","http://opendatacommunities.org/id/unitary-authority/bracknell-forest","","","Assistive Equipment & Technology","Assistive Equipment & Technology","Assistive Equipment & Technology","Other Fees for Bought-in Services",04/04/2017 00:00:00,"6634293",2525,"PRIORITEYES LTD"
"Bracknell Forest Council","http://opendatacommunities.org/id/unitary-authority/bracknell-forest","","","Assistive Equipment & Technology","Assistive Equipment & Technology","Assistive Equipment & Technology","Other Fees for Bought-in Services",04/04/2017 00:00:00,"6634294",4200,"PRIORITEYES LTD"
"Bracknell Forest Council","http://opendatacommunities.org/id/unitary-authority/bracknell-forest","","","Other Trading Surpluses & Deficits","Smartcard","Smartconnect","Contracted Services",31/03/2017 00:00:00,"6634541",21864,"SMARTCITIZEN LIMITED"
"Bracknell Forest Council","http://opendatacommunities.org/id/unitary-authority/bracknell-forest","","","Safeguarding Children and Young People's Services","Local safeguarding children board","Safeguarding Childrens Board","Consultants Fees",31/03/2017 00:00:00,"6638303",4750,"ALEX WALTERS CONSULTANCY LTD"
"Bracknell Forest Council","http://opendatacommunities.org/id/unitary-authority/bracknell-forest","","","Recreation, Sports and Leisure","Sports Development & Community Recreations","Half Marathon 2015","Grants and Donations",16/05/2017 00:00:00,"6636067",560,"BRACKNELL FOREST RUNNERS"
"Bracknell Forest Council","http://opendatacommunities.org/id/unitary-authority/bracknell-forest","","","Other Education and Community Budget","Service strategy and other education functions","Learning & Achievement","Consultants Fees",06/05/2017 00:00:00,"6636074",2040,"PERMANENT FUTURES LTD"
"Bracknell Forest Council","http://opendatacommunities.org/id/unitary-authority/bracknell-forest","","","Recreation, Sports and Leisure","Sports Development & Community Recreations","Half Marathon 2015","Equipment - Rental",04/05/2017 00:00:00,"6635651",1770,"SPORT SYSTEMS"
"Bracknell Forest Council","http://opendatacommunities.org/id/unitary-authority/bracknell-forest","","","Supporting People","Supporting People","Supporting People Payments","Transfer Payments - Supporting People",11/05/2017 00:00:00,"6635641",43852.87,"LOOK AHEAD CARE AND SUPPORT"
"Bracknell Forest Council","http://opendatacommunities.org/id/unitary-authority/bracknell-forest","","","Family Support Services","Targeted Family Support","Assistance Cash in Kind/Care Needs","Contracted Services",22/03/2017 00:00:00,"6634096",566.16,"COUNTY CARE BERKSHIRE"
"Bracknell Forest Council","http://opendatacommunities.org/id/unitary-authority/bracknell-forest","","","Family Support Services","Targeted Family Support","Assistance Cash in Kind/Care Needs","Other Fees for Bought-in Services",30/03/2017 00:00:00,"6634097",4196.8,"SYMBOL FAMILY SUPPORT SERVICES LTD"
"Bracknell Forest Council","http://opendatacommunities.org/id/unitary-authority/bracknell-forest","","","Recreation, Sports and Leisure","Golf Courses","Leisure DSO - Downshire Golf Course","Equipment - Rental",01/04/2017 00:00:00,"6633925",876.96,"HITACHI CAPITAL BUSINESS FINANCE"
"Bracknell Forest Council","http://opendatacommunities.org/id/unitary-authority/bracknell-forest","","","Commissioning & Service Delivery","Commissioning & Service Delivery","IT","Computer Software Maintenance",14/11/2016 00:00:00,"6636917",890.4,"CARE MONITORING 2000 LTD"
"Bracknell Forest Council","http://opendatacommunities.org/id/unitary-authority/bracknell-forest","","","Holding Accounts not in Budget Book - COF","General Holding Accounts","Repairs and Maintenance","R&M - Planned",30/04/2017 00:00:00,"6635827",4469.73,"OVE ARUP & PARTNERS LTD"
"Bracknell Forest Council","http://opendatacommunities.org/id/unitary-authority/bracknell-forest","","","Recreation, Sports and Leisure","Sports Development & Community Recreations","Half Marathon 2015","Grants and Donations",16/05/2017 00:00:00,"6636114",600,"9TH BRACKNELL SCOUT GROUP"
"Bracknell Forest Council","http://opendatacommunities.org/id/unitary-authority/bracknell-forest","","","Recreation, Sports and Leisure","Sports Development & Community Recreations","Half Marathon 2015","Grants and Donations",16/05/2017 00:00:00,"6636122",1550,"MR D MAXWELL"
"Bracknell Forest Council","http://opendatacommunities.org/id/unitary-authority/bracknell-forest","","","Recreation, Sports and Leisure","Sports Development & Community Recreations","Half Marathon 2015","Grants and Donations",16/05/2017 00:00:00,"6636124",1550,"BERKSHIRE LOWLAND SEARCH & RESCUE"
"Bracknell Forest Council","http://opendatacommunities.org/id/unitary-authority/bracknell-forest","","","Holding Accounts not in Budget Book - COF","General Holding Accounts","Certificated Contract Payments","R&M - Reactive",28/04/2017 00:00:00,"6635591",1440,"EARTHING EQUIPMENT SUPPLIES"
"Bracknell Forest Council","http://opendatacommunities.org/id/unitary-authority/bracknell-forest","","","Holding Accounts not in Budget Book - COF","General Holding Accounts","Certificated Contract Payments","R&M - Reactive",22/04/2017 00:00:00,"6635592",1540,"TOWN & COUNTRY FELT ROOFING"
"Bracknell Forest Council","http://opendatacommunities.org/id/unitary-authority/bracknell-forest","","","Local Tax Collection","Council Tax Collection","Council Tax","Licences",01/03/2017 00:00:00,"6635671",1470.5,"NORTHGATE PUBLIC SERVICES (UK) LTD"
"Bracknell Forest Council","http://opendatacommunities.org/id/unitary-authority/bracknell-forest","","","Management and Support Services - CYPL","Unallocated High Needs Related Expenditure","Top Up Payments for Early Years","Other Local Authorities",13/03/2017 00:00:00,"6634386",1140,"SOUTH HILL PARK PRE-SCHOOL"
"Bracknell Forest Council","http://opendatacommunities.org/id/unitary-authority/bracknell-forest","","","Culture and Heritage","Heritage Museums & Galleries","The Look Out","Cost of Goods Sold",31/03/2017 00:00:00,"6633166",507.6,"KEYCRAFT"
"Bracknell Forest Council","http://opendatacommunities.org/id/unitary-authority/bracknell-forest","","","Culture and Heritage","Heritage Museums & Galleries","The Look Out","Cost of Goods Sold",24/01/2017 00:00:00,"6634728",616.25,"BRITISH FOSSILS"
"Bracknell Forest Council","http://opendatacommunities.org/id/unitary-authority/bracknell-forest","","","Holding Accounts not in Budget Book - COF","General Holding Accounts","Repairs and Maintenance","R&M - Planned",10/05/2017 00:00:00,"6636578",1250,"BERKSHIRE MECHANICAL SERVICES"
"Bracknell Forest Council","http://opendatacommunities.org/id/unitary-authority/bracknell-forest","","","Culture and Heritage","Heritage Museums & Galleries","The Look Out","Cost of Goods Sold",31/10/2016 00:00:00,"6622327",1118.28,"KEYCRAFT"
"Bracknell Forest Council","http://opendatacommunities.org/id/unitary-authority/bracknell-forest","","","Other Education and Community Budget","Service strategy and other education functions","Learning & Achievement","Consultants Fees",09/05/2017 00:00:00,"6635719",1575,"LINDA BAILY SCHOOL WISE CONSULTING LTD"
"Bracknell Forest Council","http://opendatacommunities.org/id/unitary-authority/bracknell-forest","","","Public Transport","Concessionary Fares","Concessionary Fares","Subscriptions",05/04/2017 00:00:00,"6634976",940,"ITSO LTD"
"Bracknell Forest Council","http://opendatacommunities.org/id/unitary-authority/bracknell-forest","","","Recreation, Sports and Leisure","Golf Courses","Leisure DSO - Downshire Golf Course","Equipment - Purchase",31/03/2017 00:00:00,"6634582",2000,"BADCOCK SERVICES LIMITED"
"Bracknell Forest Council","http://opendatacommunities.org/id/unitary-authority/bracknell-forest","","","Commissioning & Service Delivery","Commissioning & Service Delivery","IT","Computer Software Maintenance",14/03/2017 00:00:00,"6636963",15936,"CIVICA UK LIMITED"
"Bracknell Forest Council","http://opendatacommunities.org/id/unitary-authority/bracknell-forest","","","Supporting People","Supporting People","Supporting People Payments","Transfer Payments - Supporting People",30/06/2017 00:00:00,"6639441",1537.12,"LIFE HOUSING"
"Bracknell Forest Council","http://opendatacommunities.org/id/unitary-authority/bracknell-forest","","","Supporting People","Supporting People","Supporting People Payments","Transfer Payments - Supporting People",30/06/2017 00:00:00,"6639442",43852.87,"LOOK AHEAD CARE AND SUPPORT"
"Bracknell Forest Council","http://opendatacommunities.org/id/unitary-authority/bracknell-forest","","","Culture and Heritage","Heritage Museums & Galleries","The Look Out","Equipment - R&M",16/06/2017 00:00:00,"6639381",667,"FRONTIER-PITTS"
"Bracknell Forest Council","http://opendatacommunities.org/id/unitary-authority/bracknell-forest","","","Post 16 Provision","High needs budget fpr post-16 provision","Mainstream - Element 3 top up non BFC post 16","RB of Windsor & Maidenhead",10/03/2017 00:00:00,"6639376",29318,"MANOR GREEN SCHOOL"
"Bracknell Forest Council","http://opendatacommunities.org/id/unitary-authority/bracknell-forest","","","Central Support Services - COF","Finance","Finance Departmental Administration","Agency",15/06/2017 00:00:00,"6638931",693.5,"PORTFOLIO PAYROLL LTD"
"Bracknell Forest Council","http://opendatacommunities.org/id/unitary-authority/bracknell-forest","","","Post 16 Provision","High needs budget fpr post-16 provision","Mainstream - Element 3 top up non BFC post 16","Other Local Authorities",16/06/2017 00:00:00,"6638751",6808,"SURREY COUNTY COUNCIL"
"Bracknell Forest Council","http://opendatacommunities.org/id/unitary-authority/bracknell-forest","","","Support Services & Management Costs","Training","Social Care Training - Adults","Training Costs",16/06/2017 00:00:00,"6638900",2620,"THE GREY MATTER / TGM GROUP.NET"
"Bracknell Forest Council","http://opendatacommunities.org/id/unitary-authority/bracknell-forest","","","Public Transport","Concessionary Fares","Concessionary Fares","Contracted Services",20/06/2017 00:00:00,"6638402",5300,"FIRST BEELINE BUSES LIMITED"
"Bracknell Forest Council","http://opendatacommunities.org/id/unitary-authority/bracknell-forest","","","Public Transport","Concessionary Fares","Concessionary Fares","Contracted Services",20/06/2017 00:00:00,"6638405",6500,"READING TRANSPORT LTD"
"Bracknell Forest Council","http://opendatacommunities.org/id/unitary-authority/bracknell-forest","","","Recreation, Sports and Leisure","Golf Courses","Leisure DSO - Downshire Golf Course","Equipment - Rental",01/06/2017 00:00:00,"6638043",911.96,"HITACHI CAPITAL BUSINESS FINANCE"
"Bracknell Forest Council","http://opendatacommunities.org/id/unitary-authority/bracknell-forest","","","Other Education and Community Budget","Service strategy and other education functions","Learning & Achievement","Consultants Fees",20/05/2017 00:00:00,"6638068",952,"PERMANENT FUTURES LTD"
"Bracknell Forest Council","http://opendatacommunities.org/id/unitary-authority/bracknell-forest","","","Culture and Heritage","Heritage Museums & Galleries","The Look Out","Cost of Goods Sold",10/02/2017 00:00:00,"6636839",522,"RAVENSDEN PLC"
"Bracknell Forest Council","http://opendatacommunities.org/id/unitary-authority/bracknell-forest","","","Corporate Management COF","Dir of Corporate Services Support & Admin","Corporate Services Recruitment etc.","Staff Advertising",22/05/2017 00:00:00,"6636976",1468.5,"AMBLEGLOW LTD"
"Bracknell Forest Council","http://opendatacommunities.org/id/unitary-authority/bracknell-forest","","","Older People (65+)","Long Term Support - Community:Supported Living","SS Older People 65+ Long Term Support - Community:Supported Living","Contracted Services",02/05/2017 00:00:00,"6636441",700,"INDIGO ACCESS LTD"
"Bracknell Forest Council","http://opendatacommunities.org/id/unitary-authority/bracknell-forest","","","Older People (65+)","Long Term Support - Community:Supported Living","SS Older People 65+ Long Term Support - Community:Supported Living","Contracted Services",02/05/2017 00:00:00,"6636456",800,"INDIGO ACCESS LTD"
"Bracknell Forest Council","http://opendatacommunities.org/id/unitary-authority/bracknell-forest","","","Older People (65+)","Long Term Support - Community:Supported Living","SS Older People 65+ Long Term Support - Community:Supported Living","Contracted Services",02/05/2017 00:00:00,"6636468",960,"INDIGO ACCESS LTD"
"Bracknell Forest Council","http://opendatacommunities.org/id/unitary-authority/bracknell-forest","","","Other Education and Community Budget","Service strategy and other education functions","Education Centre","Catering Consumables",20/04/2017 00:00:00,"6635012",763,"CROWN WATER & COFFEE LTD"
"Bracknell Forest Council","http://opendatacommunities.org/id/unitary-authority/bracknell-forest","","","Miscellaneous Public Health Services","Public Health Teams","Public Health - Berkshire Shared Team","Contracted Services",06/03/2017 00:00:00,"6634112",11540,"PINNACLE HEALTH PARNERSHIP"
"Bracknell Forest Council","http://opendatacommunities.org/id/unitary-authority/bracknell-forest","","","Recreation, Sports and Leisure","Golf Courses","Leisure DSO - Downshire Golf Course","Equipment - Rental",01/05/2017 00:00:00,"6635460",876.96,"HITACHI CAPITAL BUSINESS FINANCE"
"Bracknell Forest Council","http://opendatacommunities.org/id/unitary-authority/bracknell-forest","","","Family Support Services","Targeted Family Support","Assistance Cash in Kind/Care Needs","Contracted Services",19/01/2017 00:00:00,"6634118",505.5,"COUNTY CARE BERKSHIRE"
"Bracknell Forest Council","http://opendatacommunities.org/id/unitary-authority/bracknell-forest","","","Internal Services","Internal Services","Glenfield","Furniture - Purchase",12/06/2017 00:00:00,"6638095",800,"Redact Personal Info"
"Bracknell Forest Council","http://opendatacommunities.org/id/unitary-authority/bracknell-forest","","","Culture and Heritage","Heritage Museums & Galleries","The Look Out","Equipment - Rental",29/03/2017 00:00:00,"6635251",2833.33,"TECHNIQUEST LTD"
"Bracknell Forest Council","http://opendatacommunities.org/id/unitary-authority/bracknell-forest","","","Culture and Heritage","Heritage Museums & Galleries","The Look Out","Equipment - Rental",15/02/2017 00:00:00,"6635252",2833.33,"TECHNIQUEST LTD"
"Bracknell Forest Council","http://opendatacommunities.org/id/unitary-authority/bracknell-forest","","","Primary Schools","Centrally managed Expenditure - Early Years","SSEYCG Outcomes, Quality & Inclusion","Other Fees for Bought-in Services",07/04/2017 00:00:00,"6635100",7750,"HOME-START BRACKNELL FOREST"
"Bracknell Forest Council","http://opendatacommunities.org/id/unitary-authority/bracknell-forest","","","Culture and Heritage","Heritage Museums & Galleries","The Look Out Car Parking","Contracted Services",30/04/2017 00:00:00,"6635544",2703.71,"INDIGO"
"Bracknell Forest Council","http://opendatacommunities.org/id/unitary-authority/bracknell-forest","","","Culture and Heritage","Heritage Museums & Galleries","The Look Out Car Parking","Contracted Services",30/04/2017 00:00:00,"6635547",518.36,"INDIGO"
"Bracknell Forest Council","http://opendatacommunities.org/id/unitary-authority/bracknell-forest","","","Culture and Heritage","Heritage Museums & Galleries","The Look Out","Equipment - Rental",31/01/2017 00:00:00,"6635253",2833.33,"TECHNIQUEST LTD"
"Bracknell Forest Council","http://opendatacommunities.org/id/unitary-authority/bracknell-forest","","","Primary Schools","Centrally managed Expenditure - Early Years","SSEYCG Outcomes, Quality & Inclusion","Other Fees for Bought-in Services",07/04/2017 00:00:00,"6635100",3333.5,"HOME-START BRACKNELL FOREST"
"Bracknell Forest Council","http://opendatacommunities.org/id/unitary-authority/bracknell-forest","","","Family Support Services","Targeted Family Support","Assistance Cash in Kind/Care Needs","Contracted Services",09/05/2017 00:00:00,"6636989",505.5,"COUNTY CARE BERKSHIRE"
"Bracknell Forest Council","http://opendatacommunities.org/id/unitary-authority/bracknell-forest","","","Recreation, Sports and Leisure","Sports Development & Community Recreations","Half Marathon 2015","Materials",28/04/2017 00:00:00,"6637020",1592.5,"RUNNING IMP INTERNATIONAL"
"Bracknell Forest Council","http://opendatacommunities.org/id/unitary-authority/bracknell-forest","","","Public Transport","Concessionary Fares","Concessionary Fares","Contracted Services",10/04/2017 00:00:00,"6634521",4712.5,"FIRST BEELINE BUSES LIMITED"
"Bracknell Forest Council","http://opendatacommunities.org/id/unitary-authority/bracknell-forest","","","Services for Young People","Targeted services for young people","Youth Line","Grants and Donations",18/04/2017 00:00:00,"6634122",5625,"YOUTH LINE LTD"
"Bracknell Forest Council","http://opendatacommunities.org/id/unitary-authority/bracknell-forest","","","Traffic Management & Road Safety","Traffic Management","Intelligent Transport Systems","Contracted Services",10/04/2017 00:00:00,"6634134",12800,"TYCO FIRE & INTEGRATED SOLUTIONS (UK) LTD"
"Bracknell Forest Council","http://opendatacommunities.org/id/unitary-authority/bracknell-forest","","","Culture and Heritage","Heritage Museums & Galleries","The Look Out","Cost of Goods Sold",25/05/2017 00:00:00,"6637297",1051.4,"BRITISH FOSSILS"
"Bracknell Forest Council","http://opendatacommunities.org/id/unitary-authority/bracknell-forest","","","Public Transport","Concessionary Fares","Concessionary Fares","Contracted Services",17/05/2017 00:00:00,"6636161",44337,"COURTNEY COACHES LTD"
"Bracknell Forest Council","http://opendatacommunities.org/id/unitary-authority/bracknell-forest","","","Public Transport","Concessionary Fares","Concessionary Fares","Contracted Services",17/05/2017 00:00:00,"6636162",5300,"FIRST BEELINE BUSES LIMITED"
"Bracknell Forest Council","http://opendatacommunities.org/id/unitary-authority/bracknell-forest","","","Public Transport","Concessionary Fares","Concessionary Fares","Contracted Services",17/05/2017 00:00:00,"6636190",11416.66,"STAGECOACH HANTS AND SURREY"
"Bracknell Forest Council","http://opendatacommunities.org/id/unitary-authority/bracknell-forest","","","Public Transport","Concessionary Fares","Concessionary Fares","Contracted Services",17/05/2017 00:00:00,"6636201",6500,"READING TRANSPORT LTD"
"Bracknell Forest Council","http://opendatacommunities.org/id/unitary-authority/bracknell-forest","","","Culture and Heritage","Heritage Museums & Galleries","The Look Out","Cost of Goods Sold",10/02/2017 00:00:00,"6637308",956.73,"JAMES GALT & CO LTD"
"Bracknell Forest Council","http://opendatacommunities.org/id/unitary-authority/bracknell-forest","","","Public Transport","Concessionary Fares","Concessionary Fares","Contracted Services",18/04/2017 00:00:00,"6634128",5300,"FIRST BEELINE BUSES LIMITED"
"Bracknell Forest Council","http://opendatacommunities.org/id/unitary-authority/bracknell-forest","","","Public Transport","Concessionary Fares","Concessionary Fares","Contracted Services",01/05/2017 00:00:00,"6636150",44337,"COURTNEY COACHES LTD"
"Bracknell Forest Council","http://opendatacommunities.org/id/unitary-authority/bracknell-forest","","","Holding Accounts not in Budget Book - COF","General Holding Accounts","Mayors Charity Fund","Civic Receptions/Hospitality",05/05/2017 00:00:00,"6636040",3061.58,"COPPID BEECH HOTEL"
"Bracknell Forest Council","http://opendatacommunities.org/id/unitary-authority/bracknell-forest","","","Adults (18-64)","Long Term Support - Community:Supported Living","LD Adults 18-64 Long Term Support - Community:Supported Living","Other Support to Clients",03/05/2017 00:00:00,"6635495",1449,"JJM TAXIS & ZULU CARS LTD"
"Bracknell Forest Council","http://opendatacommunities.org/id/unitary-authority/bracknell-forest","","","Children Looked After","Other services for LAC","LAC - Under 11s Expenditure","Other Fees for Bought-in Services",24/03/2017 00:00:00,"6635134",1740,"INSIGHT4CHILDREN LIMITED"
"Bracknell Forest Council","http://opendatacommunities.org/id/unitary-authority/bracknell-forest","","","Commissioning & Service Delivery","Commissioning & Service Delivery","IT","Computer Maintenance",09/03/2017 00:00:00,"6636761",4000,"LIQUIDLOGIC"
"Bracknell Forest Council","http://opendatacommunities.org/id/unitary-authority/bracknell-forest","","","Holding Accounts not in Budget Book - COF","General Holding Accounts","Certificated Contract Payments","R&M - Service Contracts",07/04/2017 00:00:00,"6634532",2072,"EARTHING EQUIPMENT SUPPLIES"
"Bracknell Forest Council","http://opendatacommunities.org/id/unitary-authority/bracknell-forest","","","Recreation, Sports and Leisure","Golf Courses","Leisure DSO - Downshire Golf Course","Materials",03/04/2017 00:00:00,"6635076",2341.5,"INDIGROW UK"
"Bracknell Forest Council","http://opendatacommunities.org/id/unitary-authority/bracknell-forest","","","Recreation, Sports and Leisure","Golf Courses","Leisure DSO - Downshire Golf Course","Materials",03/04/2017 00:00:00,"6635080",7260.45,"INDIGROW UK"
"Bracknell Forest Council","http://opendatacommunities.org/id/unitary-authority/bracknell-forest","","","Recreation, Sports and Leisure","Golf Courses","Leisure DSO - Downshire Golf Course","Materials",07/04/2017 00:00:00,"6635063",1348,"COMPLETE WEED CONTROL"
"Bracknell Forest Council","http://opendatacommunities.org/id/unitary-authority/bracknell-forest","","","Recreation, Sports and Leisure","Golf Courses","Leisure DSO - Downshire Golf Course","R&M - Service Contracts",07/04/2017 00:00:00,"6635063",1365,"COMPLETE WEED CONTROL"
"Bracknell Forest Council","http://opendatacommunities.org/id/unitary-authority/bracknell-forest","","","Local Tax Collection","Council Tax Collection","Council Tax","Licences",01/03/2017 00:00:00,"6634839",6834.59,"NORTHGATE PUBLIC SERVICES (UK) LTD"
"Bracknell Forest Council","http://opendatacommunities.org/id/unitary-authority/bracknell-forest","","","Local Tax Collection","Council Tax Collection","Council Tax","Equipment - R&M",12/04/2017 00:00:00,"6634142",696,"NORTHGATE PUBLIC SERVICES (UK) LTD"
"Bracknell Forest Council","http://opendatacommunities.org/id/unitary-authority/bracknell-forest","","","Open Spaces","Community Parks & Open Spaces","Play Areas","R&M - Planned",16/05/2017 00:00:00,"6639081",750,"PGS INSTALLATIONS LTD"
"Bracknell Forest Council","http://opendatacommunities.org/id/unitary-authority/bracknell-forest","","","Democratic Representation & Management COF","Democratic Representation & Management - COF","Mayoral Account / Lord Lieutenant","Vehicle Hire Charge",23/05/2017 00:00:00,"6637031",513.5,"QX CARS LTD- FORMERLY QUEST EXECUTIVE LTD"
"Bracknell Forest Council","http://opendatacommunities.org/id/unitary-authority/bracknell-forest","","","Recreation, Sports and Leisure","Sports Development & Community Recreations","Half Marathon 2015","Materials",28/04/2017 00:00:00,"6637017",4947.3,"RUNNING IMP INTERNATIONAL"
"Bracknell Forest Council","http://opendatacommunities.org/id/unitary-authority/bracknell-forest","","","Supporting People","Supporting People","Supporting People Payments","Electricity",22/05/2017 00:00:00,"6636809",3990,"LOOK AHEAD CARE AND SUPPORT"
"Bracknell Forest Council","http://opendatacommunities.org/id/unitary-authority/bracknell-forest","","","Culture and Heritage","Heritage Museums & Galleries","The Look Out","Materials",19/04/2017 00:00:00,"6634890",3895,"HALILIT"
"Bracknell Forest Council","http://opendatacommunities.org/id/unitary-authority/bracknell-forest","","","Other Education and Community Budget","Service strategy and other education functions","Learning & Achievement","Consultants Fees",17/06/2017 00:00:00,"6639019",4250,"PERMANENT FUTURES LTD"
"Bracknell Forest Council","http://opendatacommunities.org/id/unitary-authority/bracknell-forest","","","Safeguarding Children and Young People's Services","Social Work","Children & Family Duty Team","Agency",18/05/2017 00:00:00,"6636756",1443,"NONSTOP RECRUITMENT"
"Bracknell Forest Council","http://opendatacommunities.org/id/unitary-authority/bracknell-forest","","","Safeguarding Children and Young People's Services","Social Work","Children & Family Duty Team","Agency",04/05/2017 00:00:00,"6636784",1374.75,"NONSTOP RECRUITMENT"
"Bracknell Forest Council","http://opendatacommunities.org/id/unitary-authority/bracknell-forest","","","Safeguarding Children and Young People's Services","Social Work","Children & Family Duty Team","Agency",08/05/2017 00:00:00,"6636785",1170,"NONSTOP RECRUITMENT"
"Bracknell Forest Council","http://opendatacommunities.org/id/unitary-authority/bracknell-forest","","","Central Support Services - COF","Policy Unit","Transformation Board","Consultants Fees",30/04/2017 00:00:00,"6635514",8819.35,"ALPINE RESOURCING LTD"
"Bracknell Forest Council","http://opendatacommunities.org/id/unitary-authority/bracknell-forest","","","Central Support Services - COF","Policy Unit","Transformation Board","Consultants Fees",30/04/2017 00:00:00,"6635515",1381.03,"ALPINE RESOURCING LTD"
"Bracknell Forest Council","http://opendatacommunities.org/id/unitary-authority/bracknell-forest","","","Culture and Heritage","Heritage Museums & Galleries","The Look Out Car Parking","Contracted Services",31/05/2017 00:00:00,"6638079",518.36,"INDIGO"
"Bracknell Forest Council","http://opendatacommunities.org/id/unitary-authority/bracknell-forest","","","Culture and Heritage","Heritage Museums & Galleries","The Look Out","Cost of Goods Sold",27/04/2017 00:00:00,"6638300",1212.72,"TOBAR LIMITED"
"Bracknell Forest Council","http://opendatacommunities.org/id/unitary-authority/bracknell-forest","","","Business Support","Premises Development","Tennis Centre","Land-Rents Payable",08/06/2017 00:00:00,"6639025",36562.5,"BRACKNELL ONE LTD & BRACKNELL TWO LTD"
"Bracknell Forest Council","http://opendatacommunities.org/id/unitary-authority/bracknell-forest","","","Service Management & Support Services","Service Management & Support Services","Departmental Office Services","Other Fees for Bought-in Services",26/05/2017 00:00:00,"6637071",8670,"DELOITTE"
"Bracknell Forest Council","http://opendatacommunities.org/id/unitary-authority/bracknell-forest","","","Holding Accounts not in Budget Book - COF","General Holding Accounts","Certificated Contract Payments","R&M - Service Contracts",31/05/2017 00:00:00,"6638499",1063.8,"ONWATCH MULTIFIRE PLC"
"Bracknell Forest Council","http://opendatacommunities.org/id/unitary-authority/bracknell-forest","","","Internal Services","Internal Services","Glenfield","Contracted Services",09/05/2017 00:00:00,"6638549",1209.6,"SKYGUARD LTD"
"Bracknell Forest Council","http://opendatacommunities.org/id/unitary-authority/bracknell-forest","","","Culture and Heritage","Heritage Museums & Galleries","The Look Out","Equipment - R&M",09/05/2017 00:00:00,"6635566",2150,"SHORTS ELECTRICAL LTD"
"Bracknell Forest Council","http://opendatacommunities.org/id/unitary-authority/bracknell-forest","","","Corporate Management COF","Corporate Management COF","Chief Executive & Support","Other Fees for Bought-in Services",08/05/2017 00:00:00,"6635508",2500,"PAYMENT WITHOUT INVOICES"
"Bracknell Forest Council","http://opendatacommunities.org/id/unitary-authority/bracknell-forest","","","Central Support Services - COF","Finance","Finance Departmental Administration","Agency",25/05/2017 00:00:00,"6637247",707.75,"PORTFOLIO PAYROLL LTD"
"Bracknell Forest Council","http://opendatacommunities.org/id/unitary-authority/bracknell-forest","","","Recreation, Sports and Leisure","Golf Courses","Leisure DSO - Downshire Golf Course","R&M - Service Contracts",06/06/2017 00:00:00,"6639286",660,"WILDLIFE MANAGEMENT LTD"
"Bracknell Forest Council","http://opendatacommunities.org/id/unitary-authority/bracknell-forest","","","Commissioning & Service Delivery","Commissioning & Service Delivery","IT","Computer Software Maintenance",19/06/2017 00:00:00,"6639239",2114.5,"CIVICA UK LTD"
"Bracknell Forest Council","http://opendatacommunities.org/id/unitary-authority/bracknell-forest","","","Special Schools","Delegated Secondary Schools Budgets","Secondary Budget","Contracted Services",28/06/2017 00:00:00,"6639240",6012.5,"THE BRAKENHALE SCHOOL"
"Bracknell Forest Council","http://opendatacommunities.org/id/unitary-authority/bracknell-forest","","","Central Support Services - COF","Fleet","Transport Services","Taxi Charges",01/05/2017 00:00:00,"6637587",2143,"BERKSHIRE EDUCATION TRAVEL"
"Bracknell Forest Council","http://opendatacommunities.org/id/unitary-authority/bracknell-forest","","","Primary Schools","Centrally managed Expenditure - Early Years","SSEYCG Outcomes, Quality & Inclusion","Learning Resources - Purchase",28/03/2017 00:00:00,"6637083",503.76,"SMART KIDS (UK) LTD"
"Bracknell Forest Council","http://opendatacommunities.org/id/unitary-authority/bracknell-forest","","","Holding Accounts not in Budget Book - COF","General Holding Accounts","Repairs and Maintenance","R&M - Planned",02/05/2017 00:00:00,"6636924",980,"CONTROL MATTERS LTD"
"Bracknell Forest Council","http://opendatacommunities.org/id/unitary-authority/bracknell-forest","","","Cemeteries, Crematoria & Mortuary Services","Cemeteries & Crematorium","Cemetery & Crematorium Landscaping","Materials",14/05/2017 00:00:00,"6636727",697.95,"AMETHYST HORTICULTURE LIMITED"
"Bracknell Forest Council","http://opendatacommunities.org/id/unitary-authority/bracknell-forest","","","Recreation, Sports and Leisure","Sports Development & Community Recreations","Half Marathon 2015","Other Fees for Bought-in Services",11/05/2017 00:00:00,"6636496",1534.96,"CASH AND TRAFFIC MANAGEMENT LTD"
"Bracknell Forest Council","http://opendatacommunities.org/id/unitary-authority/bracknell-forest","","","Holding Accounts not in Budget Book - COF","General Holding Accounts","Repairs and Maintenance","R&M - Planned",26/05/2017 00:00:00,"6635584",2180,"KIER FACILITIES SERVICES LIMITED"
"Bracknell Forest Council","http://opendatacommunities.org/id/unitary-authority/bracknell-forest","","","Corporate Management COF","Corporate Management COF","Cserv. - Tax Making & Statutory Account","Statutory Auditors Fees",26/04/2017 00:00:00,"6635601",32462,"ERNST & YOUNG"
"Bracknell Forest Council","http://opendatacommunities.org/id/unitary-authority/bracknell-forest","","","Assistive Equipment & Technology","Assistive Equipment & Technology","Assistive Equipment & Technology","Contracted Services",04/05/2017 00:00:00,"6635546",201624.91,"WEST BERKSHIRE COUNCIL"
"Bracknell Forest Council","http://opendatacommunities.org/id/unitary-authority/bracknell-forest","","","Public Transport","Concessionary Fares","Concessionary Fares","Contracted Services",19/04/2017 00:00:00,"6634179",5300,"READING TRANSPORT LTD"
"Bracknell Forest Council","http://opendatacommunities.org/id/unitary-authority/bracknell-forest","","","Culture and Heritage","Heritage Museums & Galleries","The Look Out","Cost of Goods Sold",28/04/2017 00:00:00,"6636710",2105.76,"KEYCRAFT"
"Bracknell Forest Council","http://opendatacommunities.org/id/unitary-authority/bracknell-forest","","","Open Spaces","Community Parks & Open Spaces","Play Areas","R&M - Planned",08/05/2017 00:00:00,"6638495",4220,"S & C SLATTER"
"Bracknell Forest Council","http://opendatacommunities.org/id/unitary-authority/bracknell-forest","","","Children Looked After","Fostering services","BFBC Fostering Allowances","Subscriptions",03/04/2017 00:00:00,"6635195",2659,"OFSTED"
"Bracknell Forest Council","http://opendatacommunities.org/id/unitary-authority/bracknell-forest","","","Public Transport","Concessionary Fares","Concessionary Fares","Contracted Services",31/03/2017 00:00:00,"6635192",2691.23,"COURTNEY COACHES LTD"
"Bracknell Forest Council","http://opendatacommunities.org/id/unitary-authority/bracknell-forest","","","Democratic Representation & Management COF","Democratic Representation & Management - COF","Mayoral Account / Lord Lieutenant","Civic Receptions/Hospitality",20/04/2017 00:00:00,"6635204",1013,"EASTHAMPSTEAD PARISH CHURCH"
"Bracknell Forest Council","http://opendatacommunities.org/id/unitary-authority/bracknell-forest","","","Special Schools & Alternative Provision","Pre-School Education","College Hall PRU","Schools ICT Learning Resources - Software",20/02/2017 00:00:00,"6635305",2376,"DIGITAL RIVER IRELAND LTD"
"Bracknell Forest Council","http://opendatacommunities.org/id/unitary-authority/bracknell-forest","","","Holding Accounts not in Budget Book - COF","General Holding Accounts","Repairs and Maintenance","R&M - Planned",22/03/2017 00:00:00,"6635099",1440,"CONTROL MATTERS LTD"
"Bracknell Forest Council","http://opendatacommunities.org/id/unitary-authority/bracknell-forest","","","Central Support Services - COF","Policy Unit","Transformation Board","Consultants Fees",31/03/2017 00:00:00,"6635258",26720.81,"ALPINE RESOURCING LTD"
"Bracknell Forest Council","http://opendatacommunities.org/id/unitary-authority/bracknell-forest","","","Central Support Services - COF","Policy Unit","Transformation Board","Consultants Fees",26/04/2017 00:00:00,"6635388",20750,"DOTTED EYES SOLUTIONS LIMITED"
"Bracknell Forest Council","http://opendatacommunities.org/id/unitary-authority/bracknell-forest","","","Service Management & Support Services","Service Management & Support Services","Departmental Office Services","Legal Fees",26/04/2017 00:00:00,"6637408",1800,"NO 5 CHAMBERS"
"Bracknell Forest Council","http://opendatacommunities.org/id/unitary-authority/bracknell-forest","","","Special Schools & Alternative Provision","Youth Services","Alternative Provision for the Primary Aged pupils without a statement","Voluntary Sector Service Providers",21/03/2017 00:00:00,"6637032",568.5,"MONARCH EDUCATION"
"Bracknell Forest Council","http://opendatacommunities.org/id/unitary-authority/bracknell-forest","","","Older People (65+)","Long Term Support - Community:Other Long Term Care","PS Long Term Support - Community: Other Long Term Care Blue Badges","Contracted Services",04/04/2017 00:00:00,"6634295",583.39,"NORTHGATE PUBLIC SERVICES (UK) LTD"
"Bracknell Forest Council","http://opendatacommunities.org/id/unitary-authority/bracknell-forest","","","Older People (65+)","Long Term Support - Community:Supported Living","SS Older People 65+ Long Term Support - Community:Supported Living","Contracted Services",03/04/2017 00:00:00,"6634258",1020,"INDIGO ACCESS LTD"
"Bracknell Forest Council","http://opendatacommunities.org/id/unitary-authority/bracknell-forest","","","Central Support Services - COF","Finance","Insurance Excess","Claims Paid",13/04/2017 00:00:00,"6634278",15000,"TOPMARK CLAIMS MANAGEMENT"
"Bracknell Forest Council","http://opendatacommunities.org/id/unitary-authority/bracknell-forest","","","Holding Accounts not in Budget Book - COF","General Holding Accounts","Repairs and Maintenance","R&M - Planned",25/05/2017 00:00:00,"6637481",2850,"BERKSHIRE MECHANICAL SERVICES"
"Bracknell Forest Council","http://opendatacommunities.org/id/unitary-authority/bracknell-forest","","","Children Looked After","Other services for LAC","LAC - Under 11s Expenditure","Rent of Property",01/06/2017 00:00:00,"6637265",1125,"PAYMENT WITHOUT INVOICES"
"Bracknell Forest Council","http://opendatacommunities.org/id/unitary-authority/bracknell-forest","","","Holding Accounts not in Budget Book - COF","General Holding Accounts","Repairs and Maintenance","R&M - Planned",30/05/2017 00:00:00,"6637486",2015,"BENVILLE AND MARSH LTD"
"Bracknell Forest Council","http://opendatacommunities.org/id/unitary-authority/bracknell-forest","","","Holding Accounts not in Budget Book - COF","General Holding Accounts","Certificated Contract Payments","R&M - Reactive",26/05/2017 00:00:00,"6637476",27934.12,"KIER FACILITIES SERVICES LIMITED"
"Bracknell Forest Council","http://opendatacommunities.org/id/unitary-authority/bracknell-forest","","","Culture and Heritage","Heritage Museums & Galleries","The Look Out","Equipment - Purchase",31/03/2017 00:00:00,"6633923",11342.23,"THE EXHIBIT GUYS"
"Bracknell Forest Council","http://opendatacommunities.org/id/unitary-authority/bracknell-forest","","","Recreation, Sports and Leisure","Golf Courses","Leisure DSO - Downshire Golf Course","Water & Sewerage",24/05/2017 00:00:00,"6637530",1195.57,"SOUTH EAST WATER"
"Bracknell Forest Council","http://opendatacommunities.org/id/unitary-authority/bracknell-forest","","","Public Transport","Concessionary Fares","Concessionary Fares","Contracted Services",13/04/2017 00:00:00,"6637532",1796.3,"COURTNEY COACHES LTD"
"Bracknell Forest Council","http://opendatacommunities.org/id/unitary-authority/bracknell-forest","","","Other Education and Community Budget","Service strategy and other education functions","Learning & Achievement","Consultants Fees",25/03/2017 00:00:00,"6637494",3060,"PERMANENT FUTURES LTD"
"Bracknell Forest Council","http://opendatacommunities.org/id/unitary-authority/bracknell-forest","","","Physical Activity","Physical activity for adults","Physical Activity - Adults (Berks)","Contracted Services",28/04/2017 00:00:00,"6636639",15499.67,"SOLUTIONS 4 HEALTH LTD"
"Bracknell Forest Council","http://opendatacommunities.org/id/unitary-authority/bracknell-forest","","","Social Care Activities","Social Care Activities","Locality Manager - Mental Health Services","Contracted Services",31/05/2017 00:00:00,"6637545",3886.44,"BERKS HEALTHCARE NHS FOUNDATION TRUST"
"Bracknell Forest Council","http://opendatacommunities.org/id/unitary-authority/bracknell-forest","","","Management and Support Services - CYPL","Unallocated High Needs Related Expenditure","Top Up Payments for Early Years","Other Local Authorities",28/03/2017 00:00:00,"6634388",1353.87,"RMA LAKESIDE NURSERY"
"Bracknell Forest Council","http://opendatacommunities.org/id/unitary-authority/bracknell-forest","","","Safeguarding Children and Young People's Services","Social Work","Children & Family Duty Team","Agency",03/04/2017 00:00:00,"6633397",1443,"NONSTOP RECRUITMENT"
"Bracknell Forest Council","http://opendatacommunities.org/id/unitary-authority/bracknell-forest","","","Holding Accounts not in Budget Book - COF","General Holding Accounts","Certificated Contract Payments","R&M - Reactive",25/05/2017 00:00:00,"6637475",850,"BERKSHIRE MECHANICAL SERVICES"
"Bracknell Forest Council","http://opendatacommunities.org/id/unitary-authority/bracknell-forest","","","Central Support Services - COF","Fleet","Transport Services","Taxi Charges",30/05/2017 00:00:00,"6637697",1487.5,"CROWN WHEELCHAIR TRAVEL"
"Bracknell Forest Council","http://opendatacommunities.org/id/unitary-authority/bracknell-forest","","","Central Support Services - COF","Fleet","Transport Services","Taxi Charges",31/05/2017 00:00:00,"6637699",1157.4,"JJM TAXIS & ZULU CARS LTD"
"Bracknell Forest Council","http://opendatacommunities.org/id/unitary-authority/bracknell-forest","","","Central Support Services - COF","Fleet","Transport Services","Taxi Charges",01/06/2017 00:00:00,"6637799",3373,"BERKSHIRE EDUCATION TRAVEL"
"Bracknell Forest Council","http://opendatacommunities.org/id/unitary-authority/bracknell-forest","","","Holding Accounts not in Budget Book - COF","General Holding Accounts","Certificated Contract Payments","R&M - Service Contracts",31/03/2017 00:00:00,"6633514",1332.92,"HSL"
"Bracknell Forest Council","http://opendatacommunities.org/id/unitary-authority/bracknell-forest","","","Holding Accounts not in Budget Book - COF","General Holding Accounts","Certificated Contract Payments","R&M - Service Contracts",17/03/2017 00:00:00,"6633522",2343.75,"HSL"
"Bracknell Forest Council","http://opendatacommunities.org/id/unitary-authority/bracknell-forest","","","Holding Accounts not in Budget Book - COF","General Holding Accounts","Certificated Contract Payments","R&M - Reactive",06/02/2017 00:00:00,"6632350",560,"CONTROL MATTERS LTD"
"Bracknell Forest Council","http://opendatacommunities.org/id/unitary-authority/bracknell-forest","","","Open Spaces","Community Parks & Open Spaces","South Hill Park Maintenance","Materials",25/05/2017 00:00:00,"6637295",6518.72,"OAKTREE GARDEN CENTRE"
"Bracknell Forest Council","http://opendatacommunities.org/id/unitary-authority/bracknell-forest","","","Management and Support Services - CYPL","Strategy, Resources and Early Interventions","School Catering","Catering Equipment - R&M",15/05/2017 00:00:00,"6636825",670,"F J LANE & SON LTD"
"Bracknell Forest Council","http://opendatacommunities.org/id/unitary-authority/bracknell-forest","","","Other Education and Community Budget","Service strategy and other education functions","Learning & Achievement","Computer Software",16/05/2017 00:00:00,"6636759",9864,"ANGEL SOLUTIONS LTD"
"Bracknell Forest Council","http://opendatacommunities.org/id/unitary-authority/bracknell-forest","","","Central Support Services - COF","Finance","Finance Departmental Administration","Agency",18/05/2017 00:00:00,"6636656",660.25,"PORTFOLIO PAYROLL LTD"
"Bracknell Forest Council","http://opendatacommunities.org/id/unitary-authority/bracknell-forest","","","Central Support Services - COF","Finance","Finance Departmental Administration","Agency",18/05/2017 00:00:00,"6636657",712.5,"PORTFOLIO PAYROLL LTD"
"Bracknell Forest Council","http://opendatacommunities.org/id/unitary-authority/bracknell-forest","","","Central Support Services - COF","Finance","Finance Departmental Administration","Agency",08/06/2017 00:00:00,"6638610",517.75,"PORTFOLIO PAYROLL LTD"
"Bracknell Forest Council","http://opendatacommunities.org/id/unitary-authority/bracknell-forest","","","Recreation, Sports and Leisure","Golf Courses","Leisure DSO - Downshire Golf Course","Equipment - Purchase",31/05/2017 00:00:00,"6638698",500,"ESD WASTE 2 WATER EUROPE LTD"
"Bracknell Forest Council","http://opendatacommunities.org/id/unitary-authority/bracknell-forest","","","Service Management & Support Services","Service Management & Support Services","Departmental Office Services","Licences",15/06/2017 00:00:00,"6638693",4577.56,"PPL"
"Bracknell Forest Council","http://opendatacommunities.org/id/unitary-authority/bracknell-forest","","","Children Looked After","Other services for LAC","LAC - Under 11s Expenditure","Contracted Services",22/02/2017 00:00:00,"6636817",1372.2,"J D HAWKINS"
"Bracknell Forest Council","http://opendatacommunities.org/id/unitary-authority/bracknell-forest","","","Holding Accounts not in Budget Book - COF","General Holding Accounts","Certificated Contract Payments","R&M - Reactive",16/05/2017 00:00:00,"6636830",750,"SOUTHERN ELECTRIC CONTRACTING"
"Bracknell Forest Council","http://opendatacommunities.org/id/unitary-authority/bracknell-forest","","","Holding Accounts not in Budget Book - COF","General Holding Accounts","Certificated Contract Payments","R&M - Reactive",03/05/2017 00:00:00,"6636836",618.24,"B.T.U. (MAINTENANCE) LTD"
"Bracknell Forest Council","http://opendatacommunities.org/id/unitary-authority/bracknell-forest","","","Recreation, Sports and Leisure","Sports Development & Community Recreations","Half Marathon 2015","Materials",02/05/2017 00:00:00,"6636848",695,"WATER DIRECT MANAGEMENT- USE 530159"
"Bracknell Forest Council","http://opendatacommunities.org/id/unitary-authority/bracknell-forest","","","Open Spaces","Community Parks & Open Spaces","South Hill Park Maintenance","Materials",12/06/2017 00:00:00,"6638538",1498.02,"OAKTREE GARDEN CENTRE"
"Bracknell Forest Council","http://opendatacommunities.org/id/unitary-authority/bracknell-forest","","","Safeguarding Children and Young People's Services","Social Work","Children & Family Duty Team","Agency",25/04/2017 00:00:00,"6634845",1170,"NONSTOP RECRUITMENT"
"Bracknell Forest Council","http://opendatacommunities.org/id/unitary-authority/bracknell-forest","","","Information & Early Intervention","Information & Early Intervention","Information & Early Intervention","Contracted Services",23/03/2017 00:00:00,"6635689",17620.22,"SEAP"
"Bracknell Forest Council","http://opendatacommunities.org/id/unitary-authority/bracknell-forest","","","Holding Accounts not in Budget Book - COF","General Holding Accounts","Certificated Contract Payments","R&M - Service Contracts",07/04/2017 00:00:00,"6636143",3014.97,"HSL"
"Bracknell Forest Council","http://opendatacommunities.org/id/unitary-authority/bracknell-forest","","","Holding Accounts not in Budget Book - COF","General Holding Accounts","Certificated Contract Payments","R&M - Service Contracts",29/03/2017 00:00:00,"6636145",642.78,"MULTIFIRE MAINTENANCE SERVICES LTD"
"Bracknell Forest Council","http://opendatacommunities.org/id/unitary-authority/bracknell-forest","","","Information & Early Intervention","Information & Early Intervention","Information & Early Intervention","Contracted Services",11/04/2017 00:00:00,"6635690",6066.99,"SEAP"
"Bracknell Forest Council","http://opendatacommunities.org/id/unitary-authority/bracknell-forest","","","Holding Accounts not in Budget Book - COF","General Holding Accounts","Certificated Contract Payments","R&M - Service Contracts",31/03/2017 00:00:00,"6636241",781.25,"PICKERINGS LIFTS"
"Bracknell Forest Council","http://opendatacommunities.org/id/unitary-authority/bracknell-forest","","","Holding Accounts not in Budget Book - COF","General Holding Accounts","Certificated Contract Payments","R&M - Reactive",27/04/2017 00:00:00,"6635362",29726.69,"KIER FACILITIES SERVICES LIMITED"
"Bracknell Forest Council","http://opendatacommunities.org/id/unitary-authority/bracknell-forest","","","Family Support Services","Targeted Family Support","Assistance Cash in Kind/Care Needs","Contracted Services",18/05/2017 00:00:00,"6637840",679.36,"KIDS"
"Bracknell Forest Council","http://opendatacommunities.org/id/unitary-authority/bracknell-forest","","","Local Tax Collection","Council Tax Collection","Council Tax","Licences",08/06/2017 00:00:00,"6638200",950,"NORTHGATE PUBLIC SERVICES (UK) LTD"
"Bracknell Forest Council","http://opendatacommunities.org/id/unitary-authority/bracknell-forest","","","Holding Accounts not in Budget Book - COF","General Holding Accounts","Repairs and Maintenance","R&M - Planned",15/06/2017 00:00:00,"6639023",2800,"CONTROL MATTERS LTD"
"Bracknell Forest Council","http://opendatacommunities.org/id/unitary-authority/bracknell-forest","","","Culture and Heritage","Heritage Museums & Galleries","The Look Out Car Parking","Contracted Services",31/05/2017 00:00:00,"6638078",1784.44,"INDIGO"
"Bracknell Forest Council","http://opendatacommunities.org/id/unitary-authority/bracknell-forest","","","Culture and Heritage","Heritage Museums & Galleries","The Look Out Car Parking","Contracted Services",31/05/2017 00:00:00,"6638078",919.27,"INDIGO"
"Bracknell Forest Council","http://opendatacommunities.org/id/unitary-authority/bracknell-forest","","","Holding Accounts not in Budget Book - COF","General Holding Accounts","Certificated Contract Payments","R&M - Reactive",12/06/2017 00:00:00,"6638813",1433.8,"B.T.U. (MAINTENANCE) LTD"
"Bracknell Forest Council","http://opendatacommunities.org/id/unitary-authority/bracknell-forest","","","Holding Accounts not in Budget Book - COF","General Holding Accounts","Certificated Contract Payments","R&M - Reactive",12/06/2017 00:00:00,"6638815",584.29,"B.T.U. (MAINTENANCE) LTD"
"Bracknell Forest Council","http://opendatacommunities.org/id/unitary-authority/bracknell-forest","","","Culture and Heritage","Heritage Museums & Galleries","The Look Out","R&M - Service Contracts",28/06/2017 00:00:00,"6638674",2366,"GREENWORKS SOLUTIONS LTD"
"Bracknell Forest Council","http://opendatacommunities.org/id/unitary-authority/bracknell-forest","","","Economic Development","Economic Development","Town Centre Redevelopment General Costs","Other Fees for Bought-in Services",14/06/2017 00:00:00,"6639017",2400,"LYONS + SLEEMAN + HOARE LTD ARCHITECTS"
"Bracknell Forest Council","http://opendatacommunities.org/id/unitary-authority/bracknell-forest","","","Central Support Services - COF","Information Technology","Information Technology - Management","Agency",31/05/2017 00:00:00,"6639016",11250,"SOCITM  LTD"
"Bracknell Forest Council","http://opendatacommunities.org/id/unitary-authority/bracknell-forest","","","Central Support Services - COF","Information Technology","Information Technology - Management","Agency",11/05/2017 00:00:00,"6639018",9000,"SOCITM  LTD"
"Bracknell Forest Council","http://opendatacommunities.org/id/unitary-authority/bracknell-forest","","","Central Support Services - COF","Policy Unit","Transformation Board","Consultants Fees",08/06/2017 00:00:00,"6638171",1900,"MHR / MIDLAND SOFTWARE"
"Bracknell Forest Council","http://opendatacommunities.org/id/unitary-authority/bracknell-forest","","","Other Trading Surpluses & Deficits","Smartcard","Smartconnect","Computer Software Maintenance",31/05/2017 00:00:00,"6638216",2807.25,"SMARTCITIZEN LIMITED"
"Bracknell Forest Council","http://opendatacommunities.org/id/unitary-authority/bracknell-forest","","","Public Transport","Concessionary Fares","Concessionary Fares","Contracted Services",26/05/2017 00:00:00,"6637955",561,"RSP RAIL TRAVEL  LTD"
"Bracknell Forest Council","http://opendatacommunities.org/id/unitary-authority/bracknell-forest","","","Older People (65+)","Long Term Support - Community:Supported Living","SS Older People 65+ Long Term Support - Community:Supported Living","Contracted Services",03/04/2017 00:00:00,"6635098",700,"INDIGO ACCESS LTD"
"Bracknell Forest Council","http://opendatacommunities.org/id/unitary-authority/bracknell-forest","","","Older People (65+)","Long Term Support - Community:Supported Living","SS Older People 65+ Long Term Support - Community:Supported Living","Contracted Services",02/04/2017 00:00:00,"6635118",787.5,"INDIGO ACCESS LTD"
"Bracknell Forest Council","http://opendatacommunities.org/id/unitary-authority/bracknell-forest","","","Culture and Heritage","Heritage Museums & Galleries","The Look Out","Clothing & Uniform - Staff",31/03/2017 00:00:00,"6633344",880,"STITCH-A-LOGO LTD"
"Bracknell Forest Council","http://opendatacommunities.org/id/unitary-authority/bracknell-forest","","","Other Education and Community Budget","Service strategy and other education functions","Learning & Achievement","Consultants Fees",24/05/2017 00:00:00,"6637224",2066.86,"BARBARA CARR CONSULTING LTD"
"Bracknell Forest Council","http://opendatacommunities.org/id/unitary-authority/bracknell-forest","","","Older People (65+)","Long Term Support - Community:Supported Living","SS Older People 65+ Long Term Support - Community:Supported Living","Contracted Services",01/06/2017 00:00:00,"6639303",875,"INDIGO ACCESS LTD"
"Bracknell Forest Council","http://opendatacommunities.org/id/unitary-authority/bracknell-forest","","","Older People (65+)","Long Term Support - Community:Supported Living","SS Older People 65+ Long Term Support - Community:Supported Living","Contracted Services",01/06/2017 00:00:00,"6639305",1050,"INDIGO ACCESS LTD"
"Bracknell Forest Council","http://opendatacommunities.org/id/unitary-authority/bracknell-forest","","","Older People (65+)","Long Term Support - Community:Supported Living","SS Older People 65+ Long Term Support - Community:Supported Living","Contracted Services",01/06/2017 00:00:00,"6639308",736,"INDIGO ACCESS LTD"
"Bracknell Forest Council","http://opendatacommunities.org/id/unitary-authority/bracknell-forest","","","Safeguarding Children and Young People's Services","Social Work","Children & Family Duty Team","Agency",05/06/2017 00:00:00,"6638005",1170,"NONSTOP RECRUITMENT"
"Bracknell Forest Council","http://opendatacommunities.org/id/unitary-authority/bracknell-forest","","","Safeguarding Children and Young People's Services","Social Work","Children & Family Duty Team","Agency",30/05/2017 00:00:00,"6638006",877.5,"NONSTOP RECRUITMENT"
"Bracknell Forest Council","http://opendatacommunities.org/id/unitary-authority/bracknell-forest","","","Safeguarding Children and Young People's Services","Social Work","Children & Family Duty Team","Agency",22/05/2017 00:00:00,"6638008",1443,"NONSTOP RECRUITMENT"
"Bracknell Forest Council","http://opendatacommunities.org/id/unitary-authority/bracknell-forest","","","Supporting People","Supporting People","Supporting People Payments","Transfer Payments - Supporting People",30/06/2017 00:00:00,"6639438",6113.52,"BWA / BERKSHIRE WOMEN'S AID"
"Bracknell Forest Council","http://opendatacommunities.org/id/unitary-authority/bracknell-forest","","","Support Services & Management Costs","Training","Social Care Training - Adults","Training Costs",19/06/2017 00:00:00,"6639449",1200,"PRESCRIPTION TRAINING"
"Bracknell Forest Council","http://opendatacommunities.org/id/unitary-authority/bracknell-forest","","","Housing Benefits Administration","Housing Benefits Administration","Housing Local Welfare Provision - Programme","Other Fees for Bought-in Services",24/05/2017 00:00:00,"6638584",822.47,"NORTHERN HOUSING CONSORTIUM LTD"
"Bracknell Forest Council","http://opendatacommunities.org/id/unitary-authority/bracknell-forest","","","Safeguarding Children and Young People's Services","Social Work","Children Aged Over 11","Agency",06/06/2017 00:00:00,"6638375",1184,"NONSTOP RECRUITMENT"
"Bracknell Forest Council","http://opendatacommunities.org/id/unitary-authority/bracknell-forest","","","Transport Planning, Policy & Strategy","Transport Policy, Planning & Strategy","Monitoring Street Works","Contracted Services",28/04/2017 00:00:00,"6637651",1202.33,"21ST CENTURY PASSENGER SSYSTEMS LIMITED"
"Bracknell Forest Council","http://opendatacommunities.org/id/unitary-authority/bracknell-forest","","","Children Looked After","Other services for LAC","LAC - Semi Independent Living","Contracted Services",11/05/2017 00:00:00,"6637058",670,"P C RENTALS LTD"
"Bracknell Forest Council","http://opendatacommunities.org/id/unitary-authority/bracknell-forest","","","Children Looked After","Residential care","Children's Home Placements","Other Local Authorities",30/03/2017 00:00:00,"6636987",1090.29,"BUCKINGHAMSHIRE COUNTY COUNCIL"
"Bracknell Forest Council","http://opendatacommunities.org/id/unitary-authority/bracknell-forest","","","Children Looked After","Residential care","Children's Home Placements","Contracted Services",10/05/2017 00:00:00,"6637044",17236,"AMBERLEIGH CARE"
"Bracknell Forest Council","http://opendatacommunities.org/id/unitary-authority/bracknell-forest","","","Children Looked After","Residential care","Children's Home Placements","Contracted Services",01/05/2017 00:00:00,"6637047",16607.14,"OPTIONS BSD / COLLEGE SHIFNAL (OPTIONS BESD (1) LTD"
"Bracknell Forest Council","http://opendatacommunities.org/id/unitary-authority/bracknell-forest","","","Children Looked After","Residential care","Children's Home Placements","Contracted Services",26/04/2017 00:00:00,"6637057",15903,"CAMBIAN CHILDCARE LTD"
"Bracknell Forest Council","http://opendatacommunities.org/id/unitary-authority/bracknell-forest","","","Children Looked After","Residential care","Children's Home Placements","Contracted Services",12/05/2017 00:00:00,"6637201",18514.17,"CAMBIAN CHILDCARE LTD"
"Bracknell Forest Council","http://opendatacommunities.org/id/unitary-authority/bracknell-forest","","","Children Looked After","Other services for LAC","LAC - Semi Independent Living","Contracted Services",10/05/2017 00:00:00,"6637059",3764.28,"SEWAK HOUSING SERVICES LTD"
"Bracknell Forest Council","http://opendatacommunities.org/id/unitary-authority/bracknell-forest","","","Safeguarding Children and Young People's Services","Social Work","Children Aged Over 11","Agency",19/04/2017 00:00:00,"6635131",1424.5,"IPEOPLE SOLUTIONS LTD"
"Bracknell Forest Council","http://opendatacommunities.org/id/unitary-authority/bracknell-forest","","","Safeguarding Children and Young People's Services","Social Work","Children Aged Over 11","Agency",25/04/2017 00:00:00,"6635132",1110,"NONSTOP RECRUITMENT"
"Bracknell Forest Council","http://opendatacommunities.org/id/unitary-authority/bracknell-forest","","","Housing Strategy","Housing Strategy","Disabled Facilities Suport Service","Other Fees for Bought-in Services",11/04/2017 00:00:00,"6638450",2100,"Redact Personal Info"
"Bracknell Forest Council","http://opendatacommunities.org/id/unitary-authority/bracknell-forest","","","Business Support","Premises Development","Leasehold Flats","Other Fees for Bought-in Services",21/04/2017 00:00:00,"6634922",1059.9,"BRACKNELL FOREST HOMES"
"Bracknell Forest Council","http://opendatacommunities.org/id/unitary-authority/bracknell-forest","","","Business Support","Premises Development","Leasehold Flats","Other Fees for Bought-in Services",21/04/2017 00:00:00,"6634928",2238.53,"BRACKNELL FOREST HOMES"
"Bracknell Forest Council","http://opendatacommunities.org/id/unitary-authority/bracknell-forest","","","Recreation, Sports and Leisure","Dual Use Centres","Edgbarrow Sports Centre","R&M - Reactive",18/04/2017 00:00:00,"6634797",631.25,"B.T.U. (MAINTENANCE) LTD"
"Bracknell Forest Council","http://opendatacommunities.org/id/unitary-authority/bracknell-forest","","","Safeguarding Children and Young People's Services","Social Work","Children Aged Over 11","Agency",29/03/2017 00:00:00,"6635114",1424.5,"IPEOPLE SOLUTIONS LTD"
"Bracknell Forest Council","http://opendatacommunities.org/id/unitary-authority/bracknell-forest","","","Housing Strategy","Housing Strategy","Disabled Facilities Suport Service","Other Fees for Bought-in Services",11/04/2017 00:00:00,"6639406",2100,"Redact Personal Info"
"Bracknell Forest Council","http://opendatacommunities.org/id/unitary-authority/bracknell-forest","","","Services for Young People","Universal services for young people","Youth Engagement","Youth & Community Activities",19/06/2017 00:00:00,"6639275",600,"BRITISH YOUTH COUNCIL"
"Bracknell Forest Council","http://opendatacommunities.org/id/unitary-authority/bracknell-forest","","","Other Welfare Services","Other Welfare Services","Forestcare - Lifeline","Equipment - Purchase",29/06/2017 00:00:00,"6639292",504,"THE KEYSAFE COMPANY"
"Bracknell Forest Council","http://opendatacommunities.org/id/unitary-authority/bracknell-forest","","","Central Support Services - COF","Fleet","Green Travel Issues","Equipment - Rental",22/06/2017 00:00:00,"6639213",600,"MOVOLYTICS LIMITED"
"Bracknell Forest Council","http://opendatacommunities.org/id/unitary-authority/bracknell-forest","","","Structural Maintenance","Structural Maintenance (Principal Roads)","Assessments","Consultants Fees",26/06/2017 00:00:00,"6639203",19944.17,"YOTTA DCL"
"Bracknell Forest Council","http://opendatacommunities.org/id/unitary-authority/bracknell-forest","","","Other Education and Community Budget","Adult and Community Learning","Open Learning Centre - Brakenhale","Catering Consumables",21/06/2017 00:00:00,"6639246",581.05,"ENJOY CATERING FOR YOU"
"Bracknell Forest Council","http://opendatacommunities.org/id/unitary-authority/bracknell-forest","","","Homelessness","Bed/Breakfast Accommodation","Homeless Families","Other Support to Clients",27/06/2017 00:00:00,"6639241",1332.1,"LOOK AHEAD CARE AND SUPPORT"
"Bracknell Forest Council","http://opendatacommunities.org/id/unitary-authority/bracknell-forest","","","Central Support Services - COF","Personnel","Personnel Services","Staff Advertising",09/06/2017 00:00:00,"6638694",770,"JGP RESOURCING LTD"
"Bracknell Forest Council","http://opendatacommunities.org/id/unitary-authority/bracknell-forest","","","Safeguarding Children and Young People's Services","Social Work","Children Aged Over 11","Agency",18/04/2017 00:00:00,"6637518",888,"NONSTOP RECRUITMENT"
"Bracknell Forest Council","http://opendatacommunities.org/id/unitary-authority/bracknell-forest","","","Conducting Elections","Other Elections","General Election","Equipment - Purchase",26/05/2017 00:00:00,"6637370",545,"DISPLAYPAK"
"Bracknell Forest Council","http://opendatacommunities.org/id/unitary-authority/bracknell-forest","","","Family Support Services","Targeted Family Support","C&F Section 17 Over 11's Team","Contracted Services",14/03/2017 00:00:00,"6636985",46333.33,"CAMBIAN ASPERGER SYNDROME SERVICES"
"Bracknell Forest Council","http://opendatacommunities.org/id/unitary-authority/bracknell-forest","","","Children Looked After","Residential care","Children's Home Placements","Contracted Services",12/05/2017 00:00:00,"6637113",14357.14,"CALCOT SERVICES FOR CHILDREN"
"Bracknell Forest Council","http://opendatacommunities.org/id/unitary-authority/bracknell-forest","","","Family Support Services","Targeted Family Support","C&F Section 17 Under 11's Team","Other Support to Clients",25/05/2017 00:00:00,"70018647",1020.44,"Redact Personal Info"
"Bracknell Forest Council","http://opendatacommunities.org/id/unitary-authority/bracknell-forest","","","Services for Young People","Universal services for young people","Adventure Education Work","Licences",03/04/2017 00:00:00,"6636798",1051,"THE AWARD SCHEME LTD"
"Bracknell Forest Council","http://opendatacommunities.org/id/unitary-authority/bracknell-forest","","","Children Looked After","Adoption Services","Additional Adoption Support","Client Training & Support",24/03/2017 00:00:00,"6635581",997.35,"PACT (CHILDREN & PARENTS TOGETHER) /THE OXFORD DIOCESAN COUNCIL FOR SOCIAL WORK INC"
"Bracknell Forest Council","http://opendatacommunities.org/id/unitary-authority/bracknell-forest","","","Children Looked After","Adoption Services","Additional Adoption Support","Client Training & Support",28/02/2017 00:00:00,"6635582",867.5,"PACT (CHILDREN & PARENTS TOGETHER) /THE OXFORD DIOCESAN COUNCIL FOR SOCIAL WORK INC"
